{"text_format":"1","workbook":"xlsx","n_sheets":2,"sheets":["Formulario","BD"],"not_rendered":{"charts":0,"images":1,"macros":1,"external_links":0,"defined_names":1,"comments":1,"pivot_tables":0},"unopened":[],"bounds":{"document_bytes":16777216,"sheet_cells":100000,"rows_first":2000,"rows_last":500,"rows_between":2000,"halvings":0,"cell_chars":16384,"cell_head_chars":4096},"cells_cut":0,"cells_raw":0,"read":"whole","date_system":"1900"}

{"sheet":"Formulario","index":0,"n_rows":83,"n_cols":19,"rows_kept":83,"cut":false,"hidden":false,"merged":[[31,1,31,10],[31,14,31,15],[10,3,10,4],[0,1,0,18],[2,1,2,2],[2,3,2,9],[4,1,4,2],[4,3,4,14],[8,1,8,2],[8,3,8,14],[8,16,8,17],[4,16,4,17],[10,16,10,17],[10,1,10,2],[12,1,12,11],[18,1,19,1],[18,2,19,2],[18,3,19,5],[18,6,19,8],[18,9,19,10],[18,11,19,11],[18,14,19,14],[18,15,19,15],[18,16,18,18],[20,3,20,5],[20,6,20,8],[20,9,20,10],[18,12,19,12],[18,13,19,13],[21,3,21,5],[21,6,21,8],[21,9,21,10],[22,3,22,5],[22,6,22,8],[22,9,22,10],[23,3,23,5],[23,6,23,8],[23,9,23,10],[24,3,24,5],[24,6,24,8],[24,9,24,10],[25,3,25,5],[25,6,25,8],[25,9,25,10],[26,3,26,5],[26,6,26,8],[26,9,26,10],[27,3,27,5],[27,6,27,8],[27,9,27,10],[28,3,28,5],[28,6,28,8],[28,9,28,10],[29,3,29,5],[29,6,29,8],[29,9,29,10],[30,3,30,5],[30,6,30,8],[30,9,30,10],[44,1,44,9],[42,16,42,18],[44,16,44,18],[36,1,36,9],[38,1,38,9],[36,16,36,18],[38,16,38,18],[40,16,40,18],[40,1,40,9],[42,1,42,9],[36,13,36,15],[38,13,38,15],[73,1,73,18],[70,1,70,18],[6,1,6,2],[6,3,6,14],[6,16,6,17],[48,1,48,18],[54,1,54,18],[56,1,56,18],[57,1,57,18],[66,1,66,18],[68,1,68,18],[50,1,50,18],[53,1,53,18],[16,1,16,18],[33,1,33,18],[35,16,35,18]]}
[null,"Solicitação de pedido de pagamento a título de adiantamento contra fatura"]
[]
[null,"Nº da Operação Mar 2020: ",null,null,null,null,null,null,null,null,"* "]
[]
[null,"Nome do beneficiário: ",null,{"$f":"+BD!A7","v":"Não disponível"},null,null,null,null,null,null,null,null,null,null,null,null,"Investimento: ",null,{"$f":"+BD!D10","v":"Não disponível"}]
[]
[null,"Designação da operação: ",null,{"$f":"+BD!A10","v":"Não disponível"},null,null,null,null,null,null,null,null,null,null,null,null,"Investimento elegível: ",null,{"$f":"+BD!D13","v":"Não disponível"}]
[null," "]
[null,"Entidade analista: ",null,{"$f":"+BD!A19","v":"Não disponível"},null,null,null,null,null,null,null,null,null,null,null,null,"Despesa  Pública: ",null,{"$f":"IFERROR(BD!D16+BD!D19,\"Não disponível\")","v":"Não disponível"}]
[]
[null,"NIFAP: ",null,{"$f":"+BD!A13","v":"Não disponível"},null,null,null,null,null,null,"Data de inicio : ",{"$f":"+BD!F10","v":"Não disponível"},"Data de fim: ",{"$f":"+BD!F13","v":"Não disponível"},null,null,"FEAMP: ",null,{"$f":"+BD!D16","v":"Não disponível"}]
[]
[null,"Data da submissão da despesa no idigital a regularizar o anterior pedido de adiantamento contra fatura apresentado para o mesmo projeto",null,null,null,null,null,null,null,null,null,null,null,null,"* "]
[]
[null," "]
[]
[null,"1 - Registo dos documentos de despesa * (todos os campos são de prenchimento obrigatório)"]
[]
[null,"Nº  de ordem","Rúbrica do investimento","Nº Fatura",null,null,"Data",null,null,"NIF Fornecedor",null,"Montante com IVA (euros)","Montante elegível afeto à operação \n(euros)","Montante do adiantamento solicitado\n(euros)","Descrição do trabalho ou item fornecido","Nome do(s) ficheiro(s) anexo(s) (em pdf com as faturas carimbadas e os documentos solicitados no ponto 3)","Validação OI (**)"]
[null,null,null,null,null,null,null,null,null,null,null,null,null,null,null,null,"Montante elegível apurado\n(euros)","Taxa de apoio apurada\n(%)","Montante do adiantamento apurado\n(euros)"]
[null,"(1)","(2)","(3)",null,null,"(4)",null,null,"(5)",null,"(6)","(7)","(8)","(9)","(10)","(11)","(12)","(13)"]
[null,1,null,null,null,null,null,null,null,null,null,null,null,{"$f":"IF(M22=0,0,IFERROR(M22*$S$9/$S$7,\"Não disponível\"))","v":0},null,null,null,null,{"$f":"+Q22*R22","v":0}]
[null,2,null,null,null,null,null,null,null,null,null,null,null,0,null,null,null,null,{"$f":"+Q23*R23","v":0}]
[null,3,null,null,null,null,null,null,null,null,null,null,null,0,null,null,null,null,0]
[null,4,null,null,null,null,null,null,null,null,null,null,null,0,null,null,null,null,0]
[null,5,null,null,null,null,null,null,null,null,null,null,null,0,null,null,null,null,0]
[null,6,null,null,null,null,null,null,null,null,null,null,null,0,null,null,null,null,0]
[null,7,null,null,null,null,null,null,null,null,null,null,null,0,null,null,null,null,0]
[null,8,null,null,null,null,null,null,null,null,null,null,null,0,null,null,null,null,0]
[null,9,null,null,null,null,null,null,null,null,null,null,null,0,null,null,null,null,0]
[null,10,null,null,null,null,null,null,null,null,null,null,null,0,null,null,null,null,0]
[null,"TOTAL",null,null,null,null,null,null,null,null,null,{"$f":"SUM(L22:L31)","v":0},{"$f":"SUM(M22:M31)","v":0},{"$f":"IF(SUM(M22:M31)=0,0,IFERROR(IF(SUM(N22:N31)>S9*0.5,\"Erro\",SUM(N22:N31)),\"Não disponível\"))","v":0},{"$f":"IFERROR(IF(SUM(N22:N31)>S9*0.5,\"Não pode apresentar montante superior a 50% do apoio\",\"-\"),\"\")","v":""},null,{"$f":"SUM(Q22:Q31)","v":0},"-",{"$f":"SUM(S22:S31)","v":0}]
[]
[null,"2 - Documentos apresentados"]
[]
[null,null,null,null,null,null,null,null,null,null,null,null,"Data de validade",null,null,null,"VALIDAÇÃO TÉCNICA (**)"]
[null,"a) Apresentação de Declaração da Segurança Social, comprovativa da situação regularizada do beneficiário perante aquela entidade ou comprovativo de que deu consentimento para a consulta no serviço Segurança Social Direta.",null,null,null,null,null,null,null,null,null,null,null," * Deve juntar pdf com a declaração da SS ou com o comprovativo que dá consentimento \npara a consulta (este comprovativo não pode ser aplicado nos projetos da Prioridade 4)"]
[]
[null,"b) Apresentação de Declaração da Autoridade Tributária, comprovativa da situação regularizada do beneficiário perante aquela entidade ou comprovativo de que deu consentimento para a consulta nas declarações eletrónicas.",null,null,null,null,null,null,null,null,null,null,null," * Deve juntar pdf com a declaração da AT ou com o comprovativo que dá consentimento \npara a consulta (este comprovativo não pode ser aplicado nos projetos da Prioridade 4)"]
[]
[null,"c) Tratando-se de fatura relativa a trabalhos de construção civil, deve ser evidenciada a licença de obras ou documento que comprove a sua isenção bem como o respetivo auto de medição.",null,null,null,null,null,null,null,null,null,"* Deve juntar pdf com a licença"]
[]
[null,"d) Tratando-se de fatura emitida no contexto de um procedimento ao abrigo do Código da Contratação Pública (CCP) devem ser presentes as respetivas peças do procedimento e a publicitação no portal BASE (www.base.gov.pt).",null,null,null,null,null,null,null,null,null,"* Deve juntar pdf com  o contrato e com a publicitação no portal base gov"]
[]
[null,"e) Caso exista condicionante formulada no termo de aceitação quanto a qualquer licença ou autorização prévia relacionada com a fatura, deve a mesma ser anexa à solicitação do pedido de adiantamento.",null,null,null,null,null,null,null,null,null,"* Deve juntar pdf com a evidência em causa"]
[]
[null,"* Campos de preenchimento obrigatório",null,null,null,null,null,null,null,null,null,null,null,null,null,null,"** A preencher pelos serviços"]
[]
[null,"3 - A concessão de adiantamento contra fatura no âmbito de uma operação aprovada no âmbito do PO Mar 2020 rege-se pelas seguintes regras:"]
[]
[null,"a) Pode ser efetuado um pedido de adiantamento contra fatura desde que a soma dos adiantamentos já realizados e não justificados com despesa submetida e validada não ultrapasse os 50% da despesa pública aprovada na operação;"]
[null,"b) A solicitação de adiantamento contra fatura pode repetir-se no número máximo de 10 pedidos de pagamentos;"]
[null,"c) O adiantamento a conceder é equivalente ao montante que decorre da aplicação da taxa de apoio aprovada sobre os itens elegíveis da fatura;"]
[null,"d) A fatura para qual é solicitado o pagamento de adiantamento deve referir-se a trabalhos ou fornecimentos efetivos que já ocorreram ou pode tratar-se de fatura de adiantamento por conta, desde que prevista no contrato de empreitada ou de prestação de serviços e se a efetiva execução dos serviços ou o fornecimento dos bens estiver previsto que ocorra até à data de regularização do adiantamento contra fatura (30 dias úteis após o seu recebimento);"]
[null,"e) Cada solicitação de adiantamento contra fatura pode incluir, no máximo, 10 faturas, que não podem, individualmente ou no seu conjunto, dar origem a adiantamento que ultrapasse o valor do adiantamento máximo que seria concedido na modalidade de adiantamento contra garantia (50% do valor do financiamento aprovado);"]
[null,"f) A solicitação do adiantamento por conta tem de ser acompanhada de contrato escrito que sustente os pagamentos por conta a efetuar;"]
[null,"g) O descritivo da fatura(s) apresentada(s) deve permitir estabelecer uma ligação inequívoca com o investimento aprovado no pedido de apoio (PA), não sendo aceites documentos que não estejam compreendidos entre as datas de inicio e de fim aprovadas para a operação nem que consistam em alterações à operação aprovada;"]
[null,"h) A faturação apresentada deve ser emitida de forma legal - faturação detalhada (descrição usual dos serviços) ou suportada por autos de medição, indicação das quantidades unitárias ou totais dos mesmos e respetivo preço unitário e, caso o descritivo da fatura remeta para outros documentos (contratos, autos de medição, orçamentos, guias), os mesmos fazem parte integrante da fatura e devem acompanhá-la (artigo 36º do código do CIVA);"]
[null,"i) As faturas devem ser emitidas por fornecedor com objeto social e CAE adequada à comercialização dos bens em causa;"]
[null,"j) As faturas deverão apresentar-se inutilizadas com o carimbo de cofinanciamento devidamente preenchido;"]
[null,"k) Tratando-se de faturas relativas a trabalhos de construção civil, deve ser evidenciada a licença de obras ou documento que comprove a sua isenção, emitido pela entidade competente;"]
[null,"l) Tratando-se de faturas emitidas no contexto de um procedimento ao abrigo do CCP devem ser presentes as respetivas peças do procedimento e a publicitação no portal base.gov.pt;"]
[null,"m) Caso exista condicionante formulada no termo de aceitação quanto a qualquer licença ou autorização prévia relacionada com a fatura, deve a mesma ser anexa ao pedido de adiantamento (ex. fatura relativa a abertura de furo de captação de água);"]
[null,"n) Deve ser apresentada Declaração da Segurança Social, comprovativa da situação regularizada do beneficiário perante aquela entidade ou comprovativo de que deu consentimento para a consulta no serviço Segurança Social Direta;"]
[null,"o) Deve ser apresentada Declaração da Autoridade Tributária, comprovativa da situação regularizada do beneficiário perante aquela entidade ou comprovativo de que deu consentimento para a consulta nas declarações eletrónicas."]
[]
[null,"4 - Aos adiantamentos concedidos ao abrigo do ponto anterior são aplicáveis as seguintes regras para a respetiva regularização:"]
[]
[null,"a) O adiantamento concedido é obrigatoriamente regularizado, com a comprovação da liquidação financeira e realização material do respetivo investimento, no prazo limite de 30 dias úteis após o seu recebimento, mediante a submissão no iDigital/SIIFAP de um pedido de pagamento com despesa associada no âmbito da operação aprovada;"]
[null,"b) Caso não se verifique a regularização do adiantamento contra fatura no prazo estabelecido na alínea anterior, a reposição do valor adiantado deve ser efetuada no prazo de 30 dias úteis, vencendo-se juros de mora desde a data do pagamento;"]
[null,"c) Ultrapassados os 30 dias úteis referidos em 2. b), o beneficiário constitui-se imediatamente devedor do IFAP e, ainda que posteriormente a essa data venha a regularizar o adiantamento concedido, será aplicado adicionalmente na operação aprovada e sobre a ajuda pública apurada, uma sanção correspondente a 25% do valor adiantado contra fatura;"]
[null,"d) Não será aceite qualquer justificação que afaste a aplicação da sanção referida em c), exceto caso de força maior não imputável ao beneficiário ou aos seus fornecedores."]
[]
[null,"5 - Submissão de pedido"]
[]
[]
[]
[]
[]
[]
[]
[]
[null,"v1.3"]

{"sheet":"BD","index":1,"n_rows":1003,"n_cols":20,"rows_kept":1003,"cut":false,"hidden":false,"merged":[]}
[null,null,null,null,null,null,null,"Cód. Proj. IFAP","Promotor","Nome do Projecto","Entidade que Analisa","Cód. NIFAP","Financiamento Proposto","Custo Total Elegivel","FEAMP","Nacional","Data de Inicio","Data de Fim","NDEPARTA","EMAIL"]
["CANDIDATURA",null,null,"Sim",null,"Não",null,"Cód. Proj. IFAP","Promotor","Nome do Projecto","Entidade que Analisa","Cód, NIFAP","Financiamento Proposto","Custo Total Elegivel","FEAMP","Nacional","Data de Inicio","Data de Fim","Secretariado Técnico da AG do Mar2020","geral@mar2020.pt"]
[{"$f":"+Formulario!D3","v":0},null,null,null,null,"Não aplicável",null,"MAR-01.01.01-FEAMP-0001","FÁBIO MIGUEL MENDES ROCHA","ESPERANÇA NOVA  S-2151-L  -  PRT000009441","DRAP Lisboa e Vale do Tejo - Oeste",8786977,4150,4150,2490,830,"2016-10-25","2016-10-25","DRAP Norte","adelaide.inacio@drapnorte.gov.pt"]
[null,null,null,"Sim",null,null,null,"MAR-01.01.03-FEAMP-0006","ESTRELA DE ÂNCORA, LDA,","ESTRELA de ÂNCORA AN-186-C  -  PRT000022560","DRAP Norte",7960367,105878,104202,15630.3,15630.3,"2016-06-20","2017-12-31","DRAP Centro","diav@drapc.gov.pt"]
["RESPOSTA",null,null,"Não",null,null,null,"MAR-01.01.03-FEAMP-0007","JORGE CARLOS AMORIM DA SILVA SOUTO","STEVEN V-672-L  -  PRT000013128","DRAP Norte",7280581,11124,11124,1668.6,1668.6,"2016-07-15","2016-08-31","DRAP Lisboa e Vale do Tejo - Oeste","decisoesmar2020@draplvt.gov.pt"]
["BENEFICIÁRIO",null,null,null,null,null,null,"MAR-01.01.01-FEAMP-0013","SOCIEDADE DE PESCA MIRADOURO, S,A,","NADIR , A-3867-C  -  PRT000021378","DRAP Centro",7065633,38485,38485,8659.1299999999992,2886.37,"2016-07-13","2017-09-30","DRAP Alentejo"]
[{"$f":"IF(ISERROR(VLOOKUP(A3,H:R,2,FALSE)),\"Não disponível\",(VLOOKUP(A3,H:R,2,FALSE)))","v":"Não disponível"},null,null,null,null,null,null,"MAR-01.01.01-FEAMP-0014","ÁLVARO MILHAZES & LILIANA NOVO, LDA","PARCEIRO VC-241-C  -  PRT000020323","DRAP Norte",7872715,21450,21450,8043.75,2681.25,"2016-08-01","2017-06-07","DRAP Algarve","Mar2020-ap@drapalg.min-agricultura.pt"]
[null,null,null,null,null,null,null,"MAR-01.01.01-FEAMP-0015","SOCIEDADE DE PESCA MIRADOURO, S,A,","BEIRA LITORAL A-3437-C  -  PRT000020224","DRAP Centro",7065633,40935,40935,9210.3799999999992,3070.12,"2016-08-26","2017-09-30","DRP Açores","info.mar2020@azores.gov.pt"]
["OPERAÇÃO",null,null,"INVESTIMENTO",null,"INICIO",null,"MAR-01.01.03-FEAMP-0021","NELSON PEREIRA NETO","LINO, T-420-L  -  PRT000024468","DRAP Algarve",7329327,13343.7,13343.7,2001.56,2001.55,"2016-09-01","2017-08-31","DRP Madeira","adiantamento.fatura.inv@ifap.pt"]
[{"$f":"IF(ISERROR(VLOOKUP(A3,H:R,3,FALSE)),\"Não disponível\",(VLOOKUP(A3,H:R,3,FALSE)))","v":"Não disponível"},null,null,{"$f":"IF(ISERROR(VLOOKUP(A3,H:R,6,FALSE)),\"Não disponível\",(VLOOKUP(A3,H:R,6,FALSE)))","v":"Não disponível"},null,{"$f":"IF(ISERROR(VLOOKUP(A3,H:R,10,FALSE)),\"Não disponível\",(VLOOKUP(A3,H:R,10,FALSE)))","v":"Não disponível"},null,"MAR-01.01.03-FEAMP-0033","VITOR MANUEL HENRIQUES DA FONSECA, UNIPESSOAL, LDA,","MARINÉU  PE-2163-C -  PRT000020424","DRAP Lisboa e Vale do Tejo - Oeste",7303311,27400,27400,4110,4110,"2016-12-15","2017-07-31","GAL Litoral Norte","veronica.lima@cim-altominho.pt"]
[null,null,null,null,null,null,null,"MAR-01.01.01-FEAMP-0039","JOÃO COENTRÃO MARQUES","DOIS MARQUES  PV-159-C - PRT000000982","DRAP Norte",7085525,45300,45300,16987.5,5662.5,"2016-07-01","2017-08-31","GAL Litoral Norte - AMP","gallitoralnorte@amp.pt"]
["NIFAP",null,null,"ELEGIVEL",null,"FIM",null,"MAR-01.01.03-FEAMP-0040","JORGE MANUEL PONTES MASCARENHAS ARVELOA","CARLA PATRICIA, AL-543-L  -  PRT000021771","DRAP Algarve",8811092,11773.18,9918.76,1487.81,1487.82,"2016-10-15","2018-06-30","GAL Região de Aveiro","gac@regiaodeaveiro.pt"]
[{"$f":"IF(ISERROR(VLOOKUP(A3,H:R,5,FALSE)),\"Não disponível\",(VLOOKUP(A3,H:R,5,FALSE)))","v":"Não disponível"},null,null,{"$f":"IF(ISERROR(VLOOKUP(A3,H:R,7,FALSE)),\"Não disponível\",(VLOOKUP(A3,H:R,7,FALSE)))","v":"Não disponível"},null,{"$f":"IF(ISERROR(VLOOKUP(A3,H:R,11,FALSE)),\"Não disponível\",(VLOOKUP(A3,H:R,11,FALSE)))","v":"Não disponível"},null,"MAR-01.01.01-FEAMP-0043","SOCIEDADE DE PESCA MIRADOURO, S,A,","ALBAMAR A-3504-C -  PRT000020835","DRAP Centro",7065633,92286.37,90036.37,20258.18,6752.73,"2016-09-15","2017-12-31","GAL Mondego Mar","geral@adelo.pt"]
[null,null,null,null,null,null,null,"MAR-01.01.03-FEAMP-0044","DOMINGOS MANUEL FANGUEIRO POSTIGA","VEM se VIER  VC-270-C -  PRT000023042","DRAP Norte",7941165,122924,121440,18216,18216,"2016-09-20","2017-12-31","adae","mar2020@adae.pt"]
[null,null,null,"FEAMP",null,null,null,"MAR-01.01.03-FEAMP-0046","VALÉRIO PEDRO DOS SANTOS ARRAIS","OS MECAS, O-2214-L  -  PRT000021841","DRAP Algarve",7492336,9923.2900000000009,9923.2900000000009,1488.5,1488.49,"2016-10-05","2017-10-05","GAL Oeste","galpescaoeste@adepe.pt"]
[null,null,null,{"$f":"IF(ISERROR(VLOOKUP(A3,H:R,8,FALSE)),\"Não disponível\",(VLOOKUP(A3,H:R,8,FALSE)))","v":"Não disponível"},null,null,null,"MAR-01.01.03-FEAMP-0049","RAMIRO TOMÁS DE BRITO JOSÉ","GRATIDÃO, O-2128-L  -  PRT000022169","DRAP Algarve",7303791,9374.91,9374.91,1406.24,1406.23,"2016-10-05","2017-10-05","GAL ecoMAR","geral@ecocoast.pt"]
[null,null,null,null,null,null,null,"MAR-01.01.03-FEAMP-0050","JOSÉ RAFAEL PATRÍCIO QUINTINO","JESUS, O-1973-L  -  PRT000019871","DRAP Algarve",8926587,5942,5942,891.3,891.3,"2016-10-04","2017-10-04","GAL Ericeira/Cascais","geral@a2s.pt"]
["ENTIDADE ANALISTA",null,null,"OE",null,null,null,"MAR-01.01.01-FEAMP-0055","FERNANDO MANUEL PONTES DA SILVA","SENHOR da AGONIA  L-2060-L - PRT000021405","DRAP Norte",7309861,3800,3800,2280,760,"2018-03-01","2018-09-20","GAL ADREPES Costeiro","natalia.henriques@adrepes.pt"]
[{"$f":"IF(ISERROR(VLOOKUP(A3,H:R,4,FALSE)),\"Não disponível\",(VLOOKUP(A3,H:P,4,FALSE)))","v":"Não disponível"},null,null,{"$f":"IF(ISERROR(VLOOKUP(A3,H:R,9,FALSE)),\"Não disponível\",(VLOOKUP(A3,H:R,9,FALSE)))","v":"Não disponível"},null,null,null,"MAR-01.01.01-FEAMP-0056","SOCIEDADE DE PESCA MIRADOURO, S,A,","TRICANA DE AVEIRO, A-3314-C  - PRT000019300","DRAP Centro",7065633,40459.42,38339.42,8626.3700000000008,2875.46,"2015-12-04","2017-09-30","GAL Litoral Alentejano","adl.alentejano@mail.telepac.pt"]
["DESTINATARIO / ASSUNTO",null,null,null,null,null,null,"MAR-01.01.01-FEAMP-0059","CÂNDIDO FLÁVIO DA CUNHA MATOS","O MEU SONHO  P-2196-C -  PRT000023701","DRAP Norte",8083623,128425,67450,40470,13490,"2016-10-23","2017-05-31","GAL Sotavento do Algarve","rpestana@cm-olhao.pt"]
[{"$f":"IF(ISERROR(VLOOKUP(A19,S:T,2,FALSE)),\"Não disponível\",(VLOOKUP(A19,S:T,2,FALSE)))","v":"Não disponível"},null,null,null,null,null,null,"MAR-01.01.03-FEAMP-0061","VALTER JAIME DE CASTRO MANAM","SOL NASCENTE  PE-2507-L -  PRT000024460","DRAP Lisboa e Vale do Tejo - Oeste",8793006,11574,11534,1730.1,1730.1,"2017-09-30","2018-01-30","GAL Barlavento do Algarve","geral@ad-barlavento.pt"]
[{"$f":"CONCATENATE(\"Apresentação de pedido de pagamento contra fatura - Operação \",A3)","v":"Apresentação de pedido de pagamento contra fatura - Operação 0"}," ",null,null,null,null,null,"MAR-01.01.03-FEAMP-0063","JOEL QUITÉRIO MORAIS","SANTA FÉ  PE-1927-L -  PRT000014899","DRAP Lisboa e Vale do Tejo - Oeste",8816866,7182,7182,1077.3,1077.3,"2017-05-24","2019-11-15","GAL GRATER","grater@grater.pt"]
[null,null,null,null,null,null,null,"MAR-01.01.01-FEAMP-0064","ESTRELA DE ÂNCORA, LDA,","ESTRELA de ÂNCORA  AN-186-C ( 2º Proj,) - PRT000022560","DRAP Norte",7960367,15400,15400,5775,1925,"2016-11-02","2017-12-31","DGPM - DG Políticas do Mar","pomar2020.oi@dgpm.mm.gov.pt; fernanda.rodrigues@dgpm.mm.gov.pt"]
["BODY"," \n - ",null,null,null,null,null,"MAR-01.01.01-FEAMP-0068","JOSÉ BARTOLOMEU DOS SANTOS DAVID","CORREIO DO SUL, F-64-C -  PRT000000878","DRAP Algarve",8383425,6188.78,2800,1680,560,"2018-03-01","2018-12-31","DGRM - Direção Geral de Recursos Naturais Segurança e Serviços Marítimos","ifferreira@dgrm.mm.gov.pt"]
[{"$f":"CONCATENATE(A26,B24,A27,B24,A28,B24,A29,B24,A30,B24,A31,B24,A32,B24,A33,B24,A34,B24,A35,B24,A36)","v":"Exmos. Senhores,\n\nJunto se enviam os seguintes documentos em anexo:\n - Formulário do pedido de pagamento contra fatura; \n - 0 \n - 0 \n - 0 \n - 0 \n - 0 \n - 0 \n - 0 \n - 0 \n - 0 \n - 0"},null,null,null,null,null,null,"MAR-01.01.01-FEAMP-0069","JOAQUIM RAMOS AGRA","PARCERIA  PV-288-C -  PRT000020574","DRAP Norte",7085475,30497.5,30497.5,11436.56,3812.19,"2016-11-01","2017-11-30",null,"adeliacor@sapo.pt"]
["Exmos. Senhores,\n\nJunto se enviam os seguintes documentos em anexo:\n - Formulário do pedido de pagamento contra fatura;",null,null,null,null,null,null,"MAR-01.01.03-FEAMP-0070","RUI JORGE DA CRUZ MAGANINHO","CHORONA  P-1736-L -  PRT000010931","DRAP Norte",8362665,2750,2750,412.5,412.5,"2016-11-24","2016-12-24",null,"gal.acoresoriental@gmail.com"]
[{"$f":"+Formulario!P22","v":0},null,null,null,null,null,null,"MAR-01.01.01-FEAMP-0074","MARCO ANTÓNIO GONÇALVES PEREIRA","NELIA, FZ-723-L -  PRT000015009","DRAP Algarve",7504645,8893,8893,5335.8,1778.6,"2017-04-01","2018-12-01"]
[{"$f":"+Formulario!P23","v":0},null,null,null,null,null,null,"MAR-01.01.01-FEAMP-0075","JORGE LEAL MONTEIRO","ALEXANDRINA MARIA, PM-849-C -  PRT000009727","DRAP Algarve",7096666,7895,2440,1464,488,"2017-02-01","2019-02-14"]
[{"$f":"+Formulario!P24","v":0},null,null,null,null,null,null,"MAR-01.01.03-FEAMP-0077","JOÃO HERMÍNIO EFIGÉNIA DA CRUZ","PEDRINHO, T-350-L -  PRT000021160","DRAP Algarve",8803444,9935.4500000000007,9935.4500000000007,1490.33,1490.31,"2016-12-05","2017-07-31"]
[{"$f":"+Formulario!P25","v":0},null,null,null,null,null,null,"MAR-01.01.03-FEAMP-0078","AZULÓBVIO - LDA","PAI E MÃE JUNIOR  CS-865-L -  PRT000024853","DRAP Lisboa e Vale do Tejo - Oeste",8885205,11828.61,11793,1768.95,1768.95,"2017-01-15","2017-12-15"]
[{"$f":"+Formulario!P26","v":0},null,null,null,null,null,null,"MAR-01.01.01-FEAMP-0080","MENSAGEIRO - EMPRESA DE PESCA LDA","BRAVO,  A-3425-C -  PRT000019308","DRAP Centro",8859854,100350,93156.35,34933.64,11644.54,"2016-12-19","2018-11-11"]
[{"$f":"+Formulario!P27","v":0},null,null,null,null,null,null,"MAR-01.01.01-FEAMP-0082","EMPRESA DE PESCA S,JACINTO, SA","COIMBRA, A-2204-N  -  PRT000000095","DRAP Centro",7178035,472866.9,331104.65000000002,124164.24,41388.080000000002,"2016-10-19","2017-12-31"]
[{"$f":"+Formulario!P28","v":0},null,null,null,null,null,null,"MAR-01.01.03-FEAMP-0083","SEZIMAR - SOCIEDADE DE PESCA E COMÉRCIO DE PEIXE, LDA","ESTRELA DIVINA  SB-255-C -  PRT000000290","DRAP Lisboa e Vale do Tejo - Oeste",8375991,45668.93,34398.480000000003,5159.7700000000004,5159.7700000000004,"2016-12-21","2017-12-30"]
[{"$f":"+Formulario!P29","v":0},null,null,null,null,null,null,"MAR-01.01.01-FEAMP-0084","SOCIEDADE DE PESCA NUNO PEDRO, LDA","PRINCESA DE SESIMBRA  VR-533-C -  PRT000023104","DRAP Algarve",7157824,62947.45,62533.15,23449.93,7816.64,"2015-12-31","2018-03-30"]
[{"$f":"+Formulario!P30","v":0},null,null,null,null,null,null,"MAR-01.01.01-FEAMP-0086","ANTÓNIO TORRES MACIEL","AVÔ RICARDO VC-198-C -  PRT000001570","DRAP Norte",7085386,7540,7540,2827.5,942.5,"2016-10-10","2017-07-04"]
[{"$f":"+Formulario!P31","v":0},null,null,null,null,null,null,"MAR-01.01.03-FEAMP-0090","ALFREDO AUGUSTO DA CRUZ GONÇALVES","NOÉ  V-671-L -  PRT000024402","DRAP Norte",7087725,3495,3495,524.25,524.25,"2017-01-15","2017-01-31"]
[null,null,null,null,null,null,null,"MAR-01.01.01-FEAMP-0091","JOSÉ MIGUEL PEREIRA CASTRO","TRAVESSO A-3433-L -  PRT000020106","DRAP Centro",7168362,17139.73,15497.73,9298.64,3099.54,"2017-01-02","2017-08-31"]
[null,null,null,null,null,null,null,"MAR-01.01.01-FEAMP-0092","ALFREDO COENTRÃO E MANUELA VIANA, LDA","VIANA COENTRÃO PV-166-C -  PRT000000977","DRAP Norte",7728093,59500,59500,22312.5,7437.5,"2016-12-15","2018-05-31"]
[null,null,null,null,null,null,null,"MAR-01.01.01-FEAMP-0094","JOÃO OLIVEIRA & RICARDO COENTRÃO, LDA","VIVIANA COENTRÃO VC-276-C -  PRT000023267","DRAP Norte",8851673,34030.400000000001,24580,14748,4916,"2017-01-01","2018-05-30"]
[null,null,null,null,null,null,null,"MAR-01.01.03-FEAMP-0097","JOAQUIM RAMOS AGRA","PARCERIA PV-288-C -  PRT000020574","DRAP Norte",7085475,99430,98240,14736,14736,"2016-12-10","2017-12-31"]
[null,null,null,null,null,null,null,"MAR-01.01.03-FEAMP-0098","VÍTOR MANUEL PATRÍCIO BONZINHO","SEMPRE AMIGOS F-944-L -  PRT000020884","DRAP Algarve",7404025,9375.51,9375.51,1406.33,1406.32,"2017-01-25","2019-01-24"]
[null,null,null,null,null,null,null,"MAR-01.01.03-FEAMP-0100","JOSÉ ARTUR LUÍS DOS SANTOS","KINKY  TR-1486-L -  PRT000022493","DRAP Lisboa e Vale do Tejo - Oeste",8901856,7440.24,7440.24,1116.04,1116.03,"2017-01-31","2017-06-30"]
[null,null,null,null,null,null,null,"MAR-01.01.01-FEAMP-0101","JOAQUIM DE OLIVEIRA SANTOS - CABEÇA DE CASAL DA HERANÇA DE","FAINA MAIOR A-3791-L -  PRT000020321","DRAP Centro",8888803,8500,8500,5100,1700,"2017-02-01","2017-06-30"]
[null,null,null,null,null,null,null,"MAR-01.01.01-FEAMP-0103","PESCARADE - SOCIEDADE DE PESCA DO ARADE, LDA,","CAROLINA TEIXEIRA PM-1336-C -  PRT000001591","DRAP Algarve",7290521,844247.51,769056.81,288396.31,96132.1,"2016-01-01","2020-03-31"]
[null,null,null,null,null,null,null,"MAR-01.01.01-FEAMP-0104","MAIO & RIBEIRO, LDA","TRÊS SORRISOS, VC-204-C -  PRT000018886","DRAP Norte",8577381,26665,26665,9999.3799999999992,3333.12,"2017-01-15","2017-12-31"]
[null,null,null,null,null,null,null,"MAR-01.01.01-FEAMP-0106","IMPARAVELÂNCORA UNIPESSOAL LDA","JAIME CRUZ  C-1302-C -  PRT000020205","DRAP Norte",8355085,38219.269999999997,29827.27,11185.23,3728.41,"2017-02-15","2020-03-31"]
[null,null,null,null,null,null,null,"MAR-01.01.03-FEAMP-0107","RICARDO ALEXANDRE VAIRINHOS MARTINS","BRISA DO OCEANO Q-1081-L -  PRT000020876","DRAP Algarve",8935056,11618,10618,1592.7,1592.7,"2017-02-01","2017-06-30"]
[null,null,null,null,null,null,null,"MAR-01.01.01-FEAMP-0109","LUCIANO PAULO LOPES BAPTISTA","VONTADE INDOMITA FZ-841-L -  PRT000015294","DRAP Algarve",7304995,4601,2400,900,300,"2017-05-01","2017-12-31"]
[null,null,null,null,null,null,null,"MAR-01.01.01-FEAMP-0113","TORCATO DA COSTA CRAVEIRO","VERA MARINA, PV-257-C -  PRT000000628","DRAP Norte",7075724,100495,34895,13085.62,4361.88,"2016-01-01","2018-12-31"]
[null,null,null,null,null,null,null,"MAR-01.01.01-FEAMP-0114","JOSÉ TIAGO ROMEIRA BOTEQUILHA","EBENEZER O-2172-L -  PRT000023179","DRAP Algarve",8217082,24859.65,7129,4277.3999999999996,1425.8,"2017-04-01","2017-12-01"]
[null,null,null,null,null,null,null,"MAR-01.01.03-FEAMP-0116","JOSÉ CONSTÂNCIO GUERREIRO","NÃO É PRECISO,  S-923-L - PRT000004282","DRAP Lisboa e Vale do Tejo - Oeste",8908937,4923,4923,738.45,738.45,"2017-03-31","2017-08-30"]
[null,null,null,null,null,null,null,"MAR-01.01.03-FEAMP-0118","JÚLIO GUERREIRO MARTINS","XEBARRA, Q-1177-L -  PRT000023854","DRAP Algarve",8876527,14421,12413,1861.95,1861.95,"2017-02-06","2020-01-13"]
[null,null,null,null,null,null,null,"MAR-01.01.01-FEAMP-0120","ARNALDO JOSÉ DE MELIM DIAS","AMAZÓNIA FN-1662-C","DRP Madeira",7917801,21747.34,21747.34,11417.36,3805.78,"2016-12-05","2017-05-04"]
[null,null,null,null,null,null,null,"MAR-01.01.01-FEAMP-0121","CARAVELARECORD, UNIPESSOAL LDA","Modernização da embarcação SÃO ÁLVARO FN-1689-C","DRP Madeira",9209337,14324.2,14324.2,7520.21,2506.73,"2016-11-14","2017-08-31"]
[null,null,null,null,null,null,null,"MAR-01.01.01-FEAMP-0122","VIRGÍLIO ALEXANDRE CASIMIRO GASPAR","JOÃO GASPAR FN-1678-C","DRP Madeira",8838773,18542.38,18542.38,11125.42,3708.47,"2017-03-01","2017-08-31"]
[null,null,null,null,null,null,null,"MAR-01.01.01-FEAMP-0123","FAROL SERENO - EMPRESA DE PESCA, UNIPESSOAL, LDA","BEM AVENTURADO  VC-263-C -  PRT000022570","DRAP Norte",9029251,5780,5780,2167.5,722.5,"2017-03-20","2017-12-31"]
[null,null,null,null,null,null,null,"MAR-01.01.03-FEAMP-0124","JORGE MANUEL BELO TAVARES","PÉROLA,  A-3552-L -  PRT000022567","DRAP Centro",8928934,3456.59,3456.59,518.49,518.49,"2017-04-01","2017-12-31"]
[null,null,null,null,null,null,null,"MAR-01.01.01-FEAMP-0125","JOÃO ERNESTO OLIVEIRA CAÇADOR","FICA BEM, A--3876-L -  PRT000024743","DRAP Centro",7195014,6250,6250,3750,1250,"2017-07-01","2017-12-31"]
[null,null,null,null,null,null,null,"MAR-01.01.03-FEAMP-0126","JOAQUIM MATEUS CORREIA CATARINO","BENÇÃO  DE DEUS  S-2157-L -  PRT000024511","DRAP Lisboa e Vale do Tejo - Oeste",8916577,10200,10200,1530,1530,"2017-03-30","2017-04-15"]
[null,null,null,null,null,null,null,"MAR-01.01.03-FEAMP-0127","HERNÂNI DA SILVA RODRIGUES","CALÃO II,  SB-1323-L -  PRT000023801","DRAP Lisboa e Vale do Tejo - Oeste",8917921,3437,3437,515.54999999999995,515.54999999999995,"2017-01-09","2017-12-31"]
[null,null,null,null,null,null,null,"MAR-01.01.03-FEAMP-0129","FÁBIO MIGUEL MENDES ROCHA","ESPERANÇA NOVA,  S-2151-L -  PRT000009441","DRAP Lisboa e Vale do Tejo - Oeste",8786977,13000,13000,1950,1950,"2016-10-01","2017-08-31"]
[null,null,null,null,null,null,null,"MAR-01.01.03-FEAMP-0132","ANTERO MANUEL PEDRO NOBRE","JORGE MANUEL, Q-1119-L -  PRT000022327","DRAP Algarve",7740585,9918.76,9918.76,1487.82,1487.81,"2017-03-30","2018-07-31"]
[null,null,null,null,null,null,null,"MAR-01.01.03-FEAMP-0133","ANTÓNIO JOSÉ DA CRUZ SILVA RAIMUNDO","LÚCIA DE JESUS  SB-1125-C -  PRT000001289","DRAP Lisboa e Vale do Tejo - Oeste",7210252,52132.75,41672.83,6250.93,6250.92,"2016-04-01","2017-07-31"]
[null,null,null,null,null,null,null,"MAR-01.01.03-FEAMP-0134","JOSÉ CARLOS FREIRE DE LIMA GAMBOA","ISA  LX-344-L -  PRT000023255","DRAP Lisboa e Vale do Tejo - Oeste",7699586,4105,4105,615.75,615.75,"2017-04-08","2017-04-14"]
[null,null,null,null,null,null,null,"MAR-01.01.01-FEAMP-0135","JOSÉ LUÍS E NATÉRCIA, LDA","EÇA de QUEIRÓS  PV-299-C -  PRT000022581","DRAP Norte",7690123,16117,16117,6043.88,2014.62,"2017-03-10","2017-12-31"]
[null,null,null,null,null,null,null,"MAR-01.01.01-FEAMP-0136","MARIA E JOSÉ, LDA","JOSÉ DINIS  VC-272-C -  PRT000022468","DRAP Norte",8355127,15111,14976,8985.6,2995.2,"2017-05-01","2018-05-31"]
[null,null,null,null,null,null,null,"MAR-01.01.03-FEAMP-0137","MARIA ODETE DA COSTA","SANTO OVIDIO  S-1595-L -  PRT000004514","DRAP Lisboa e Vale do Tejo - Oeste",8904553,7000,7000,1050,1050,"2017-08-10","2017-11-24"]
[null,null,null,null,null,null,null,"MAR-01.01.03-FEAMP-0138","GABRIEL JESUS BUCHINHO SANTOS","JONI E DIOGO O-2175-L -  PRT000023849","DRAP Algarve",7662997,10900,10900,1635,1635,"2017-04-13","2018-12-31"]
[null,null,null,null,null,null,null,"MAR-01.01.01-FEAMP-0140","JOSÉ MATILDE - PESCAS UNIPESSOAL, LDA","PEROLA DO OCEANO VR-528-C -  PRT000000268","DRAP Algarve",7310075,7980,7980,2992.5,997.5,"2017-11-01","2019-03-31"]
[null,null,null,null,null,null,null,"MAR-01.01.01-FEAMP-0143","CÉSAR FILIPE PEREIRA ARRAIS","MESTRE PARDAL SA-575-C -  PRT000020598","DRAP Algarve",8866997,9435,4413,2647.8,882.6,"2017-03-01","2019-02-28"]
[null,null,null,null,null,null,null,"MAR-01.01.01-FEAMP-0145","JOSÉ TIAGO ROMEIRA BOTEQUILHA","SANTO TIAGO F-1113-L -  PRT000019904","DRAP Algarve",8217082,7129,7129,2673.38,891.12,"2017-06-01","2018-06-01"]
[null,null,null,null,null,null,null,"MAR-01.01.03-FEAMP-0154","LUÍS MIGUEL BISPA ROCHA","FILIPE ANDRÉ  S-2115-L -  PRT000022871","DRAP Lisboa e Vale do Tejo - Oeste",7553854,10248.780000000001,10248.780000000001,1537.32,1537.31,"2017-06-22","2017-06-25"]
[null,null,null,null,null,null,null,"MAR-01.01.01-FEAMP-0155","JOANA CARLA RIBEIRO RAMOS MENDANHA","GERTRUDES FZ-892-L -  PRT000019127","DRAP Algarve",8868072,4731,4731,2838.6,946.2,"2017-05-01","2019-12-01"]
[null,null,null,null,null,null,null,"MAR-01.01.01-FEAMP-0157","JORGE SANTOS & MONIZ, LDA","FELICIDADE ROCHA FN-1725-C","DRP Madeira",7928547,38515.300000000003,38515.300000000003,23109.18,7703.06,"2017-09-04","2019-06-30"]
[null,null,null,null,null,null,null,"MAR-01.01.01-FEAMP-0158","CARLOS MIGUEL PRADO LEAL","GAIVINA FZ-867-L -  PRT000023948","DRAP Algarve",7748855,2983,2983,1789.8,596.6,"2017-06-01","2018-06-01"]
[null,null,null,null,null,null,null,"MAR-01.01.01-FEAMP-0159","MANUEL JOSÉ DAS CHAGAS MADEIRA","LUIS FZ-808-L -  PRT000019934","DRAP Algarve",8839134,3423,3423,2053.8000000000002,684.6,"2017-06-01","2018-06-01"]
[null,null,null,null,null,null,null,"MAR-01.01.01-FEAMP-0160","CARLOS MIGUEL PRADO LEAL","ANDRE E CLAUDIO O-2183-L -  PRT000023320","DRAP Algarve",7748855,4291,4291,2574.6,858.2,"2017-06-01","2018-06-01"]
[null,null,null,null,null,null,null,"MAR-01.01.01-FEAMP-0162","LUÍS GOMES CRUZ","CANDEIAS  PV-327-C -  PRT000000168","DRAP Norte",7309571,136085,99925,37471.879999999997,12490.62,"2016-12-01","2018-08-31"]
[null,null,null,null,null,null,null,"MAR-01.01.03-FEAMP-0163","PEXINHA SOCIEDADE DAS PESCAS, LDA","DIOGO MIGUEL   PE-2380-C -  PRT000020955","DRAP Lisboa e Vale do Tejo - Oeste",8981143,28838,28838,4325.7,4325.7,"2017-09-15","2017-12-15"]
[null,null,null,null,null,null,null,"MAR-01.01.01-FEAMP-0164","JOSÉ CARLOS MILHAZES MOITA E JOAQUIM JOSÉ MILHAZES MOITA","FÁTIMA JOSÉ  PV-298-C -  PRT000022486","DRAP Norte",7302307,55410,25260,9472.5,3157.5,"2017-05-15","2018-07-30"]
[null,null,null,null,null,null,null,"MAR-01.01.01-FEAMP-0165","TESTA & CUNHAS S,A,","SATURNO,  A-3514-C - PRT000020934","DRAP Centro",7067984,24883,24883,9331.1299999999992,3110.37,"2016-02-12","2018-02-10"]
[null,null,null,null,null,null,null,"MAR-01.01.01-FEAMP-0166","SOCIEDADE DE PESCA MIRADOURO, S,A,","MARNOTO DE AVEIRO A-3306-C -  PRT000019167","DRAP Centro",7065633,40947.5,40822.5,9185.06,3061.69,"2017-04-01","2017-09-30"]
[null,null,null,null,null,null,null,"MAR-01.01.01-FEAMP-0167","TESTA & CUNHAS S,A,","GEMINI A-3508-C - PRT000019156","DRAP Centro",7067984,82588,79307.570000000007,29740.33,9913.4500000000007,"2016-12-12","2018-12-10"]
[null,null,null,null,null,null,null,"MAR-01.01.01-FEAMP-0171","ANTÓNIO FIGUEIREDO TORRÃO","FÁTIMA TORRÃO PV-333-C -  PRT000023662","DRAP Norte",7090743,22350,22350,13410,4470,"2017-07-01","2018-12-31"]
[null,null,null,null,null,null,null,"MAR-01.01.03-FEAMP-0172","SOCIEDADE DE PESCAS FONSECAS & MIGUEL, LDA,","DÁRIO LUIS  PE-2436-C -  PRT000021354","DRAP Lisboa e Vale do Tejo - Oeste",8986941,33950,33950,5092.5,5092.5,"2017-11-15","2018-02-15"]
[null,null,null,null,null,null,null,"MAR-01.01.03-FEAMP-0174","FERNANDO DOS SANTOS CIDADE","FERRINHOS  SB-1324-L -  PRT000023744","DRAP Lisboa e Vale do Tejo - Oeste",7741051,9069.11,9069.11,1360.37,1360.36,"2017-04-29","2018-01-18"]
[null,null,null,null,null,null,null,"MAR-01.01.03-FEAMP-0175","MARIA GRACIETE BOTAS MARQUÊS MATA","FINA FLÔR  SB-1346-L -  PRT000024883","DRAP Lisboa e Vale do Tejo - Oeste",7325755,11209,11209,1681.35,1681.35,"2016-12-02","2018-02-06"]
[null,null,null,null,null,null,null,"MAR-01.01.01-FEAMP-0176","SOCIEDADE DE PESCA LÍRIOS DO MAR, LDA","LÍRIOS do MAR  VC-222-C -  PRT000019503","DRAP Norte",8899824,141550,86550,32456.25,10818.75,"2017-04-15","2019-09-30"]
[null,null,null,null,null,null,null,"MAR-01.01.03-FEAMP-0177","JOSÉ CARLOS MILHAZES MOITA E JOAQUIM JOSÉ MILHAZES MOITA","FÁTIMA JOSÉ  PV-298-C -  PRT000022486","DRAP Norte",7302307,107652,101132,15169.8,15169.8,"2016-09-16","2018-03-10"]
[null,null,null,null,null,null,null,"MAR-01.01.03-FEAMP-0178","FERREIRA MAR, LDA","DRAGÃO do MAR, VC-223-C -  PRT000019806","DRAP Norte",7744931,140644,132012,19801.8,19801.8,"2016-06-05","2018-07-31"]
[null,null,null,null,null,null,null,"MAR-01.01.03-FEAMP-0179","VÍTOR MANUEL PATRÍCIO RAIMUNDO","RICA COSTA  SB-1322-L -  PRT000023270","DRAP Lisboa e Vale do Tejo - Oeste",8854996,18135,18135,2720.25,2720.25,"2016-07-05","2018-02-27"]
[null,null,null,null,null,null,null,"MAR-01.01.03-FEAMP-0180","FERNANDO JOSÉ FRANCO DA CRUZ CATARINO","SETE MARES  SB-1308-L -  PRT000022706","DRAP Lisboa e Vale do Tejo - Oeste",8216852,12433,12433,1864.95,1864.95,"2017-07-17","2017-12-31"]
[null,null,null,null,null,null,null,"MAR-01.01.01-FEAMP-0181","PEDRO MIGUEL RODRIGUES","CALEBE FZ-897-L -  PRT000021767","DRAP Algarve",8980132,5855,5855,3513,1171,"2017-08-01","2019-09-30"]
[null,null,null,null,null,null,null,"MAR-01.01.01-FEAMP-0186","VARAMAR - SOCIEDADE DE PESCA E COMÉRCIO DE PEIXE LDA","DESTERRADO, SN-835-C -  PRT000019515","DRAP Alentejo",7199476,41466.14,36841.14,13815.43,4605.1400000000003,"2017-06-30","2018-03-31"]
[null,null,null,null,null,null,null,"MAR-01.01.01-FEAMP-0187","VÍTOR MANUEL DO POÇO MARTINS","FATIMA ALEXANDRA FZ-142-L -  PRT000011871","DRAP Algarve",7722935,8306,3806,2283.6,761.2,"2017-05-01","2018-05-01"]
[null,null,null,null,null,null,null,"MAR-01.01.03-FEAMP-0190","NUNO ALEXANDRE NUNES DIAS ROCHA","SOL POSTO,  PE-2898-L -  PRT000021666","DRAP Lisboa e Vale do Tejo - Oeste",8802151,13662.94,6831.47,1024.72,1024.72,"2017-07-20","2019-11-15"]
[null,null,null,null,null,null,null,"MAR-01.01.03-FEAMP-0191","DIONÍSIO ALEXANDRE CONCEIÇÃO TEIXEIRA MACHADO","LEÃOZINHO  SB-1300-L -  PRT000022508","DRAP Lisboa e Vale do Tejo - Oeste",8377297,11668.89,11668.89,1750.33,1750.34,"2016-08-31","2018-03-02"]
[null,null,null,null,null,null,null,"MAR-01.01.03-FEAMP-0193","ANTÓNIO JORGE MARÇALO DIAS","GRAVANA  SB-1339-L -  PRT000021775","DRAP Lisboa e Vale do Tejo - Oeste",7323532,10188,6188,928.2,928.2,"2015-10-01","2018-02-15"]
[null,null,null,null,null,null,null,"MAR-01.01.03-FEAMP-0194","MÁRIO RUI MOURO DINIS","JOSÉ RUI  VC-252-C - Aq, Motor -  PRT000021362","DRAP Norte",7296742,96430,91830,13774.5,13774.5,"2017-08-04","2017-12-31"]
[null,null,null,null,null,null,null,"MAR-01.01.01-FEAMP-0196","SOCIEDADE DE PESCA MIRADOURO, S,A,","SÃO GONÇALINHO A-3484-C -  PRT000020848","DRAP Centro",7065633,70187.600000000006,70187.600000000006,15792.21,5264.07,"2017-08-15","2018-04-30"]
[null,null,null,null,null,null,null,"MAR-01.01.01-FEAMP-0197","ROSA MILHAZES & JOÃO GRAÇA, LDA","SALVADOR GRAÇA  PV-284-C -  PRT000021236","DRAP Norte",8730993,59620,59620,22357.5,7452.5,"2017-09-01","2018-12-31"]
[null,null,null,null,null,null,null,"MAR-01.01.01-FEAMP-0198","MAIA E SILVA, LDA","MARTA JOSÉ  PV-286-C -  PRT000020579","DRAP Norte",8617353,34167.5,34167.5,12812.81,4270.9399999999996,"2018-08-03","2018-12-31"]
[null,null,null,null,null,null,null,"MAR-01.01.03-FEAMP-0199","CARLOS MANUEL FIALHO NUNES","GRIFO, SA-631-L -  PRT000024016","DRAP Algarve",9009915,10430,10430,1564.5,1564.5,"2017-08-21","2018-03-31"]
[null,null,null,null,null,null,null,"MAR-01.01.01-FEAMP-0200","CARLOS MIGUEL PRADO LEAL","SLB, FZ-911-L -  PRT000021181","DRAP Algarve",7748855,49548.800000000003,10657.44,6394.46,2131.4899999999998,"2017-09-01","2018-09-01"]
[null,null,null,null,null,null,null,"MAR-01.01.01-FEAMP-0201","PESCARIAS VIANEZ, UNIPESSOAL LDA","AVÔ VIANEZ  PV-271-C -  PRT000020258","DRAP Norte",7774663,79853.25,31720,11895,3965,"2017-01-01","2018-12-31"]
[null,null,null,null,null,null,null,"MAR-01.01.03-FEAMP-0204","ANTÓNIO FIGUEIREDO TORRÃO","FÁTIMA TORRÃO  PV-333-C -  PRT000023662","DRAP Norte",7090743,78870,78870,11830.5,11830.5,"2018-04-01","2019-07-30"]
[null,null,null,null,null,null,null,"MAR-01.01.01-FEAMP-0205","MÁRIO VICENTE ARTEIRO FANGUEIRO","ALGAMAR, SN-833-C -  PRT000022478","DRAP Alentejo",7080354,45746,40696,15261,5087,"2017-01-08","2018-12-31"]
[null,null,null,null,null,null,null,"MAR-01.01.03-FEAMP-0206","VENÂNCIO JOSÉ PINHEIRO DA SILVA","CHINESA  C-1194-L - PRT000023489","DRAP Norte",9001815,4458,4458,668.7,668.7,"2017-10-16","2018-05-31"]
[null,null,null,null,null,null,null,"MAR-01.01.03-FEAMP-0208","ROSA AREIAS- ACTIVIDADES DE PESCA, LDA,","SANTA MARIA das AREIAS  AN-194-C - PRT000023099","DRAP Norte",7315602,118356,101386,15207.9,15207.9,"2018-06-01","2019-12-31"]
[null,null,null,null,null,null,null,"MAR-01.01.01-FEAMP-0209","ROSA AREIAS- ACTIVIDADES DE PESCA, LDA,","SANTA MARIA das AREIAS  AN-194-C -  PRT000023099","DRAP Norte",7315602,149077.41,120495.4,72297.240000000005,24099.08,"2018-05-28","2019-12-31"]
[null,null,null,null,null,null,null,"MAR-01.01.03-FEAMP-0210","MANUEL VIANA DE SÁ","SENHORA da AGONIA  AN-193-C -  PRT000023172","DRAP Norte",7090124,147541,118326,17748.900000000001,17748.900000000001,"2018-06-01","2019-12-31"]
[null,null,null,null,null,null,null,"MAR-01.01.01-FEAMP-0211","MANUEL VIANA DE SÁ","SENHORA da AGONIA  AN-193-C -  PRT000023172","DRAP Norte",7090124,147827.41,106127.4,63676.44,21225.48,"2018-06-01","2019-12-31"]
[null,null,null,null,null,null,null,"MAR-01.01.01-FEAMP-0212","TESTA & CUNHAS S,A,","LEONIS A-3670-C -  PRT000023047","DRAP Centro",7067984,66770.259999999995,66770.259999999995,25038.85,8346.2800000000007,"2017-06-01","2019-04-30"]
[null,null,null,null,null,null,null,"MAR-01.01.01-FEAMP-0213","Aires Brites Unipessoal, lda,","HÉLDER JOSÉ FN-1647-C","DRP Madeira",9355085,80753.350000000006,80753.350000000006,42395.51,14131.84,"2017-08-21","2018-08-21"]
[null,null,null,null,null,null,null,"MAR-01.01.03-FEAMP-0214","Aires Brites Unipessoal, lda,","Substituição do motor embarcação HÉLDER JOSÉ FN-1647-C","DRP Madeira",9355085,49500,49500,7425,7425,"2017-08-21","2018-08-21"]
[null,null,null,null,null,null,null,"MAR-01.01.01-FEAMP-0215","DOMINGOS MANUEL FANGUEIRO POSTIGA","VEM SE VIER  VC-270-C -  PRT000023042","DRAP Norte",7941165,96795,84245,31591.88,10530.62,"2018-08-28","2019-11-15"]
[null,null,null,null,null,null,null,"MAR-01.01.01-FEAMP-0217","LÁZARO MIRANDA ARTEIRO E JOSÉ ALBERTO DOS SANTOS ARTEIRO","MESTRE LÁZARO  PV-289-C -  PRT000021400","DRAP Norte",7280476,121960,27675,10378.129999999999,3459.37,"2017-09-01","2018-04-30"]
[null,null,null,null,null,null,null,"MAR-01.01.01-FEAMP-0218","SOCIEDADE PESCA FOZ DA NAZARE, LDA","FOZ da NAZARÉ L-2046-C -  PRT000001636","DRAP Norte",7074953,142860,142860,53572.5,17857.5,"2017-06-15","2020-07-02"]
[null,null,null,null,null,null,null,"MAR-01.01.03-FEAMP-0219","CARLOS JOSÉ REIS LAGOELA","VAMOS ANDANDO, ES-302-L -  PRT000022188","DRAP Norte",7810096,15597,15597,2339.5500000000002,2339.5500000000002,"2017-10-16","2018-05-31"]
[null,null,null,null,null,null,null,"MAR-01.01.03-FEAMP-0220","HUGO JORGE CARVALHO EIRAS","PRINCESA do MAR,  ES-322-L -  PRT000022191","DRAP Norte",8029003,15597,15597,2339.5500000000002,2339.5500000000002,"2017-10-16","2018-05-31"]
[null,null,null,null,null,null,null,"MAR-01.01.03-FEAMP-0222","PAULO JOSÉ DA CONCEIÇÃO TRINDADE","PICA  PE-2483-L -  PRT000024462","DRAP Lisboa e Vale do Tejo - Oeste",9002181,7358,7358,1103.7,1103.7,"2017-09-15","2018-03-31"]
[null,null,null,null,null,null,null,"MAR-01.01.03-FEAMP-0223","JOSÉ AUGUSTO LEAL DA LUZ ALEXANDRE","AVÔ ZÉ, SA-655-L -  PRT000021483","DRAP Algarve",8994534,10764.94,10764.94,1614.74,1614.74,"2017-09-01","2018-02-28"]
[null,null,null,null,null,null,null,"MAR-01.01.01-FEAMP-0224","LUÍS VICENTE SOARES ROLÃO","ATÉ JÁ  F-1106-L  -  PRT000023824","DRAP Algarve",7451854,18329,8059,4835.3999999999996,1611.8,"2017-10-01","2018-10-01"]
[null,null,null,null,null,null,null,"MAR-01.01.01-FEAMP-0225","JOSÉ MIGUEL PEREIRA CASTRO","TRAVESSO, A-3433-C -  PRT000020106","DRAP Centro",7168362,10100,10100,6060,2020,"2017-09-26","2018-08-31"]
[null,null,null,null,null,null,null,"MAR-01.01.01-FEAMP-0226","JOSÉ MANUEL DE SOUSA  NUNES","Modernização da embarcação ARAUS PS-92-C","DRP Madeira",7504692,10207.5,9308.9,5147.05,1715.68,"2017-12-01","2018-08-25"]
[null,null,null,null,null,null,null,"MAR-01.01.01-FEAMP-0231","PORTIGRALHA - SOCIEDADE DE PESCA, LDA","PORTIPESCA  VC-259-C - PRT000022528","DRAP Norte",8182153,134248.89000000001,39048,14643,4881,"2017-01-01","2018-12-31"]
[null,null,null,null,null,null,null,"MAR-01.01.01-FEAMP-0232","MESTRE DA GALILEIA DE RAMIRO & EMÍLIA - EMPRESA DE PESCA, LDA,","MESTRE da GALILEIA P-2150-C -  PRT000022467","DRAP Norte",7215075,13825,13095,7857,2619,"2018-02-20","2019-07-31"]
[null,null,null,null,null,null,null,"MAR-01.01.03-FEAMP-0233","MESTRE DA GALILEIA DE RAMIRO & EMÍLIA - EMPRESA DE PESCA, LDA,","MESTRE da GALILEIA, P-2150-L - PRT000022467","DRAP Norte",7215075,78442,78442,11766.3,11766.3,"2018-02-20","2019-07-31"]
[null,null,null,null,null,null,null,"MAR-01.01.01-FEAMP-0234","ROGÉRIO FILIPE RAMOS DE SOUSA","TANIA ANDREIA, FZ-895-L  -  PRT000023113","DRAP Algarve",7277911,9107,7551,4530.6000000000004,1510.2,"2017-10-01","2019-09-30"]
[null,null,null,null,null,null,null,"MAR-01.01.01-FEAMP-0235","JOSÉ TIAGO ROMEIRA BOTEQUILHA","EBENEZER, O-2172-L - PRT000023179","DRAP Algarve",8217082,13980,5270,3162,1054,"2017-10-01","2018-05-01"]
[null,null,null,null,null,null,null,"MAR-01.01.01-FEAMP-0236","CALAFISH, UNIPESSOAL LIMITADA","HEMISFÉRIO NORTE V-1105-N - PRT000019088","DRAP Norte",8999303,1753935,1218759,457034.63,152344.87,"2017-06-15","2018-12-31"]
[null,null,null,null,null,null,null,"MAR-01.01.03-FEAMP-0237","JOSÉ ANAZÁRIO LOPES CARVALHO","POMBA BRANCA  SB-739-L - PRT000004013","DRAP Lisboa e Vale do Tejo - Oeste",9026426,1231.71,1231.71,184.76,184.75,"2017-11-01","2017-12-31"]
[null,null,null,null,null,null,null,"MAR-01.01.01-FEAMP-0238","JOÃO FILIPE ESTIMA VIEIRA","DUAS ANINHAS  VC-255-C - PRT000021410","DRAP Norte",7304434,3928,3928,1473,491,"2017-11-01","2019-04-30"]
[null,null,null,null,null,null,null,"MAR-01.01.01-FEAMP-0239","MARCOS MANUEL LAPA CORREIA","TREVO DA FELICIDADE, P-2183-L - PRT000022797","DRAP Norte",7280155,11535,3535,2121,707,"2017-12-01","2019-05-30"]
[null,null,null,null,null,null,null,"MAR-01.01.01-FEAMP-0240","JOSÉ AMÂNDIO LUÍS DOS REIS","LEANDRO EMANUEL, F-987-L - PRT000021786","DRAP Algarve",7577311,13580,2980,1788,596,"2017-11-01","2018-12-01"]
[null,null,null,null,null,null,null,"MAR-01.01.01-FEAMP-0241","TESTA & CUNHAS S,A,","SAGITARIUS, A-3636-C - PRT000022690","DRAP Centro",7067984,68122.259999999995,68122.259999999995,25545.85,8515.2800000000007,"2017-07-31","2018-12-31"]
[null,null,null,null,null,null,null,"MAR-01.01.03-FEAMP-0245","AAPCS AAPCS - ASSOCIAÇÃO DE ARMADORES DE PESCA LOCAL E ARTESANAL DO CENTRO E SUL","ALVA,  SB-1332-L - PRT000024399","DRAP Lisboa e Vale do Tejo - Oeste",9000545,9115.98,9115.98,1367.4,1367.39,"2017-11-23","2018-12-31"]
[null,null,null,null,null,null,null,"MAR-01.01.01-FEAMP-0247","JOSÉ MANUEL DA SILVA COENTRÃO","HERANÇA de DEUS  VC-246-C - PRT000020589","DRAP Norte",8217607,36890,36890,13833.75,4611.25,"2017-12-01","2019-05-31"]
[null,null,null,null,null,null,null,"MAR-01.01.01-FEAMP-0248","VICENTE SALVADOR MAIO PEREIRA","POLO NORTE,  PV-307-C  -  PRT000023200","DRAP Norte",7325577,31900,31900,11962.5,3987.5,"2018-07-01","2020-05-31"]
[null,null,null,null,null,null,null,"MAR-01.01.03-FEAMP-0249","HUMBERTO JOÃO BATISTA LEANDRO","ROMEU E SOFIA , SB-1318-L  - PRT000021442","DRAP Lisboa e Vale do Tejo - Oeste",9029316,9101.32,6887,1033.05,1033.05,"2015-10-12","2018-04-11"]
[null,null,null,null,null,null,null,"MAR-01.01.01-FEAMP-0250","JOSÉ ANTÓNIO RIO SOARES","MAR AS ONDAS, LG-1315-L  -  PRT000021793","DRAP Algarve",8879603,12072.14,7000,4200,1400,"2018-02-09","2018-03-31"]
[null,null,null,null,null,null,null,"MAR-01.01.01-FEAMP-0252","TORRES & GAGO - SOCIEDADE DE PESCA, LDA,","BALUEIRO, O-2178-N - PRT000023097","DRAP Algarve",9043997,1753935,159462.73000000001,59798.54,19932.830000000002,"2015-01-01","2019-12-31"]
[null,null,null,null,null,null,null,"MAR-01.01.03-FEAMP-0253","MARTINHO JOSÉ VIEIRA DE PASSOS","CARLA DIANA  C-1300-L -  PRT000024912","DRAP Norte",9032601,5702.59,5702.59,855.39,855.39,"2018-01-15","2018-06-30"]
[null,null,null,null,null,null,null,"MAR-01.01.01-FEAMP-0255","TESTA & CUNHAS S,A,","NEPTUNO, A-3346-C - PRT000019696","DRAP Centro",7067984,66764.259999999995,66764.259999999995,25036.6,8345.5300000000007,"2017-10-20","2018-12-31"]
[null,null,null,null,null,null,null,"MAR-01.01.03-FEAMP-0258","ANTÓNIO ILÍDIO DA QUINTA DIAS","PATRICÍA ALEXANDRA  ES-342-L  -  PRT000024125","DRAP Norte",8137932,12684,12684,1902.6,1902.6,"2018-01-21","2018-05-31"]
[null,null,null,null,null,null,null,"MAR-01.01.01-FEAMP-0260","ESPÍRITO GLORIOSO - UNIPESSOAL LDA","BRANCA DE SAGRES  SA-522-C - PRT000020092","DRAP Algarve",9041596,7195,7195,2698.13,899.37,"2018-02-01","2018-06-30"]
[null,null,null,null,null,null,null,"MAR-01.01.03-FEAMP-0261","ABRAÃO DE JESUS MOREIRA","ABRAÃO MIGUEL P-2148-C -  PRT000022841","DRAP Norte",7084754,66543,59537,8930.5499999999993,8930.5499999999993,"2018-03-01","2018-10-31"]
[null,null,null,null,null,null,null,"MAR-01.01.01-FEAMP-0262","JOAQUIM LUÍS DOS SANTOS","RIO MIRA, PM-501-C - PRT000000387","DRAP Algarve",7540753,30970,30970,11613.75,3871.25,"2018-01-31","2018-04-24"]
[null,null,null,null,null,null,null,"MAR-01.01.01-FEAMP-0263","PAULO CARLOS BARBOSA PACHECO","OCEANO ATLÂNTICO  V-1087-C - PRT000023709","DRAP Norte",8186402,41150,38650,14493.75,4831.25,"2017-12-02","2018-12-31"]
[null,null,null,null,null,null,null,"MAR-01.01.03-FEAMP-0266","VASCO MIGUEL PINTO SEROMENHO","TRAINEL, Q-1141-L - PRT000023167","DRAP Algarve",9145491,9500,9500,1425,1425,"2018-02-01","2020-01-17"]
[null,null,null,null,null,null,null,"MAR-01.01.01-FEAMP-0267","TESTA & CUNHAS S,A,","CALYPSO, A-3527-C - PRT000021508","DRAP Centro",7067984,41884.26,41884.26,15706.6,5235.53,"2017-12-06","2018-12-31"]
[null,null,null,null,null,null,null,"MAR-01.01.03-FEAMP-0270","CARLOS MANUEL DA SILVA VIEIRA","TANIA VIEIRA, A-3596-L - PRT000022615","DRAP Centro",9156507,2600,2600,390,390,"2018-03-01","2018-08-31"]
[null,null,null,null,null,null,null,"MAR-01.01.03-FEAMP-0271","IDALÉCIO DA SILVA ESPADA","ESTRELA DO ORIENTE, S-2159-L - PRT000020429","DRAP Lisboa e Vale do Tejo - Oeste",9029904,8300,8300,1245,1245,"2018-02-12","2018-08-30"]
[null,null,null,null,null,null,null,"MAR-01.01.01-FEAMP-0273","ÂNCORADELTAS - LDA,","MÃE PADROEIRA  P-2111-L - PRT000020116","DRAP Norte",7736332,43620,15835.6,9501.36,3167.12,"2016-01-01","2019-08-31"]
[null,null,null,null,null,null,null,"MAR-01.01.01-FEAMP-0277","ARMANDO SERRÃO & JOSÉ SERRÃO, LDA,","Modernização da Embarcação de Pesca Mestre Gregorio FN-1741-C","DRP Madeira",7637407,37460,37460,19666.5,6555.5,"2017-11-17","2018-12-31"]
[null,null,null,null,null,null,null,"MAR-01.01.01-FEAMP-0278","MANUEL E FÁBIO LDA,","S, JOÃO BATISTA, VR-548-C - PRT000000484","DRAP Algarve",9007707,83412,41640,15615,5205,"2017-02-15","2019-12-31"]
[null,null,null,null,null,null,null,"MAR-01.01.01-FEAMP-0279","RAINHA DOS MILAGRES, UNIPESSOAL, LDA","RAINHA dos MILAGRES  P-2195-C - PRT000023702","DRAP Norte",9161876,11157,10300,6180,2060,"2018-03-01","2019-03-31"]
[null,null,null,null,null,null,null,"MAR-01.01.01-FEAMP-0280","SEBASTIAO PAULO & FILHOS, LDA,","BEATRIZ PAULO  SB-1260-C - PRT000020591","DRAP Lisboa e Vale do Tejo - Oeste",7086416,26000,26000,9750,3250,"2018-01-19","2019-04-30"]
[null,null,null,null,null,null,null,"MAR-01.01.03-FEAMP-0281","PAULO JORGE DA SILVA GUERREIRO","MAR CHÃO  S-2184-L - PRT000024926","DRAP Lisboa e Vale do Tejo - Oeste",7356316,10374.75,10056,1508.4,1508.4,"2016-06-19","2018-08-30"]
[null,null,null,null,null,null,null,"MAR-01.01.01-FEAMP-0282","DESEJO IDEAL - PESCA LDA","PRINCESA DE PENICHE  PE-2226-C - PRT000020246","DRAP Lisboa e Vale do Tejo - Oeste",7508322,63600,63600,23850,7950,"2018-08-01","2019-12-31"]
[null,null,null,null,null,null,null,"MAR-01.01.01-FEAMP-0284","JOSÉ MANUEL MARQUES PEREIRA","PÉROLA do MAR  PV-320-C - PRT000001156","DRAP Norte",7079335,37350,33850,12693.75,4231.25,"2017-08-01","2019-12-31"]
[null,null,null,null,null,null,null,"MAR-01.01.03-FEAMP-0286","PEDRO NUNO CARETAS BAPTISTA","JOAO MIGUEL, SN-664-C (atual PAI LOURENÇO, SB-1359-C)-PRT000018894","DRAP Alentejo",9167923,15500,15500,2325,2325,"2018-03-01","2019-01-31"]
[null,null,null,null,null,null,null,"MAR-01.01.01-FEAMP-0287","ISAAC MARQUES PEREIRA","MAR PACÍFICO  VC-254-C - PRT000021402","DRAP Norte",7239383,59720,48520,18195,6065,"2018-10-01","2019-12-31"]
[null,null,null,null,null,null,null,"MAR-01.01.01-FEAMP-0289","ZACARIAS MAIO PEREIRA","MELHORZINHO do MUNDO, PV-336-C - PRT000022476","DRAP Norte",7312952,63886.8,26981.8,10118.18,3372.72,"2017-07-01","2019-06-14"]
[null,null,null,null,null,null,null,"MAR-01.01.03-FEAMP-0291","JAIME MANUEL FERREIRA DA COSTA","SANTO ANTÓNIO  C-1039-L - PRT000022546","DRAP Norte",9136101,5701.6,5701.6,855.24,855.24,"2018-03-20","2018-07-30"]
[null,null,null,null,null,null,null,"MAR-01.01.01-FEAMP-0292","RAINHA DOS MILAGRES, UNIPESSOAL, LDA","RAINHA dos MILAGRES P-2195-C - PRT000023702","DRAP Norte",9161876,2290.04,2290.04,1374.02,458.01,"2018-04-01","2018-12-31"]
[null,null,null,null,null,null,null,"MAR-01.01.01-FEAMP-0294","TESTA & CUNHAS S,A,","DELPHINUS, A-3602-C - PRT000022471","DRAP Centro",7067984,67469.259999999995,67469.259999999995,25300.97,8433.66,"2018-03-27","2019-12-31"]
[null,null,null,null,null,null,null,"MAR-01.01.03-FEAMP-0300","JOSÉ MANUEL DE LIMA NIBRA","FLECHA ES-329-L - Aq, Motor - PRT000023402","DRAP Norte",7071421,11720,11720,1758,1758,"2018-05-01","2018-10-31"]
[null,null,null,null,null,null,null,"MAR-01.01.03-FEAMP-0301","LIZUARTE DA BALINHA CORREIA","NOSSA SENHORA do CARMO  V-183-L - PRT000003451","DRAP Norte",7159316,4600,4600,690,690,"2018-05-02","2018-07-30"]
[null,null,null,null,null,null,null,"MAR-01.01.01-FEAMP-0303","JORGE MANUEL DO REGO BRAGA","Modernização do Convés da embarcação Caboz PD-536-L","DRP Açores",6409951,1321.77,1321.77,842.63,280.87,"2018-09-01","2019-05-31"]
[null,null,null,null,null,null,null,"MAR-01.01.03-FEAMP-0305","IVÃ ANDRÉ MENDONÇA BECHINHO","SARGUETE, O-2234-L - PRT000023445","DRAP Algarve",7189323,17852.43,11440.99,1716.15,1716.15,"2018-10-01","2018-12-31"]
[null,null,null,null,null,null,null,"MAR-01.01.01-FEAMP-0307","CARLOS MIGUEL PRADO LEAL","GAIVINA, FZ-867-L - PRT000023948","DRAP Algarve",7748855,19651.669999999998,10302.98,6181.79,2060.59,"2018-05-15","2019-12-01"]
[null,null,null,null,null,null,null,"MAR-01.01.03-FEAMP-0308","JOSÉ AMÂNDIO LUÍS DOS REIS","LEANDRO EMANUEL, F-987-L - PRT000021786","DRAP Algarve",7577311,12402.28,11429.07,1714.36,1714.36,"2018-03-01","2019-12-01"]
[null,null,null,null,null,null,null,"MAR-01.01.03-FEAMP-0312","JOSÉ LUÍS DA ENCARNAÇÃO TAVARES","ROAZ, FZ-896-L - PRT000022189","DRAP Algarve",9136461,10952,10952,1642.8,1642.8,"2018-06-01","2020-12-01"]
[null,null,null,null,null,null,null,"MAR-01.01.03-FEAMP-0316","BRUNO CARVALHO CERQUEIRA PAULO","BELINHA  SB-1357-L - PRT000025017","DRAP Lisboa e Vale do Tejo - Oeste",9236984,7339.93,7339.93,1100.99,1100.99,"2018-05-30","2018-06-30"]
[null,null,null,null,null,null,null,"MAR-01.01.01-FEAMP-0319","EDUÍNO PERINHO, UNIPESSOAL, LDA,","Aquisição de 1 dessalinizador, embarcação Goretti Perinho, VP-245-C","DRP Açores",8237426,7976,7976,5084.7,1694.9,"2017-12-30","2018-12-31"]
[null,null,null,null,null,null,null,"MAR-01.01.01-FEAMP-0320","PESCAFIXE, UNIPESSOAL, LDA,","Aquisição de 1 dessalinizador, embarcação Ilha Amarela VP-250-C","DRP Açores",7554447,7976,7976,5084.7,1694.9,"2017-12-30","2018-12-31"]
[null,null,null,null,null,null,null,"MAR-01.01.03-FEAMP-0321","FRANCISCO JOSÉ RAMOS FORTUNATO","ESTRELA CADENTE  PV-321-C - PRT000020677","DRAP Norte",7385954,74730,67441,10116.15,10116.15,"2018-09-01","2020-02-28"]
[null,null,null,null,null,null,null,"MAR-01.01.03-FEAMP-0322","NOÉ FELICIANO DO VALE GUIMARÃES","FUZILEIRO, C-991-L - PRT000020641","DRAP Norte",7688364,5701.6,5701.6,855.24,855.24,"2018-06-25","2018-09-30"]
[null,null,null,null,null,null,null,"MAR-01.01.03-FEAMP-0324","JOSÉ LUIS DA COSTA RODRIGUES","TONY  C-1147-L - PRT000022583","DRAP Norte",9212154,5020,4093,613.95000000000005,613.95000000000005,"2018-06-08","2018-10-31"]
[null,null,null,null,null,null,null,"MAR-01.01.03-FEAMP-0328","JOSÉ ANTÓNIO LAZERA GRAÇA","O CAXINEIRO N-2536-L - PRT000023226","DRAP Lisboa e Vale do Tejo - Oeste",9251763,8000,8000,1200,1200,"2018-07-26","2018-10-31"]
[null,null,null,null,null,null,null,"MAR-01.01.01-FEAMP-0329","FRANCISCO ANTÓNIO FERREIRA GONÇALVES","JESUS VALEI-NOS  P-2187-C - PRT000022483","DRAP Norte",7316192,6300,6300,3780,1260,"2018-07-01","2019-03-31"]
[null,null,null,null,null,null,null,"MAR-01.01.01-FEAMP-0335","PESCAS DE RITA AMARAL & FILHOS, LDA,","Melhorias das condições de trabalho embarcação Pepe Cumbrera, PD-600-C","DRP Açores",6410126,308642.19,308642.19,150463.10999999999,50154.32,"2018-10-15","2019-09-30"]
[null,null,null,null,null,null,null,"MAR-01.01.01-FEAMP-0337","MANUEL DE OLIVEIRA SANGUEDO","NELINHO  P-2166-C - PRT000023215","DRAP Norte",7315946,6300,6300,3780,1260,"2018-09-01","2019-12-31"]
[null,null,null,null,null,null,null,"MAR-01.01.01-FEAMP-0339","ARRAIA PESCAS, LDA,","Aquisição de rádio para a embarcação Flor da Horta, H-209-C","DRP Açores",9256725,6136.5,6136.5,3912.02,1304.01,"2018-10-01","2019-04-30"]
[null,null,null,null,null,null,null,"MAR-01.01.01-FEAMP-0340","EDUARDO PACHECO SOARES & FILHOS, LDA,","Aquisição de um dessalinizador embarcação Mestre Soares, VP-236-C","DRP Açores",7180467,7976,7976,3888.3,1296.0999999999999,"2019-07-20","2019-12-31"]
[null,null,null,null,null,null,null,"MAR-01.01.03-FEAMP-0341","ULISSES RIBEIRO GOMES AZEVEDO","PORTUGAL  ES-344-L - PRT000023730","DRAP Norte",7080563,23636.87,14807.15,2221.08,2221.0700000000002,"2018-09-30","2019-09-30"]
[null,null,null,null,null,null,null,"MAR-01.01.03-FEAMP-0342","PAULO JOSÉ DOS SANTOS PEREIRA","BELO HORIZONTE, O-2107-L - PRT000021811","DRAP Algarve",7404184,10433,10433,1564.95,1564.95,"2018-09-14","2020-09-30"]
[null,null,null,null,null,null,null,"MAR-01.01.01-FEAMP-0343","SOCIEDADE LISBONENSE DE PESCA DE BACALHAU LDA","MAR SALGADO, A-3611-C - PRT000019414","DRAP Centro",7211143,43070,43070,16151.25,5383.75,"2017-10-01","2019-11-30"]
[null,null,null,null,null,null,null,"MAR-01.01.03-FEAMP-0345","EDUARDO DOS SANTOS DO ROSÁRIO","NOVO RUMO, O-2036-L - PRT000020155","DRAP Algarve",7273936,11052.03,11052.03,1657.81,1657.8,"2018-09-20","2019-06-30"]
[null,null,null,null,null,null,null,"MAR-01.01.01-FEAMP-0350","JOSÉ CARLOS GONÇALVES CASCÃO","REINO do DRAGÃO  P-2033-C - PRT000001596","DRAP Norte",7633112,50600,42200,15825,5275,"2019-04-01","2019-12-31"]
[null,null,null,null,null,null,null,"MAR-01.01.01-FEAMP-0352","ROSA AREIAS- ACTIVIDADES DE PESCA, LDA,","SANTA MARIA DAS AREIAS,  AN-194-C - PRT000023099","DRAP Norte",7315602,30600,30600,18360,6120,"2019-06-01","2019-12-31"]
[null,null,null,null,null,null,null,"MAR-01.01.01-FEAMP-0353","MANUEL VIANA DE SÁ","SENHORA DA AGONIA, AN-193-C - PRT000023172","DRAP Norte",7090124,30100,30100,18060,6020,"2018-06-01","2019-12-31"]
[null,null,null,null,null,null,null,"MAR-01.01.01-FEAMP-0354","TESTA & CUNHAS S,A,","NEPTUNO,  A-3346-C - PRT000019696","DRAP Centro",7067984,52230.04,52230.04,19586.27,6528.75,"2018-10-22","2019-03-31"]
[null,null,null,null,null,null,null,"MAR-01.01.01-FEAMP-0358","TESTA & CUNHAS S,A,","SCORPIUS, A-3570-C - PRT000022722","DRAP Centro",7067984,111317.31,109989.3,41245.99,13748.66,"2018-09-01","2019-04-30"]
[null,null,null,null,null,null,null,"MAR-01.01.01-FEAMP-0359","TESTA & CUNHAS S,A,","CENTAURUS, A-3608-C - PRT000022670","DRAP Centro",7067984,119523.91,119523.91,44821.47,14940.49,"2018-05-01","2019-04-30"]
[null,null,null,null,null,null,null,"MAR-01.01.01-FEAMP-0360","TESTA & CUNHAS S,A,","DENEB, A-3509-C - PRT000019301","DRAP Centro",7067984,94545.91,94545.91,35454.720000000001,11818.24,"2018-06-18","2019-03-31"]
[null,null,null,null,null,null,null,"MAR-01.01.03-FEAMP-0361","LUÍS MIGUEL CÂNDIDO GOMES","SÃO JOSÉ II, AL-508-L - PRT000020143","DRAP Algarve",9244852,10937.8,10937.8,1640.67,1640.67,"2018-10-02","2019-10-01"]
[null,null,null,null,null,null,null,"MAR-01.01.03-FEAMP-0364","VÍTOR MANUEL VIEIRA FIDALGO","MEU SONHO,  A-3626-L - PRT000022742","DRAP Centro",7312213,3151.17,3151.17,472.68,472.67,"2018-11-18","2019-12-31"]
[null,null,null,null,null,null,null,"MAR-01.01.03-FEAMP-0365","ARMÉNIO DO CARMO BAGARRÃO","IEMANJA, F-985-L - PRT000021965","DRAP Algarve",7668321,11607,11607,1741.05,1741.05,"2018-12-16","2019-12-31"]
[null,null,null,null,null,null,null,"MAR-01.01.03-FEAMP-0366","ALBERTO RODRIGO DO CARMO","VAI COM CALMA, O-2167-L - PRT000023565","DRAP Algarve",7091553,11713,11713,1756.95,1756.95,"2018-11-24","2019-12-31"]
[null,null,null,null,null,null,null,"MAR-01.01.01-FEAMP-0367","JOSÉ EDUARDO PEREIRA DA SILVA","Melhoria das estruturas de abrigo do convés, embarcação Arcturus, SG-279-L","DRP Açores",8231886,4794.25,4794.25,3056.33,1018.78,"2018-12-15","2019-10-31"]
[null,null,null,null,null,null,null,"MAR-01.01.03-FEAMP-0368","JOSÉ PAULO TAVARES BRAVO","FLOR,  A-3780-L - PRT000023993","DRAP Centro",9282904,2724.34,2724.34,408.65,408.65,"2018-12-06","2019-12-31"]
[null,null,null,null,null,null,null,"MAR-01.01.01-FEAMP-0370","EMPRESA DE PESCA S,JACINTO, SA","AUGUSTO DA CUNHA JUNIOR A-3612-C - PRT000001712","DRAP Centro",7178035,42170,42170,15813.75,5271.25,"2018-09-01","2019-11-30"]
[null,null,null,null,null,null,null,"MAR-01.01.01-FEAMP-0371","PARALELO - SOCIEDADE DE PESCAS, LDA,","PARALELO, VC-296-C - PRT000001583","DRAP Norte",7719902,205868.09,199868.09,74950.539999999994,24983.51,"2017-12-15","2020-09-30"]
[null,null,null,null,null,null,null,"MAR-01.01.03-FEAMP-0372","ANTÓNIO CARLOS MARQUES JUSTINO","DOIS NETOS,  SB-1327-L - PRT000023601","DRAP Lisboa e Vale do Tejo - Oeste",9289823,1170,1170,175.5,175.5,"2018-12-18","2019-02-28"]
[null,null,null,null,null,null,null,"MAR-01.01.01-FEAMP-0373","JOÃO VICENTE M, SILVA","Modernização da embarcação de pesca PORTO FRANCO FN-1643-C","DRP Madeira",7077487,296123.03000000003,295795.43,155292.6,51764.2,"2018-12-03","2020-03-31"]
[null,null,null,null,null,null,null,"MAR-01.01.03-FEAMP-0374","PAULO EMANUEL BAPTISTA FERREIRA","ALEXANDRE, A-2054-L - PRT000013013","DRAP Centro",9285036,2032.52,2032.52,304.88,304.88,"2018-12-13","2019-12-31"]
[null,null,null,null,null,null,null,"MAR-01.01.01-FEAMP-0375","FERNANDO ALVES NUNES","Modernização da embarcação de pesca SÃO IRINEU FN-1656-C","DRP Madeira",7194606,29452.76,29372.26,15420.44,5140.1400000000003,"2018-12-03","2019-12-31"]
[null,null,null,null,null,null,null,"MAR-01.01.01-FEAMP-0376","ABRAÃO DE JESUS MOREIRA","ABRAÃO MIGUEL  P-2148-C - PRT000022841","DRAP Norte",7084754,6300,6300,2362.5,787.5,"2018-12-01","2019-12-31"]
[null,null,null,null,null,null,null,"MAR-01.01.01-FEAMP-0377","JOÃO VIANA DA SILVA","ANTÓNIO e GUIA  PV-272-C - PRT000020575","DRAP Norte",7079351,7700,7700,2887.5,962.5,"2019-03-08","2020-09-30"]
[null,null,null,null,null,null,null,"MAR-01.01.01-FEAMP-0380","MARCO DANIEL VIEIRA MONIZ","Aquisição de rádio GMDSS para a embarcação Conde do Mar, SG-268-C","DRP Açores",8821361,6616.5,6616.5,4218.0200000000004,1406.01,"2018-10-29","2020-06-26"]
[null,null,null,null,null,null,null,"MAR-01.01.01-FEAMP-0381","FERNANDO ALVES, SOCIEDADE UNIPESSOAL, LDA,","Beneficiação/modificação da embarcação Bela Aurora, H-220-C","DRP Açores",8229976,55967.99,55967.99,27284.400000000001,9094.7900000000009,"2018-11-28","2020-05-31"]
[null,null,null,null,null,null,null,"MAR-01.01.01-FEAMP-0382","FERNANDO ALVES, SOCIEDADE UNIPESSOAL, LDA,","Beneficiação/modificação da embarcação Bela Aurora, H-220-C","DRP Açores",8229976,103775,103775,50590.32,16863.43,"2018-11-28","2020-05-31"]
[null,null,null,null,null,null,null,"MAR-01.01.03-FEAMP-0390","LUÍS MANUEL GOMES FARINHA","CARLOS E SÉRGIO, SB-1238-L - PRT000020970","DRAP Lisboa e Vale do Tejo - Oeste",7689197,3176,3176,476.4,476.4,"2019-02-28","2019-06-30"]
[null,null,null,null,null,null,null,"MAR-01.01.01-FEAMP-0391","NUNO MIGUEL SILVA SOARES","Aquisição de GPS para a embarcação, Santo Messias, PD-661-C","DRP Açores",9309652,2476,2476,1578.45,526.15,"2019-02-01","2020-07-31"]
[null,null,null,null,null,null,null,"MAR-01.01.01-FEAMP-0392","TERROSO & TORRÃO, LDA","SUESTE, VR-544-C - PRT000019416","DRAP Algarve",8933556,238360,193416.19,72531.08,24177.02,"2018-06-15","2019-12-31"]
[null,null,null,null,null,null,null,"MAR-01.01.03-FEAMP-0395","RAINHA DOS MILAGRES, UNIPESSOAL, LDA","RAINHA dos MILAGRES  P-2195-C - PRT000023702","DRAP Norte",9161876,88330,75530,11329.5,11329.5,"2019-03-01","2020-12-31"]
[null,null,null,null,null,null,null,"MAR-01.01.03-FEAMP-0396","FRANCISCO RUI DO CARMO MENDONÇA","PAI E FILHO, O-2235-L  -  PRT000024874","DRAP Algarve",7072092,7571.41,2752,412.8,412.8,"2019-02-01","2020-03-01"]
[null,null,null,null,null,null,null,"MAR-01.01.01-FEAMP-0397","SOCIEDADE DE PESCA SOUSA & MILHAZES, LDA","MARGHERITA, PV-334-C - PRT000020363","DRAP Norte",8441411,70225,60725,22771.88,7590.62,"2018-06-11","2019-12-31"]
[null,null,null,null,null,null,null,"MAR-01.01.01-FEAMP-0398","PESCALEÇA - SOCIEDADE PORTUGUESA DE PESCA, LDA,","MAR IBÉRICO  L-2045-C - PRT000020935","DRAP Norte",7075643,402672.62,202422.62,75908.490000000005,25302.82,"2017-06-01","2019-12-31"]
[null,null,null,null,null,null,null,"MAR-01.01.01-FEAMP-0400","MANUEL AGONIA DA SILVA MARQUES","SILVA MARQUES, VC-243-C - PRT000020502","DRAP Norte",8989003,15000,15000,5625,1875,"2019-07-01","2020-09-30"]
[null,null,null,null,null,null,null,"MAR-01.01.01-FEAMP-0401","COSTA & COENTRÃO PESCA ARTESANAL, LDA","PACIFICO NORTE, PV-340-C - PRT000019130","DRAP Norte",8990254,3490,3490,2094,698,"2019-02-11","2020-02-11"]
[null,null,null,null,null,null,null,"MAR-01.01.01-FEAMP-0402","MARINO MANUEL MARQUES DA CUNHA FOLHA","FOLHA SANTOS  L-2083-L - PRT000024838","DRAP Norte",7706913,19601,19141.7,11485.02,3828.34,"2019-08-01","2019-12-31"]
[null,null,null,null,null,null,null,"MAR-01.01.01-FEAMP-0407","LUIS MANUEL MONIZ PENACHO","Aquisição de rádio GMDSS para a embarcação Meu Anjo da Guarda, PD-672-C","DRP Açores",7181173,6336.71,6336.71,4039.65,1346.55,"2019-03-07","2020-08-31"]
[null,null,null,null,null,null,null,"MAR-01.01.03-FEAMP-0410","IVÃ ANDRÉ MENDONÇA BECHINHO","VENCEDOR, O-2161-L - PRT000023342","DRAP Algarve",7189323,12338,9909,1486.35,1486.35,"2019-10-31","2020-02-29"]
[null,null,null,null,null,null,null,"MAR-01.01.03-FEAMP-0411","JOÃO MANJUA BUCHINHO","FILHOS E PAI, O-2157-L - PRT000023144","DRAP Algarve",7360813,12398.13,9909,1486.35,1486.35,"2019-04-23","2019-10-31"]
[null,null,null,null,null,null,null,"MAR-01.01.01-FEAMP-0414","JOÃO VITOR ANDRADE CABRAL","Aquisição de GPS para a embarcação, Nelson e Raul, PD-658-C","DRP Açores",8820091,2476,2476,1578.45,526.15,"2019-05-04","2020-11-13"]
[null,null,null,null,null,null,null,"MAR-01.01.01-FEAMP-0418","JERÓNIMO VIANA E SÉRGIO BARBOSA, LDA,","DRAGAOZINHO, PV-332-C - PRT000010763","DRAP Norte",8215253,25000,25000,9375,3125,"2019-05-30","2020-12-31"]
[null,null,null,null,null,null,null,"MAR-01.01.01-FEAMP-0422","JOAQUIM RAMOS AGRA","PARCERIA, PV-288-C - PRT000020574","DRAP Norte",7085475,17730,11382.32,4268.37,1422.79,"2019-07-02","2019-12-31"]
[null,null,null,null,null,null,null,"MAR-01.01.01-FEAMP-0424","MARCO PAULO SILVEIRA DA ROSA","Aquisição de jangada embarcação Gonçalito, H-524-L","DRP Açores",7200942,1275,1275,812.81,270.94,"2019-07-10","2019-08-15"]
[null,null,null,null,null,null,null,"MAR-01.01.01-FEAMP-0425","TESTA & CUNHAS S,A,","SAGITARIUS  A-3636-C","DRAP Centro",7067984,63088.160000000003,63088.160000000003,23658.06,7886.02,"2019-07-01","2020-01-31"]
[null,null,null,null,null,null,null,"MAR-01.01.01-FEAMP-0426","TESTA & CUNHAS S,A,","LEONIS  A-3670-C","DRAP Centro",7067984,63088.160000000003,63088.160000000003,23658.06,7886.02,"2019-09-02","2020-03-31"]
[null,null,null,null,null,null,null,"MAR-01.01.03-FEAMP-0427","JOSÉ ALBERTO MIRANDA DA CUNHA","FILHO DE DEUS, V-608-L - PRT000021704","DRAP Norte",7328491,19432.169999999998,16751.990000000002,2512.8000000000002,2512.8000000000002,"2019-07-22","2019-12-31"]
[null,null,null,null,null,null,null,"MAR-01.01.01-FEAMP-0428","JOÃO ALBERTO DE JESUS E JOÃO ALEXANDRE RODRIGUES","Modernização da embarcação de pesca MARIA FLORIPES FN-1686-C","DRP Madeira",6411884,15773,15773,9463.7999999999993,3154.6,"2019-05-01","2019-10-31"]
[null,null,null,null,null,null,null,"MAR-01.01.03-FEAMP-0429","JOÃO ALBERTO DE JESUS E JOÃO ALEXANDRE RODRIGUES","Substituição de Motor da embarcação MARIA FLORIPES - FN-1686-C","DRP Madeira",6411884,30000,30000,4500,4500,"2019-05-01","2019-10-31"]
[null,null,null,null,null,null,null,"MAR-01.01.01-FEAMP-0431","ANTÓNIO MANUEL TROCADO CASCÃO","SENHORA DAS DORES, PV-117-C - PRT000000373","DRAP Norte",7977184,24350,24350,9131.25,3043.75,"2019-03-01","2020-08-31"]
[null,null,null,null,null,null,null,"MAR-01.01.03-FEAMP-0437","JOSÉ MANUEL AVEIRO PIRES","GOLFINHO -  TR-1655-L","DRAP Lisboa e Vale do Tejo - Oeste",9370266,9931.7099999999991,7351.9,1102.79,1102.78,"2019-08-01","2020-01-31"]
[null,null,null,null,null,null,null,"MAR-01.01.01-FEAMP-0440","TESTA & CUNHAS S,A,","DELPHINUS  A-3602-C","DRAP Centro",7067984,66871.28,66871.28,25076.73,8358.91,"2019-08-16","2020-08-14"]
[null,null,null,null,null,null,null,"MAR-01.01.01-FEAMP-0442","MANUEL CABRAL DE ANDRADE PALRÃO","Aquisição de rádio GMDSS para a embarcação Coração do Oceano PD-575-C, T1","DRP Açores",6415093,6371,6371,4061.51,1353.84,"2019-08-12","2021-02-11"]
[null,null,null,null,null,null,null,"MAR-01.01.01-FEAMP-0443","ROSA MILHAZES & JOÃO GRAÇA, LDA","SALVADOR GRAÇA  PV-284-C","DRAP Norte",8730993,12627.5,12627.5,4735.3100000000004,1578.44,"2019-08-24","2019-12-31"]
[null,null,null,null,null,null,null,"MAR-01.01.03-FEAMP-0450","GISELA DE OLIVEIRA BRANDÃO CONDE","CHICO GAMELAS - A-3904-L","DRAP Centro",9421387,3779.67,3779.67,566.95000000000005,566.95000000000005,"2019-10-03","2020-12-31"]
[null,null,null,null,null,null,null,"MAR-01.01.03-FEAMP-0451","MANUEL MARIA DE LEMOS AFONSO","SANTO AMARO  ES-324-L","DRAP Norte",7198612,15207.77,12997.71,1949.66,1949.65,"2019-10-01","2019-12-31"]
[null,null,null,null,null,null,null,"MAR-01.01.03-FEAMP-0452","MANUEL TORRES DA SILVA","NOSSA SENHORA do CARMO  ES-347-L","DRAP Norte",8064893,17222.05,15289.68,2293.4499999999998,2293.4499999999998,"2019-10-01","2020-03-31"]
[null,null,null,null,null,null,null,"MAR-01.01.03-FEAMP-0453","AUGUSTO LOUREIRO EIRAS","AVÓ DINA  ES-343-L","DRAP Norte",8210275,15207.77,15207.77,2281.17,2281.16,"2019-10-21","2019-12-31"]
[null,null,null,null,null,null,null,"MAR-01.01.03-FEAMP-0454","JOAQUIM SILVA PEREIRA","GOLFINHO L-2029-L","DRAP Norte",9253166,9653.4500000000007,9653.4500000000007,1448.02,1448.02,"2019-02-13","2020-02-12"]
[null,null,null,null,null,null,null,"MAR-01.01.01-FEAMP-0458","JOSÉ MANUEL DE SOUSA  NUNES","modernização da embarcação de pesca Araus PS-92-C","DRP Madeira",7504692,44458.26,44458.26,23340.6,7780.19,"2019-12-01","2020-08-25"]
[null,null,null,null,null,null,null,"MAR-01.01.01-FEAMP-0461","ANTÓNIO VIEIRA ANDRADE","Aquisição equipamento segurança p/ embarcação Ponta da Ribeira Quente, PD-119-L","DRP Açores",6414267,5206,5206,2537.9299999999998,845.97,"2019-11-04","2021-05-10"]
[null,null,null,null,null,null,null,"MAR-01.01.01-FEAMP-0469","JOSÉ BENJAMIM ALVES DA SILVA","Modernização da embarcação de pesca ILHÉU CHÃO FN-1731-L","DRP Madeira",7302764,4556,4556,2733.6,911.2,"2020-03-01","2020-11-30"]
[null,null,null,null,null,null,null,"MAR-01.01.01-FEAMP-0490","TIAGO JOSÉ - SOCIEDADE DE PESCA, LDA,","modernização da embarcação de pesca Tiago José FN-1737-C","DRP Madeira",7625163,29233.83,29233.83,15347.76,5115.92,"2019-11-01","2020-03-31"]
[null,null,null,null,null,null,null,"MAR-01.01.02-FEAMP-0495","MARCO DANIEL VIEIRA MONIZ","Detetor de aparelhos de pesca por gps embarcação Conde do Mar, SG-268-C","DRP Açores",8821361,5934,5934,3782.93,1260.97,"2020-01-28","2020-09-30"]
[null,null,null,null,null,null,null,"MAR-01.02.01-FEAMP-0001","PAULO FERNANDO DE ALMEIDA VIDAL","SÓ OS DOIS  PE-2356-L  -  PRT000022854","DRAP Lisboa e Vale do Tejo - Oeste",8845564,30000,25430,4768.12,1589.38,"2016-11-09","2017-12-31"]
[null,null,null,null,null,null,null,"MAR-01.02.01-FEAMP-0002","DAVID GONÇALO NOBRE CAÇOILA","JONI  SM-300-L  -   PRT000023470","DRAP Lisboa e Vale do Tejo - Oeste",8851441,75000,50070,9388.1200000000008,3129.38,"2016-07-27","2016-10-31"]
[null,null,null,null,null,null,null,"MAR-01.02.01-FEAMP-0006","ÂNGELO  MIGUEL MACHADO MANGAS","A MALA T-425-L  -  PRT000024376","DRAP Algarve",8889532,50000,50000,9375,3125,"2017-03-20","2017-12-30"]
[null,null,null,null,null,null,null,"MAR-01.02.01-FEAMP-0007","MANUEL AGONIA DA SILVA MARQUES","SILVÉRIO MANUEL VC-243-C - Aquisição -  PRT000020502","DRAP Norte",8989003,300000,299224,56104.5,18701.5,"2017-07-03","2017-12-31"]
[null,null,null,null,null,null,null,"MAR-01.02.01-FEAMP-0009","TRAJANO MANUEL FANGUEIRO MARTINS","XEMICA, V-1091-C - Aquisição -  PRT000023545","DRAP Norte",9004195,100000,100000,18750,6250,"2017-08-03","2017-12-31"]
[null,null,null,null,null,null,null,"MAR-01.02.01-FEAMP-0012","EMANUEL RIBEIRO BAETA","BELUGA, F-1102-L  -  PRT000023140","DRAP Algarve",9231863,30000,30000,5625,1875,"2018-06-14","2018-10-18"]
[null,null,null,null,null,null,null,"MAR-01.02.01-FEAMP-0013","BRUNO JOSE GRAÇA CERQUEIRA","MAR FURIOSO  PV-335-L  -  PRT000020326","DRAP Norte",9173525,42000,42000,7875,2625,"2018-08-08","2018-12-31"]
[null,null,null,null,null,null,null,"MAR-01.02.01-FEAMP-0015","RUI DANIEL RAMOS PEREIRA","DEUS DOS PEIXES, V-1083-C  -  PRT000023691","DRAP Norte",9257895,92090,40000,7500,2500,"2019-01-02","2019-12-31"]
[null,null,null,null,null,null,null,"MAR-01.03.02-FEAMP-0002","UNIVERSIDADE DE ÉVORA","Plano Operacional de Monitorização e Gestão de Peixes Anádromos em Portugal","DRAP Centro",250504,491737.97,491737.97,368803.49,122934.48,"2017-12-19","2021-12-18"]
[null,null,null,null,null,null,null,"MAR-01.03.01-FEAMP-0003","Faculdade de Ciências de Lisboa","VALOREJET","DRAP Lisboa e Vale do Tejo - Oeste",7477221,335959.83,335775.67,251831.75,83943.92,"2017-01-01","2020-09-30"]
[null,null,null,null,null,null,null,"MAR-01.03.01-FEAMP-0005","Universidade de Aveiro","MOLBIPACK - DESENVOLVIMENTO DE METODOLOGIAS E EMBALAGENS","DRAP Centro",7430371,378498,367366.8,275525.09999999998,91841.7,"2017-12-15","2020-09-15"]
[null,null,null,null,null,null,null,"MAR-01.03.02-FEAMP-0007","INSTITUTO PORTUGUÊS DO MAR E DA ATMOSFERA, I,P,","CONTRIBUTO PARA A GESTÃO SUSTENTADA DA PEQUENA PESCA COSTEIRA E DA APANHA","DRAP Lisboa e Vale do Tejo - Oeste",7956586,517983.92,517983.92,388487.95,129495.97,"2017-04-01","2020-03-31"]
[null,null,null,null,null,null,null,"MAR-01.03.02-FEAMP-0008","INSTITUTO PORTUGUÊS DO MAR E DA ATMOSFERA, I,P,","A Pesca Com Arte de Xávega","DRAP Centro",7956586,328818.32,299330.5,224497.89,74832.61,"2017-01-01","2019-12-31"]
[null,null,null,null,null,null,null,"MAR-01.03.02-FEAMP-0009","Município de Vila Nova de Cerveira","MAR2020 - V, N, Cerveira - Valorização Prod, Psc Rio Minho","DRAP Norte",7540486,523466.03,523466.03,392599.53,130866.5,"2017-07-01","2020-09-30"]
[null,null,null,null,null,null,null,"MAR-01.03.01-FEAMP-0011","INSTITUTO PORTUGUÊS DO MAR E DA ATMOSFERA, I,P,","PROJETO I9+PROALGA","DRAP Lisboa e Vale do Tejo - Oeste",7956586,490935.16,488010.16,366007.62,122002.54,"2017-01-01","2019-12-31"]
[null,null,null,null,null,null,null,"MAR-01.03.02-FEAMP-0012","Municipio de Mafra","REDE OURICEIRA MAR","DRAP Lisboa e Vale do Tejo - Oeste",7499417,589956.56999999995,589850,442387.5,147462.5,"2019-01-24","2021-11-15"]
[null,null,null,null,null,null,null,"MAR-01.03.02-FEAMP-0013","Faculdade de Ciências de Lisboa","NIPOGES","DRAP Lisboa e Vale do Tejo - Oeste",7477221,582133.4,581810.67000000004,436358.01,145452.66,"2017-01-01","2019-12-31"]
[null,null,null,null,null,null,null,"MAR-01.03.01-FEAMP-0016","Universidade Nova de Lisboa","Alga 4Food","DRAP Lisboa e Vale do Tejo - Oeste",9026322,571163.76,570514.77,427886.08000000002,142628.69,"2017-12-01","2020-09-22"]
[null,null,null,null,null,null,null,"MAR-01.03.02-FEAMP-0018","INSTITUTO POLITÉCNICO DE LEIRIA","CO-PESCA 2","DRAP Lisboa e Vale do Tejo - Oeste",7163701,594445.97,592442.30000000005,444331.72,148110.57999999999,"2017-08-03","2020-08-02"]
[null,null,null,null,null,null,null,"MAR-01.03.02-FEAMP-0019","UNIVERSIDADE DE ÉVORA","Parceria AL Percebe","DRAP Alentejo",250504,162246.74,162246.74,121685.06,40561.68,"2017-12-14","2020-09-14"]
[null,null,null,null,null,null,null,"MAR-01.03.01-FEAMP-0020","Universidade do Algarve","INOVPESCA - Redução de capturas acidentais de espécies marinhas protegidas","DRAP Algarve",7090437,193180.44,193180.44,144885.34,48295.1,"2017-11-01","2020-09-15"]
[null,null,null,null,null,null,null,"MAR-01.03.02-FEAMP-0021","INSTITUTO PORTUGUÊS DO MAR E DA ATMOSFERA, I,P,","PESCAPANHA - Contributo para a gestão sustentada da peq, pesca costeira e apanha","DRAP Algarve",7956586,454709.39,433260.23,324945.17,108315.06,"2018-01-01","2019-11-29"]
[null,null,null,null,null,null,null,"MAR-01.03.02-FEAMP-0022","INSTITUTO PORTUGUÊS DO MAR E DA ATMOSFERA, I,P,","MONTEREAL - Monotorização em tempo real da frota de ganchorra,","DRAP Algarve",7956586,539482.72,532942.19999999995,399706.65,133235.54999999999,"2018-01-01","2019-11-29"]
[null,null,null,null,null,null,null,"MAR-01.03.01-FEAMP-0023","INSTITUTO PORTUGUÊS DO MAR E DA ATMOSFERA, I,P,","BIVALOR-Criação de Depósito e Unidade de Transformação de Bivalves do Tejo","DRAP Lisboa e Vale do Tejo - Oeste",7956586,1399991,1399991,1049993.25,349997.75,"2017-09-01","2018-12-31"]
[null,null,null,null,null,null,null,"MAR-01.03.01-FEAMP-0025","INSTITUTO SUPERIOR TÉCNICO","SMOKLEAN","DRAP Lisboa e Vale do Tejo - Oeste",7507791,515240.29,440964.22,330723.17,110241.05,"2019-06-01","2021-05-31"]
[null,null,null,null,null,null,null,"MAR-01.03.02-FEAMP-0026","Sociedade Portuguesa para o Estudo das Aves","ANZOL+","DRAP Lisboa e Vale do Tejo - Oeste",7513211,366265.47,363580.68,272685.51,90895.17,"2019-01-01","2021-12-31"]
[null,null,null,null,null,null,null,"MAR-01.03.01-FEAMP-0028","Universidade Nova de Lisboa","SMART FISHING","DRAP Lisboa e Vale do Tejo - Oeste",9026322,160889.96,149147,111860.25,37286.75,"2019-07-01","2020-12-31"]
[null,null,null,null,null,null,null,"MAR-01.03.01-FEAMP-0029","INSTITUTO POLITÉCNICO DE LEIRIA","E-Fishing: Novas ferramentas moleculares para apoio à gestão da pesca","DRAP Lisboa e Vale do Tejo - Oeste",7163701,225668.74,173385.21,130038.9,43346.31,"2019-01-01","2021-12-31"]
[null,null,null,null,null,null,null,"MAR-01.03.01-FEAMP-0030","PASCOAL E FILHOS, SA","Rumo à Excelência Operacional","DRAP Centro",7065842,3868476.75,2742890.23,617150.31000000006,205716.76,"2018-05-28","2021-05-27"]
[null,null,null,null,null,null,null,"MAR-01.03.01-FEAMP-0031","Universidade do Porto","ICBAS E FishMarket","DRAP Norte",7513563,343286.46,343286.46,257464.85,85821.61,"2019-02-01","2022-01-31"]
[null,null,null,null,null,null,null,"MAR-01.03.01-FEAMP-0032","UNIVERSIDADE DE COIMBRA","UC Mar - Transfer, de Tecnologia e Conhecim, Produz, na UC p/ a Economia do Mar","DRAP Centro",5233282,672031.94,404481.24,303360.94,101120.3,"2019-01-01","2020-12-31"]
[null,null,null,null,null,null,null,"MAR-01.03.02-FEAMP-0037","DIREÇÃO REGIONAL DAS PESCAS","Conferência internacional sobre governança dos oceanos em regiões arquipelágicas","DRP Açores",7991621,150000,150000,112500,37500,"2019-03-01","2020-12-31"]
[null,null,null,null,null,null,null,"MAR-01.03.02-FEAMP-0038","IMAR - INSTITUTO DO MAR","DDeSPAr-Diversificação p/ desenvolvimento sustentavel da pesca artesanal Açores","DRP Açores",7369023,194025.53,194025.53,145519.15,48506.38,"2020-01-01","2021-12-31"]
[null,null,null,null,null,null,null,"MAR-01.03.02-FEAMP-0039","IMAR - INSTITUTO DO MAR","PESCAz-Pescarias sustentaveis Açores","DRP Açores",7369023,190550.19,190550.19,142912.64000000001,47637.55,"2019-07-01","2022-07-01"]
[null,null,null,null,null,null,null,"MAR-01.03.02-FEAMP-0040","IMAR - INSTITUTO DO MAR","SOS TubaProf","DRP Açores",7369023,200000,200000,150000,50000,"2019-10-01","2022-09-30"]
[null,null,null,null,null,null,null,"MAR-01.04.02-FEAMP-0001","INSTITUTO PORTUGUÊS DO MAR E DA ATMOSFERA, I,P,","BIODIVERSIDADE E ECOLOGIA DO ZOOPLÂNCTON DE PORTUGAL","DGRM - Direção Geral de Recursos Naturais Segurança e Serviços Marítimos",7956586,427438.95,427438.95,320579.21999999997,106859.73,"2017-02-01","2020-01-31"]
[null,null,null,null,null,null,null,"MAR-01.04.02-FEAMP-0002","INSTITUTO PORTUGUÊS DO MAR E DA ATMOSFERA, I,P,","OBSERVA,PT","DGRM - Direção Geral de Recursos Naturais Segurança e Serviços Marítimos",7956586,755924.51,755924.51,566943.39,188981.12,"2017-07-01","2020-06-30"]
[null,null,null,null,null,null,null,"MAR-01.04.02-FEAMP-0003","Universidade do Algarve","CONPRAR Protecção e Restauração da Biodiversidade","DGRM - Direção Geral de Recursos Naturais Segurança e Serviços Marítimos",7090437,512939.77,512939.77,384704.83,128234.94,"2018-04-01","2021-03-31"]
[null,null,null,null,null,null,null,"MAR-01.04.02-FEAMP-0004","Direção-Geral de Recursos Naturais, Segurança e Serviços Marítimos","PESCA LÚDICA","DGRM - Direção Geral de Recursos Naturais Segurança e Serviços Marítimos",8171291,839800,839800,629850,209950,"2018-01-01","2021-12-31"]
[null,null,null,null,null,null,null,"MAR-01.04.02-FEAMP-0005","Universidade do Algarve","CRUSTAPANHA","DGRM - Direção Geral de Recursos Naturais Segurança e Serviços Marítimos",7090437,677018.31,677018.31,507763.73,169254.58,"2018-04-01","2021-03-31"]
[null,null,null,null,null,null,null,"MAR-01.04.02-FEAMP-0006","Faculdade de Ciências de Lisboa","TUBAREPEL","DGRM - Direção Geral de Recursos Naturais Segurança e Serviços Marítimos",7477221,694467.88,694405.16,520803.87,173601.29,"2018-01-01","2020-12-31"]
[null,null,null,null,null,null,null,"MAR-01.04.02-FEAMP-0007","Faculdade de Ciências de Lisboa","VALPRAD","DGRM - Direção Geral de Recursos Naturais Segurança e Serviços Marítimos",7477221,649246.17000000004,649246.17000000004,486934.63,162311.54,"2018-01-01","2020-12-31"]
[null,null,null,null,null,null,null,"MAR-01.04.02-FEAMP-0009","INSTITUTO PORTUGUÊS DO MAR E DA ATMOSFERA, I,P,","SARDINHA 2020","DGRM - Direção Geral de Recursos Naturais Segurança e Serviços Marítimos",7956586,1599601.96,1599601.96,1199701.48,399900.48,"2017-04-01","2020-03-31"]
[null,null,null,null,null,null,null,"MAR-01.04.02-FEAMP-0010","INSTITUTO PORTUGUÊS DO MAR E DA ATMOSFERA, I,P,","TECNOLOGIA DA PESCA E SELETIVIDADE","DGRM - Direção Geral de Recursos Naturais Segurança e Serviços Marítimos",7956586,731917.87,731917.87,548938.42000000004,182979.45,"2018-01-01","2020-12-31"]
[null,null,null,null,null,null,null,"MAR-01.04.02-FEAMP-0011","INSTITUTO PORTUGUÊS DO MAR E DA ATMOSFERA, I,P,","MANUAL PRÁTICO DE IDENTIFICAÇÃO DE PEIXES ÓSSEOS","DGRM - Direção Geral de Recursos Naturais Segurança e Serviços Marítimos",7956586,52475.53,52475.53,39356.67,13118.86,"2018-05-01","2019-01-31"]
[null,null,null,null,null,null,null,"MAR-01.04.02-FEAMP-0012","INSTITUTO PORTUGUÊS DO MAR E DA ATMOSFERA, I,P,","CEIC","DGRM - Direção Geral de Recursos Naturais Segurança e Serviços Marítimos",7956586,604623.5,604623.5,453467.63,151155.87,"2017-07-01","2020-06-30"]
[null,null,null,null,null,null,null,"MAR-01.04.02-FEAMP-0013","INSTITUTO PORTUGUÊS DO MAR E DA ATMOSFERA, I,P,","CSS","DGRM - Direção Geral de Recursos Naturais Segurança e Serviços Marítimos",7956586,665692.29,665692.29,499269.23,166423.06,"2017-07-01","2020-06-30"]
[null,null,null,null,null,null,null,"MAR-01.04.02-FEAMP-0014","Faculdade de Ciências de Lisboa","RESTAURA2020","DGRM - Direção Geral de Recursos Naturais Segurança e Serviços Marítimos",7477221,609822.85,609822.85,457367.14,152455.71,"2018-01-01","2020-12-31"]
[null,null,null,null,null,null,null,"MAR-01.04.02-FEAMP-0015","Universidade do Algarve","Desenho de uma rede de áreas marinhas protegidas","DGRM - Direção Geral de Recursos Naturais Segurança e Serviços Marítimos",7090437,154317.97,154317.97,115738.48,38579.49,"2018-05-01","2020-07-31"]
[null,null,null,null,null,null,null,"MAR-01.04.02-FEAMP-0016","INSTITUTO PORTUGUÊS DO MAR E DA ATMOSFERA, I,P,","Avaliação e monotorização das comunidades bentónicas","DGRM - Direção Geral de Recursos Naturais Segurança e Serviços Marítimos",7956586,317421.34999999998,317421.34999999998,238066.02,79355.33,"2017-07-01","2020-06-30"]
[null,null,null,null,null,null,null,"MAR-01.04.02-FEAMP-0018","Universidade do Algarve","Potenciar a proteção e revitalização da biodiversidade marinha","DGRM - Direção Geral de Recursos Naturais Segurança e Serviços Marítimos",7090437,332808.61,332808.61,249606.46,83202.149999999994,"2018-04-01","2021-03-31"]
[null,null,null,null,null,null,null,"MAR-01.04.02-FEAMP-0019","Universidade de Aveiro","Reabilitação de zonas contaminadas da ria de Aveiro através da recol, com moliço","DGRM - Direção Geral de Recursos Naturais Segurança e Serviços Marítimos",7430371,92122,92122,69091.5,23030.5,"2019-01-01","2020-12-31"]
[null,null,null,null,null,null,null,"MAR-01.04.02-FEAMP-0020","Universidade de Aveiro","BIOPRADARIA - Restauracao, gestao e conservacao da biodiversidade recursos biol,","DGRM - Direção Geral de Recursos Naturais Segurança e Serviços Marítimos",7430371,366920,366920,275190,91730,"2018-06-01","2021-04-03"]
[null,null,null,null,null,null,null,"MAR-01.04.02-FEAMP-0021","INSTITUTO DAS FLORESTAS E CONSEVAÇÃO DA NATUREZA, IP RAM","Criação de recife artificial no Porto Santo","DRP Madeira",8846207,409763.6,409763.6,307322.7,102440.9,"2016-01-22","2018-10-31"]
[null,null,null,null,null,null,null,"MAR-01.04.02-FEAMP-0022","INSTITUTO DAS FLORESTAS E CONSEVAÇÃO DA NATUREZA, IP RAM","Criação de recife artificial no parque natural marinho do Cabo Girão","DRP Madeira",8846207,521176,521176,390882,130294,"2018-01-29","2019-12-31"]
[null,null,null,null,null,null,null,"MAR-01.04.02-FEAMP-0023","Sociedade Portuguesa para o Estudo das Aves","MEDAVES PESCA","DGRM - Direção Geral de Recursos Naturais Segurança e Serviços Marítimos",7513211,260085.83,260085.83,195064.37,65021.46,"2018-07-01","2020-06-30"]
[null,null,null,null,null,null,null,"MAR-01.04.02-FEAMP-0024","Universidade do Porto","F Ciências U,P, - SARDINOMICS","DRAP Norte",7513563,705055.04,705055.04,528791.29,176263.75,"2019-01-01","2021-12-31"]
[null,null,null,null,null,null,null,"MAR-01.04.02-FEAMP-0025","Universidade do Porto","Universidade do Porto / ICBAS - RecBio","DRAP Norte",7513563,537671.5,537671.5,403253.63,134417.87,"2018-07-01","2021-06-30"]
[null,null,null,null,null,null,null,"MAR-01.04.02-FEAMP-0026","UNIVERSIDADE DE COIMBRA","Restauro de Sapais Estuarinos vom vista à sustentabilidade -","DGRM - Direção Geral de Recursos Naturais Segurança e Serviços Marítimos",5233282,332963.52,332963.52,249722.64,83240.88,"2019-01-01","2020-12-31"]
[null,null,null,null,null,null,null,"MAR-01.04.02-FEAMP-0029","Universidade do Algarve","HIPPOSAVE-Plano de recuperação de cavalos-marinhos da Ria Formosa","DGRM - Direção Geral de Recursos Naturais Segurança e Serviços Marítimos",7090437,517746.29,517746.29,388309.72,129436.57,"2020-01-01","2021-07-31"]
[null,null,null,null,null,null,null,"MAR-01.05.01-FEAMP-0001","DOCAPESCA PORTOS E LOTAS, S,A,","Aquisição de Equip, que beneficiem as cond, de desembarque, atracação e acesso","DRAP Algarve",7282212,315000,315000,236250,78750,"2016-10-03","2018-07-31"]
[null,null,null,null,null,null,null,"MAR-01.05.03-FEAMP-0002","DOCAPESCA PORTOS E LOTAS, S,A,","Apetrechamento de apoios à pesca - Algarve","DRAP Algarve",7282212,163708.18,123155.26,92366.45,30788.81,"2016-10-03","2018-12-31"]
[null,null,null,null,null,null,null,"MAR-01.05.01-FEAMP-0003","DOCAPESCA PORTOS E LOTAS, S,A,","APETRECHAMENTO DE APOIO À PESCA - FIGUEIRA DA FOZ","DRAP Centro",7282212,15750,10494.58,7870.94,2623.64,"2016-10-03","2018-07-31"]
[null,null,null,null,null,null,null,"MAR-01.05.02-FEAMP-0004","DOCAPESCA PORTOS E LOTAS, S,A,","DOCAPESCA - Apetrechamento de Apoio à Pesca - Matosinhos","DRAP Norte",7282212,21000,21000,15750,5250,"2016-10-03","2018-07-31"]
[null,null,null,null,null,null,null,"MAR-01.05.01-FEAMP-0005","DOCAPESCA PORTOS E LOTAS, S,A,","Aquisição de equipamentos que beneficiem as condições de desembarque, atracação","DRAP Centro",7282212,360000,360000,270000,90000,"2016-11-03","2018-12-31"]
[null,null,null,null,null,null,null,"MAR-01.05.01-FEAMP-0006","DOCAPESCA PORTOS E LOTAS, S,A,","Reabilitação da Rampa Varadouro - Ericeira","DRAP Lisboa e Vale do Tejo - Oeste",7282212,345226.44,317437.8,238078.35,79359.45,"2016-01-07","2017-02-16"]
[null,null,null,null,null,null,null,"MAR-01.05.01-FEAMP-0007","DOCAPESCA PORTOS E LOTAS, S,A,","Docapesca - Melhoria da Eficiência Energética e Segurança nos Portos de Pesca","DRAP Norte",7282212,110203.12,110203.12,82652.34,27550.78,"2016-10-03","2018-07-31"]
[null,null,null,null,null,null,null,"MAR-01.05.01-FEAMP-0008","APL - Administração do Porto de Lisboa, S A","Reabilitação do Pontão Digama do Porto de Pesca da Trafaria","DRAP Lisboa e Vale do Tejo - Oeste",8857735,182925,181749.58,136312.19,45437.39,"2016-05-17","2018-03-31"]
[null,null,null,null,null,null,null,"MAR-01.05.01-FEAMP-0009","DOCAPESCA PORTOS E LOTAS, S,A,","Docapesca - Req, Edificio da Lota e Rampa - Prt,Psc Angeiras","DRAP Norte",7282212,424242.14,394345.71,295759.28999999998,98586.42,"2016-12-02","2018-09-06"]
[null,null,null,null,null,null,null,"MAR-01.05.01-FEAMP-0010","DOCAPESCA PORTOS E LOTAS, S,A,","Requalificação do Sistema de Captação de Água Salgada -Porto de Pesca de Peniche","DRAP Lisboa e Vale do Tejo - Oeste",7282212,198754.34,198754.34,149065.76,49688.58,"2016-12-02","2019-06-05"]
[null,null,null,null,null,null,null,"MAR-01.05.01-FEAMP-0011","DOCAPESCA PORTOS E LOTAS, S,A,","Requalificação Porto Pesca Tavira","DRAP Algarve",7282212,998462,998462,748846.5,249615.5,"2016-12-02","2019-06-09"]
[null,null,null,null,null,null,null,"MAR-01.05.01-FEAMP-0014","DOCAPESCA PORTOS E LOTAS, S,A,","Apetrechamento de Apoio à Pesca - Sines","DRAP Alentejo",7282212,61270,50636.54,37977.410000000003,12659.13,"2017-07-10","2018-07-31"]
[null,null,null,null,null,null,null,"MAR-01.05.04-FEAMP-0015","MUNICÍPIO DE ÍLHAVO","Recuperação dos armazéns de aprestos do cais de abrigo para pesca artesanal","DRAP Centro",7558267,31412.04,31412.04,23559.03,7853.01,"2017-11-15","2018-07-31"]
[null,null,null,null,null,null,null,"MAR-01.05.04-FEAMP-0016","MUNICÍPIO DE ÍLHAVO","Recuperação de Estruturas Flutuantes do Cais dos Pescadores da Costa Nova","DRAP Centro",7558267,135699,133973.64000000001,100480.23,33493.410000000003,"2016-09-01","2019-09-30"]
[null,null,null,null,null,null,null,"MAR-01.05.01-FEAMP-0018","DOCAPESCA PORTOS E LOTAS, S,A,","Prolongamento do Quebra Mar interior do porto de Peniche","DRAP Lisboa e Vale do Tejo - Oeste",7282212,1911232.67,1098303.52,823727.64,274575.88,"2018-12-12","2020-08-30"]
[null,null,null,null,null,null,null,"MAR-01.05.01-FEAMP-0019","APARA - ASSOCIAÇÃO DE PESCA ARTESANAL DA REGIÃO DE AVEIRO","APARA - PLANO DE CRESCIMENTO","DRAP Centro",7544372,228758,205856,115794,38598,"2016-12-01","2017-12-31"]
[null,null,null,null,null,null,null,"MAR-01.05.02-FEAMP-0020","ARTESANALPESCA - ORGANIZAÇAO DE PRODUTORES DE PESCA, CRL","Melhoria do acondicionamento do Pescado","DRAP Lisboa e Vale do Tejo - Oeste",4912912,101297,92297.3,51917.24,17305.740000000002,"2016-01-01","2017-11-06"]
[null,null,null,null,null,null,null,"MAR-01.05.02-FEAMP-0021","UNIÃO DE FREGUESIAS DE MONCARAPACHO E FUSETA","Melhoria das condições de descarga e acesso ao cais de desembarque da pesca","DRAP Algarve",8862961,96715.91,96715.91,72536.929999999993,24178.98,"2017-02-01","2019-06-30"]
[null,null,null,null,null,null,null,"MAR-01.05.02-FEAMP-0022","UNIÃO DE FREGUESIAS DE MONCARAPACHO E FUSETA","Montagem de carro de alagem e guincho, na rampa de acesso, para as embarcações","DRAP Algarve",8862961,53246.7,53246.7,39935.03,13311.67,"2017-02-01","2019-06-30"]
[null,null,null,null,null,null,null,"MAR-01.05.01-FEAMP-0023","ASSOCIAÇÃO PRÓ MAIOR SEGURANÇA DOS HOMENS DO MAR","PRÓ-MAIOR - Armazéns Aprestos Povoa de Varzim","DRAP Norte",7188092,6948098,6500000,4875000,1625000,"2017-01-01","2020-12-31"]
[null,null,null,null,null,null,null,"MAR-01.05.02-FEAMP-0024","POLIS Litoral Norte - Soc, Requalificação do Litoral Norte, S,A,","POLIS Lit, Norte - Mododernização do Cais de Caminha","DRAP Norte",8866781,880271.73,880271.73,660203.80000000005,220067.93,"2014-03-01","2019-11-30"]
[null,null,null,null,null,null,null,"MAR-01.05.02-FEAMP-0025","POLIS Litoral Norte - Soc, Requalificação do Litoral Norte, S,A,","POLIS Lit, Norte - Estaleiro Cabedelo - Viana do Castelo","DRAP Norte",8866781,371534.02,371534.02,278650.52,92883.5,"2015-10-01","2018-12-31"]
[null,null,null,null,null,null,null,"MAR-01.05.02-FEAMP-0026","POLIS Litoral Norte - Soc, Requalificação do Litoral Norte, S,A,","POLIS Lit Norte - Prt, Psc Castelo Neiva","DRAP Norte",8866781,2150918.71,2150918.71,1613189.04,537729.67000000004,"2016-07-01","2020-02-28"]
[null,null,null,null,null,null,null,"MAR-01.05.02-FEAMP-0027","POLIS Litoral Norte - Soc, Requalificação do Litoral Norte, S,A,","POLIS Lit, Norte - Doca de Pesca de Esposende","DRAP Norte",8866781,1092240,1092240,819180,273060,"2016-11-01","2020-03-31"]
[null,null,null,null,null,null,null,"MAR-01.05.02-FEAMP-0028","POLIS Litoral Norte - Soc, Requalificação do Litoral Norte, S,A,","POLIS Lit, Norte - Portinho da Apúlia","DRAP Norte",8866781,716782.5,716782.5,537586.88,179195.62,"2016-11-01","2018-12-31"]
[null,null,null,null,null,null,null,"MAR-01.05.03-FEAMP-0029","SECRETARIA REGIONAL DE AGRICULTURA E PESCAS","Remodelação do posto de receção de pescado do Porto Moniz","DRP Madeira",8590586,298665.40999999997,298665.40999999997,223999.06,74666.350000000006,"2014-09-01","2018-12-31"]
[null,null,null,null,null,null,null,"MAR-01.05.01-FEAMP-0030","SECRETARIA REGIONAL DE AGRICULTURA E PESCAS","Reperfilamento do cais do Porto de Pesca do Caniçal","DRP Madeira",8590586,1058691.6000000001,1058691.6000000001,794018.7,264672.90000000002,"2015-10-01","2020-09-30"]
[null,null,null,null,null,null,null,"MAR-01.05.01-FEAMP-0032","SECRETARIA REGIONAL DO MAR CIÊNCIA E TECNOLOGIA/INSPEÇÃO REGIONAL PESCAS AÇORES","Oficina de embarcações do núcleo de pescas do porto da Praia da Vitória","DRP Açores",8578875,270378.63,270378.28000000003,202783.72,67594.559999999998,"2016-11-17","2017-12-31"]
[null,null,null,null,null,null,null,"MAR-01.05.01-FEAMP-0035","DIREÇÃO REGIONAL DAS PESCAS","Instalação de grua no porto de pesca dos Biscoitos","DRP Açores",7991621,68652.399999999994,62394.27,46795.7,15598.57,"2016-09-27","2017-12-31"]
[null,null,null,null,null,null,null,"MAR-01.05.03-FEAMP-0036","LOTAÇOR - SERVIÇO DE LOTAS DOS AÇORES, S,A,","Empreitada de ampliação e fornecimento e montagem de equi, frig, lota S, Mateus","DRP Açores",7091046,69857.52,60138.42,45103.82,15034.6,"2017-03-06","2017-10-13"]
[null,null,null,null,null,null,null,"MAR-01.05.02-FEAMP-0037","LOTAÇOR - SERVIÇO DE LOTAS DOS AÇORES, S,A,","Aquisição de equipamentos para o entreposto frigorífico de Ponta Delgada","DRP Açores",7091046,1148200,757962.01,568471.51,189490.5,"2017-05-15","2018-05-30"]
[null,null,null,null,null,null,null,"MAR-01.05.01-FEAMP-0038","SECRETARIA REGIONAL DO MAR CIÊNCIA E TECNOLOGIA/INSPEÇÃO REGIONAL PESCAS AÇORES","Melhoramento das condições de operacionalidade do porto de Santa Cruz da Gracios","DRP Açores",8578875,626404.31999999995,626404.31999999995,469803.24,156601.07999999999,"2016-08-01","2019-07-31"]
[null,null,null,null,null,null,null,"MAR-01.05.03-FEAMP-0039","LOTAÇOR - SERVIÇO DE LOTAS DOS AÇORES, S,A,","Prest serviços p/ elab proj exec, fisc e emp melhoramento amp entreposto Velas","DRP Açores",7091046,1108200,1100000,825000,275000,"2016-10-24","2020-06-30"]
[null,null,null,null,null,null,null,"MAR-01.05.02-FEAMP-0040","OLHÃOPESCA - ORGANIZAÇÃO DE PRODUTORES DE PESCA DO ALGARVE, CRL","Aquisição de equipamentos que beneficiem as condições de desembarque de produtos","DRAP Algarve",5826466,72243.8,72243.8,40637.14,13545.71,"2017-07-01","2018-08-31"]
[null,null,null,null,null,null,null,"MAR-01.05.01-FEAMP-0041","DOCAPESCA PORTOS E LOTAS, S,A,","Docapesca - Pt, Matosinhos - Defensas, Escadas e Cabeços de Amarração","DRAP Norte",7282212,50000,50000,37500,12500,"2017-05-02","2019-06-30"]
[null,null,null,null,null,null,null,"MAR-01.05.01-FEAMP-0042","Direção-Geral de Recursos Naturais, Segurança e Serviços Marítimos","RECUPERAÇÃO DO QUEBRA MAR DO PORTO DA ERICEIRA","DRAP Lisboa e Vale do Tejo - Oeste",8171291,3485820,1923449.4,1442587.05,480862.35,"2018-08-01","2020-02-28"]
[null,null,null,null,null,null,null,"MAR-01.05.04-FEAMP-0043","Direção-Geral de Recursos Naturais, Segurança e Serviços Marítimos","DGRM - Abrigo Zona Piscatoria de Angeiras","DRAP Norte",8171291,4766250,4766250,3574687.5,1191562.5,"2018-07-01","2020-12-31"]
[null,null,null,null,null,null,null,"MAR-01.05.01-FEAMP-0044","DOCAPESCA PORTOS E LOTAS, S,A,","Reabilitação do pavimento do cais de descarga Porto de Pesca de Quarteira","DRAP Algarve",7282212,220000,211000,158250,52750,"2017-06-03","2018-07-31"]
[null,null,null,null,null,null,null,"MAR-01.05.01-FEAMP-0045","Direção-Geral de Recursos Naturais, Segurança e Serviços Marítimos","Recuperação do molhe nascente e dragagem acessória da barra dos portos Tavira","DRAP Algarve",8171291,1293736.6100000001,806602.03,604951.52,201650.51,"2016-10-05","2017-12-31"]
[null,null,null,null,null,null,null,"MAR-01.05.01-FEAMP-0046","DOCAPESCA PORTOS E LOTAS, S,A,","Docapesca, S,A, - Porto Vila Praia de Âncora","DRAP Norte",7282212,150000,150000,112500,37500,"2017-07-03","2018-12-31"]
[null,null,null,null,null,null,null,"MAR-01.05.01-FEAMP-0047","Direção-Geral de Recursos Naturais, Segurança e Serviços Marítimos","MELHORIA DAS CONDIÇÕES DE SEGURANÇA DO PORTO DA NAZARÉ","DRAP Lisboa e Vale do Tejo - Oeste",8171291,2594000,1136520,852390,284130,"2019-04-01","2020-12-31"]
[null,null,null,null,null,null,null,"MAR-01.05.02-FEAMP-0049","PROPEIXE O,P, - COOPERATIVA DE PRODUTORES DE PEIXE DO NORTE, CRL","Propeixe - Aquisição de Empilhadores e Dornas","DRAP Norte",4907002,1687242,1672242,940636.13,313545.37,"2016-06-30","2019-09-30"]
[null,null,null,null,null,null,null,"MAR-01.05.01-FEAMP-0050","DOCAPESCA PORTOS E LOTAS, S,A,","Requalificacao do edificio da lota - pavimentos e caleiras - Porto Olhao","DRAP Algarve",7282212,149751.5,149751.5,112313.63,37437.870000000003,"2017-09-03","2019-12-31"]
[null,null,null,null,null,null,null,"MAR-01.05.01-FEAMP-0051","DOCAPESCA PORTOS E LOTAS, S,A,","Montagem de plataforma flutuante de apoio a pesca - Sagres","DRAP Algarve",7282212,125000,112960,84720,28240,"2017-09-03","2018-12-31"]
[null,null,null,null,null,null,null,"MAR-01.05.01-FEAMP-0052","DOCAPESCA PORTOS E LOTAS, S,A,","Construção de Novas Captações, Bombagem e Tratamento de Àgua Salgada - Sesimbra","DRAP Lisboa e Vale do Tejo - Oeste",7282212,243523,243523,182642.25,60880.75,"2017-11-03","2019-11-29"]
[null,null,null,null,null,null,null,"MAR-01.05.03-FEAMP-0054","DOCAPESCA PORTOS E LOTAS, S,A,","Reabilitação da Lota da Costa da Caparica","DRAP Lisboa e Vale do Tejo - Oeste",7282212,379724.35,330000,247500,82500,"2017-10-03","2019-03-31"]
[null,null,null,null,null,null,null,"MAR-01.05.01-FEAMP-0055","DOCAPESCA PORTOS E LOTAS, S,A,","Rearranjo de poitas e respectivas correntes das embarcações de pesca artesanal","DRAP Algarve",7282212,48302.1,48302.1,36226.58,12075.52,"2017-06-03","2019-07-31"]
[null,null,null,null,null,null,null,"MAR-01.05.01-FEAMP-0056","DOCAPESCA PORTOS E LOTAS, S,A,","Melhoria da Eficiência Ambiental Energética - Porto Pesca Sustentável da Nazaré","DRAP Lisboa e Vale do Tejo - Oeste",7282212,799950,610500,457875,152625,"2017-10-01","2019-10-01"]
[null,null,null,null,null,null,null,"MAR-01.05.01-FEAMP-0057","DOCAPESCA PORTOS E LOTAS, S,A,","Apetrechamento de Apoio à Pesca - Nazaré","DRAP Lisboa e Vale do Tejo - Oeste",7282212,15690,15690,11767.5,3922.5,"2017-09-03","2018-09-30"]
[null,null,null,null,null,null,null,"MAR-01.05.01-FEAMP-0058","DOCAPESCA PORTOS E LOTAS, S,A,","Apetrechamento de Apoio à Pesca - Aveiro","DRAP Centro",7282212,45000,39980,29985,9995,"2017-09-03","2018-12-31"]
[null,null,null,null,null,null,null,"MAR-01.05.01-FEAMP-0059","DOCAPESCA PORTOS E LOTAS, S,A,","Reabilitação dos Furos de Captação e Sistema de Bombagem e Tratamento de Água","DRAP Centro",7282212,139304.48000000001,139304.48000000001,104478.36,34826.120000000003,"2015-09-03","2019-06-30"]
[null,null,null,null,null,null,null,"MAR-01.05.04-FEAMP-0060","MUNICÍPIO DE FARO","Equipamentos de apoio ao Porto de Abrigo - Ilha da Culatra","DRAP Algarve",7176365,199872.49,199872.49,149904.37,49968.12,"2018-09-01","2019-12-31"]
[null,null,null,null,null,null,null,"MAR-01.05.01-FEAMP-0061","MUNICÍPIO DE OLHÃO","Requalificação e valorização da rampa de acesso a embarcações no Porto de Olhão","DRAP Algarve",7080934,30681.7,30681.7,23011.279999999999,7670.42,"2017-06-08","2018-05-02"]
[null,null,null,null,null,null,null,"MAR-01.05.01-FEAMP-0062","MUNICÍPIO DE OLHÃO","Requalificação dos apoios de pesca na Fuzeta","DRAP Algarve",7080934,21083.4,21083.4,15812.55,5270.85,"2017-05-01","2017-09-30"]
[null,null,null,null,null,null,null,"MAR-01.05.01-FEAMP-0063","DOCAPESCA PORTOS E LOTAS, S,A,","Reabilitação das redes de fornecimento de água e electricidade - Porto Portimão","DRAP Algarve",7282212,119805.63,118784.01,89088.01,29696,"2017-10-02","2018-12-31"]
[null,null,null,null,null,null,null,"MAR-01.05.01-FEAMP-0064","DOCAPESCA PORTOS E LOTAS, S,A,","Reabilitação da lota da Fuseta","DRAP Algarve",7282212,349611.5,349611.5,262208.63,87402.87,"2017-10-01","2019-03-31"]
[null,null,null,null,null,null,null,"MAR-01.05.01-FEAMP-0065","MUNICÍPIO DA MURTOSA","Requalificação do Cais da Cova do Chegado","DRAP Centro",7392037,198050.02,154174.38,115630.79,38543.589999999997,"2017-11-30","2017-12-27"]
[null,null,null,null,null,null,null,"MAR-01.05.01-FEAMP-0066","MUNICÍPIO DA MURTOSA","MOLHE NO PORTO DE ABRIGO DA TORREIRA","DRAP Centro",7392037,403915.95,400654.32,300490.74,100163.58,"2016-10-21","2018-07-31"]
[null,null,null,null,null,null,null,"MAR-01.05.03-FEAMP-0069","DOCAPESCA PORTOS E LOTAS, S,A,","Edificação e infraestruturas de apoio à descarga da sardinha","DRAP Alentejo",7282212,597150,597150,447862.5,149287.5,"2017-10-03","2018-12-31"]
[null,null,null,null,null,null,null,"MAR-01.05.02-FEAMP-0070","ASSOCIAÇÃO DE MORADORES DA ILHA DA CULATRA","Aquisição de contentores para guarda de artes e aprestos de pesca - Culatra","DRAP Algarve",7397263,18389.2,18033.240000000002,13524.94,4508.3,"2017-06-01","2018-06-30"]
[null,null,null,null,null,null,null,"MAR-01.05.04-FEAMP-0071","DOCAPESCA PORTOS E LOTAS, S,A,","Fornecimento e montagem de cais flutuante para apoio de pesca - Ilha da Culatra","DRAP Algarve",7282212,314480,314480,235860,78620,"2017-09-03","2020-05-15"]
[null,null,null,null,null,null,null,"MAR-01.05.02-FEAMP-0072","OLHÃOPESCA - ORGANIZAÇÃO DE PRODUTORES DE PESCA DO ALGARVE, CRL","Aquisição de equipamentos que beneficiem as condições de desembarque","DRAP Algarve",5826466,289443.59999999998,229001.4,128813.29,42937.760000000002,"2017-08-01","2018-09-30"]
[null,null,null,null,null,null,null,"MAR-01.05.01-FEAMP-0074","DIREÇÃO REGIONAL DAS PESCAS","Melhoria das condições operacionais e de segurança do porto do Topo, S, Jorge","DRP Açores",7991621,6423920,6423920,4817940,1605980,"2015-08-01","2020-12-31"]
[null,null,null,null,null,null,null,"MAR-01.05.03-FEAMP-0075","LOTAÇOR - SERVIÇO DE LOTAS DOS AÇORES, S,A,","Aquisição 15 marcadores pneumáticos p/ marcação de pescado c/ etiqueta, p/ RAA","DRP Açores",7091046,12180,12180,9135,3045,"2017-10-23","2017-12-30"]
[null,null,null,null,null,null,null,"MAR-01.05.01-FEAMP-0076","APROPESCA - ORGANIZAÇÃO DE PRODUTORES DE PESCA ARTESANAL, CRL","APROPESCA - Aq, Dornas e Contentores","DRAP Norte",5169841,106529.8,106529.8,59923.01,19974.34,"2018-11-29","2019-04-22"]
[null,null,null,null,null,null,null,"MAR-01.05.01-FEAMP-0077","APROPESCA - ORGANIZAÇÃO DE PRODUTORES DE PESCA ARTESANAL, CRL","APROPESCA - Aq, e Fornecimento de Isca","DRAP Norte",5169841,256824,200000,150000,50000,"2019-09-16","2020-05-18"]
[null,null,null,null,null,null,null,"MAR-01.05.01-FEAMP-0078","DOCAPESCA PORTOS E LOTAS, S,A,","Plataforma Flutuante - Porto de Pesca de Peniche","DRAP Lisboa e Vale do Tejo - Oeste",7282212,60000,57270,42952.5,14317.5,"2018-06-03","2019-04-08"]
[null,null,null,null,null,null,null,"MAR-01.05.01-FEAMP-0079","DOCAPESCA PORTOS E LOTAS, S,A,","Reabilitação de Armazéns de Aprestos - Porto Pesca de Sesimbra","DRAP Lisboa e Vale do Tejo - Oeste",7282212,49843.59,49026.47,36769.85,12256.62,"2018-06-04","2018-11-30"]
[null,null,null,null,null,null,null,"MAR-01.05.01-FEAMP-0080","Municipio de Mafra","Aquisição de Guincho Hidráulico","DRAP Lisboa e Vale do Tejo - Oeste",7499417,63765.05,63765.05,47823.79,15941.26,"2019-03-15","2019-03-31"]
[null,null,null,null,null,null,null,"MAR-01.05.01-FEAMP-0082","OPCENTRO - COOPERATIVA DE PESCA GERAL DO CENTRO, CRL","Aquisição de Contentores Isotérmicos e Inox","DRAP Lisboa e Vale do Tejo - Oeste",4913857,89300,64448,36252,12084,"2018-04-01","2018-12-04"]
[null,null,null,null,null,null,null,"MAR-01.05.01-FEAMP-0083","MUNICÍPIO DE TORRES VEDRAS","Requalificação do Porto de Pesca Local da Assenta","DRAP Lisboa e Vale do Tejo - Oeste",7379153,188501.9,121451.64,91088.74,30362.9,"2018-07-01","2020-03-30"]
[null,null,null,null,null,null,null,"MAR-01.05.01-FEAMP-0085","União de Freguesias de Santa Marinha e são Pedro da Afurada","AFURADA - Posto de Controlo e Registo de Pescado","DRAP Norte",9173131,153021.39000000001,153021.39000000001,114766.04,38255.35,"2018-07-10","2020-12-14"]
[null,null,null,null,null,null,null,"MAR-01.05.01-FEAMP-0086","ASSOCIACAO MUTUA DOS ARMADORES DE PESCA DE ANGEIRAS - MAPA","Apoio a Atividade de Pesca Tradicional em Matosinhos","DRAP Norte",7677157,196690,196690,88510.5,29503.5,"2018-07-01","2020-09-07"]
[null,null,null,null,null,null,null,"MAR-01.05.02-FEAMP-0087","Municipio do Barreiro","Requalificação da Doca Seca","DRAP Lisboa e Vale do Tejo - Oeste",7974007,279685.90000000002,227046.8,170285.1,56761.7,"2018-10-01","2020-03-31"]
[null,null,null,null,null,null,null,"MAR-01.05.02-FEAMP-0088","MUNICÍPIO DE VILA DO BISPO","Aquisição de contentores no núcleo de pesca de Salema","DRAP Algarve",7379072,99605.4,99605.4,74704.05,24901.35,"2018-06-01","2019-05-04"]
[null,null,null,null,null,null,null,"MAR-01.05.01-FEAMP-0090","MUNICÍPIO DE AVEIRO","Núcleo de apoio à pesca de S, Jacinto","DRAP Centro",7167246,358380.82,266666.67,200000,66666.67,"2018-05-30","2019-08-31"]
[null,null,null,null,null,null,null,"MAR-01.05.03-FEAMP-0093","SECRETARIA REGIONAL DE AGRICULTURA E PESCAS","Reabilitação da Lota do Funchal","DRP Madeira",8590586,5551849.2199999997,5551849.2199999997,4163886.92,1387962.3,"2016-10-01","2020-06-30"]
[null,null,null,null,null,null,null,"MAR-01.05.03-FEAMP-0094","LOTAÇOR - SERVIÇO DE LOTAS DOS AÇORES, S,A,","Aquisição de sistema rastreabilidade e identificação de tamanho e calibre","DRP Açores",7091046,69318,69318,51988.5,17329.5,"2018-05-24","2020-01-31"]
[null,null,null,null,null,null,null,"MAR-01.05.03-FEAMP-0095","LOTAÇOR - SERVIÇO DE LOTAS DOS AÇORES, S,A,","Fornecimento Equip, Movimentação de Carga p/ Entreposto de PDL","DRP Açores",7091046,170000,170000,127500,42500,"2018-10-20","2019-10-31"]
[null,null,null,null,null,null,null,"MAR-01.05.01-FEAMP-0096","LOTAÇOR - SERVIÇO DE LOTAS DOS AÇORES, S,A,","Fornecimento e montagem de central de gelo Rabo de Peixe","DRP Açores",7091046,365000,365000,273750,91250,"2018-11-02","2020-04-14"]
[null,null,null,null,null,null,null,"MAR-01.05.01-FEAMP-0098","LOTAÇOR - SERVIÇO DE LOTAS DOS AÇORES, S,A,","Beneficiação de câmaras frio, silo e máq, gelo posto recolha Ribeira Quente","DRP Açores",7091046,68298,68298,51223.5,17074.5,"2018-12-03","2019-09-18"]
[null,null,null,null,null,null,null,"MAR-01.05.01-FEAMP-0099","DIREÇÃO REGIONAL DAS PESCAS","Construção de casas de aprestos e posto de recolha em S, Roque Pico","DRP Açores",7991621,190033.47,190033.47,142525.10999999999,47508.36,"2016-08-01","2019-12-31"]
[null,null,null,null,null,null,null,"MAR-01.05.02-FEAMP-0100","APROPESCA - ORGANIZAÇÃO DE PRODUTORES DE PESCA ARTESANAL, CRL","APROPESCA - Aquisição de Empilhadores - Porto da Póvoa de Varzim,","DRAP Norte",5169841,80591.89,80591.88,45332.94,15110.97,"2019-03-01","2019-12-31"]
[null,null,null,null,null,null,null,"MAR-01.05.02-FEAMP-0102","SESIBAL - COOPERATIVA DE PESCA DE SETÚBAL, SESIMBRA E SINES, CRL","Aquisição de equipamentos para  a qualidade do pescado e condições de descarga","DRAP Lisboa e Vale do Tejo - Oeste",4910607,52727.19,43727.8,24596.89,8198.9599999999991,"2019-01-02","2019-09-30"]
[null,null,null,null,null,null,null,"MAR-01.05.01-FEAMP-0107","APROPESCA - ORGANIZAÇÃO DE PRODUTORES DE PESCA ARTESANAL, CRL","Renovação de espaço e adaptação de balneários no Porto da Póvoa de Varzim","DRAP Norte",5169841,145509,145509,81848.81,27282.94,"2019-10-21","2020-12-15"]
[null,null,null,null,null,null,null,"MAR-01.05.02-FEAMP-0109","ARTESANALPESCA - ORGANIZAÇAO DE PRODUTORES DE PESCA, CRL","Aquisição de equipamentos de movimentação de carga e vasilhame","DRAP Lisboa e Vale do Tejo - Oeste",4912912,485707.76,400000,225000.01,74999.990000000005,"2019-02-15","2020-08-31"]
[null,null,null,null,null,null,null,"MAR-01.05.02-FEAMP-0110","MUNICÍPIO DE OLHÃO","Implantação e Instalação de Apoios de Pesca - Olhão","DRAP Algarve",7080934,180200,180200,135150,45050,"2018-10-08","2021-06-05"]
[null,null,null,null,null,null,null,"MAR-01.05.01-FEAMP-0111","DOCAPESCA PORTOS E LOTAS, S,A,","Projeto para Construção do Pavilhão de Cerco no Porto de Pesca de Sesimbra","DRAP Lisboa e Vale do Tejo - Oeste",7282212,700000,400000,300000,100000,"2019-12-02","2021-01-31"]
[null,null,null,null,null,null,null,"MAR-01.05.01-FEAMP-0112","DOCAPESCA PORTOS E LOTAS, S,A,","Sistema de venda em lota, rastreabilidade e estatistica - Projeto Piloto Setubal","DRAP Lisboa e Vale do Tejo - Oeste",7282212,300000,300000,225000,75000,"2019-05-01","2019-10-31"]
[null,null,null,null,null,null,null,"MAR-01.05.01-FEAMP-0113","DOCAPESCA PORTOS E LOTAS, S,A,","Melhoria da eficiência energética - Porto de Pesca de Peniche","DRAP Lisboa e Vale do Tejo - Oeste",7282212,100000,90620,67965,22655,"2019-01-02","2020-12-31"]
[null,null,null,null,null,null,null,"MAR-01.05.01-FEAMP-0115","DOCAPESCA PORTOS E LOTAS, S,A,","DOCAPESCA - Requalificação do Sistema de Captação de Água - Matosinhos","DRAP Norte",7282212,253200,253200,189900,63300,"2019-03-01","2019-12-31"]
[null,null,null,null,null,null,null,"MAR-01.05.01-FEAMP-0116","DOCAPESCA PORTOS E LOTAS, S,A,","Remodelação da Rede de Distribuição de Energia - P, Varzim","DRAP Norte",7282212,200000,165500,124125,41375,"2019-12-02","2021-01-31"]
[null,null,null,null,null,null,null,"MAR-01.05.02-FEAMP-0117","DOCAPESCA PORTOS E LOTAS, S,A,","Reabilitação dos cais de descarga, estacionamento e abastecimento- Porto Peniche","DRAP Lisboa e Vale do Tejo - Oeste",7282212,599895,400000,300000,100000,"2019-11-04","2021-11-01"]
[null,null,null,null,null,null,null,"MAR-01.05.04-FEAMP-0118","MUNICÍPIO DE ÍLHAVO","Construção de rampa de acesso para as embarcações no cais de abrigo","DRAP Centro",7558267,92303.18,92303.18,69227.39,23075.79,"2019-06-01","2020-05-31"]
[null,null,null,null,null,null,null,"MAR-01.05.01-FEAMP-0120","COOPERATIVA DE PRODUTORES DE PEIXE DO CENTRO LITORAL, C,R,L,","Aquisição de contentores isotérmicos para transporte de pescado e gelo","DRAP Centro",5628165,409610,274911,154637.44,51545.81,"2019-11-21","2020-07-30"]
[null,null,null,null,null,null,null,"MAR-01.05.01-FEAMP-0121","DOCAPESCA PORTOS E LOTAS, S,A,","Parque de apoio aos armadores de pesca no Porto de Pesca de Lagos","DRAP Algarve",7282212,175000,175000,131250,43750,"2019-01-01","2019-12-31"]
[null,null,null,null,null,null,null,"MAR-01.05.01-FEAMP-0123","COOPERATIVA DE PRODUTORES DE PEIXE DO CENTRO LITORAL, C,R,L,","Aquisição de empilhadores para descarga de pescado no Porto da Fig,da Foz","DRAP Centro",5628165,683442,380732,214161.75,71387.25,"2019-11-21","2020-12-31"]
[null,null,null,null,null,null,null,"MAR-01.05.01-FEAMP-0126","DOCAPESCA PORTOS E LOTAS, S,A,","Melhoria da Eficiência Energética - Porto de Pesca da Nazaré","DRAP Lisboa e Vale do Tejo - Oeste",7282212,189500,170500,127875,42625,"2019-06-10","2020-10-12"]
[null,null,null,null,null,null,null,"MAR-01.05.01-FEAMP-0127","VIDAS NAVEGANTES, LDA","Modernização de instalações terrestres (armazéns de apresto) no Porto da Fig Foz","DRAP Centro",7660171,51344,37240.85,13965.32,4655.1099999999997,"2019-01-07","2019-12-31"]
[null,null,null,null,null,null,null,"MAR-01.05.01-FEAMP-0128","DOCAPESCA PORTOS E LOTAS, S,A,","Reordenamento parcial do Porto de Pesca de Quarteira","DRAP Algarve",7282212,249998,249998,187498.5,62499.5,"2018-11-02","2019-12-31"]
[null,null,null,null,null,null,null,"MAR-01.05.01-FEAMP-0129","DOCAPESCA PORTOS E LOTAS, S,A,","Reabilitação do Edificio da Lota no Porto de Pesca de Quarteira","DRAP Algarve",7282212,299965.21999999997,299965.21999999997,224973.92,74991.3,"2018-11-16","2020-01-30"]
[null,null,null,null,null,null,null,"MAR-01.05.01-FEAMP-0131","DOCAPESCA PORTOS E LOTAS, S,A,","Melhoria da Eficência Energética - Portos do Algarve","DRAP Algarve",7282212,450000,388000,291000,97000,"2019-06-03","2020-09-14"]
[null,null,null,null,null,null,null,"MAR-01.05.01-FEAMP-0133","PESCAXICO - SOCIEDADE DE PESCAS, LDA,","Modernização de instalações terrestres (armazém de aprestos) no Porto da Fig,Foz","DRAP Centro",7213006,25672,18591.310000000001,6971.75,2323.91,"2019-01-07","2019-07-15"]
[null,null,null,null,null,null,null,"MAR-01.05.01-FEAMP-0134","FRANCISPESCA - SOCIEDADE DE PESCA, LDA,","MODERNIZAÇÃO DE INSTALAÇÕES TERRESTRES (ARMAZÉM DE APRESTOS)","DRAP Centro",7541787,25672,18591.310000000001,6971.75,2323.91,"2019-01-07","2019-07-15"]
[null,null,null,null,null,null,null,"MAR-01.05.04-FEAMP-0136","Sociedade Polis Litoral Sudoeste","Recuperação dos arrumos de aprestos de pesca no Portinho da Lapa das Pombas","DRAP Alentejo",7698084,121760,119493.83,89620.37,29873.46,"2018-12-01","2019-12-31"]
[null,null,null,null,null,null,null,"MAR-01.05.02-FEAMP-0137","Sociedade Polis Litoral Sudoeste","Reparação do Cais do Molhe de Abrigo do Portinho de Porto Covo","DRAP Alentejo",7698084,202937.5,92004,69003,23001,"2018-11-01","2019-12-31"]
[null,null,null,null,null,null,null,"MAR-01.05.01-FEAMP-0138","SECRETARIA REGIONAL DE AGRICULTURA E PESCAS","Remodelação do varadouro do Paul do Mar","DRP Madeira",8590586,254167.91,254167.91,190625.94,63541.97,"2017-09-01","2020-09-30"]
[null,null,null,null,null,null,null,"MAR-01.05.01-FEAMP-0139","Administração do Porto de Setúbal e Sesimbra","Construção da Ponte-Cais nº 4 - Porto de Sesimbra","DRAP Lisboa e Vale do Tejo - Oeste",7227761,3250000,3250000,2437500,812500,"2019-05-01","2020-07-24"]
[null,null,null,null,null,null,null,"MAR-01.05.01-FEAMP-0141","MUNICÍPIO DA LOURINHÃ","Reposicaode quebra-mar no Portinho de Porto das Barcas","DRAP Lisboa e Vale do Tejo - Oeste",7376731,273276.5,254147.15,190610.36,63536.79,"2018-12-26","2020-06-08"]
[null,null,null,null,null,null,null,"MAR-01.05.01-FEAMP-0142","Sociedade Polis Litoral Sudoeste","Beneficiação e Requalificação do Portinho da Arrifana,","DRAP Algarve",7698084,608850,597780,448335,149445,"2018-11-01","2019-12-30"]
[null,null,null,null,null,null,null,"MAR-01.05.01-FEAMP-0143","DOCAPESCA PORTOS E LOTAS, S,A,","Reabilitação da Ponte-Cais Sul do Porto de Pesca da Baleeira, Sagres","DRAP Algarve",7282212,1000000,1000000,750000,250000,"2019-07-17","2021-06-30"]
[null,null,null,null,null,null,null,"MAR-01.05.01-FEAMP-0144","DOCAPESCA PORTOS E LOTAS, S,A,","Reabilitação de Armazém - Porto de Pesca da Figueira da Foz","DRAP Centro",7282212,399990,399990,299992.5,99997.5,"2019-11-18","2020-12-31"]
[null,null,null,null,null,null,null,"MAR-01.05.03-FEAMP-0145","SECRETARIA REGIONAL DE AGRICULTURA E PESCAS","Remodelação da Lota do Caniçal fase I - Unidade externa de gelo","DRP Madeira",8590586,1423850.34,1423850.34,1067887.76,355962.58,"2017-12-01","2020-06-30"]
[null,null,null,null,null,null,null,"MAR-01.05.03-FEAMP-0146","LOTAÇOR - SERVIÇO DE LOTAS DOS AÇORES, S,A,","Fiscalização e empreitada de requalificação do entreposto frigorifico da Horta","DRP Açores",7091046,3600000,3600000,2700000,900000,"2019-06-01","2021-12-01"]
[null,null,null,null,null,null,null,"MAR-01.05.03-FEAMP-0147","LOTAÇOR - SERVIÇO DE LOTAS DOS AÇORES, S,A,","Aquisição de caixas de transporte/acondicionamento de pescado p/ as lotas RAA","DRP Açores",7091046,64600,64600,48450,16150,"2019-11-25","2020-06-25"]
[null,null,null,null,null,null,null,"MAR-01.09.02-FEAMP-0003","CARLOS CRUZ & CÁTIA LOPES, LDA","FURIA, VC-209-C, PRT000019152","DGRM - Direção Geral de Recursos Naturais Segurança e Serviços Marítimos",9017033,220990.97,220990.97,110495.49,110495.48,"2017-12-29","2018-05-28"]
[null,null,null,null,null,null,null,"MAR-01.09.02-FEAMP-0006","MARIA DAS DORES SILVA BRANCO","FURIA, VC-209-C, PRT000019152, MARIA BRANCO","DGRM - Direção Geral de Recursos Naturais Segurança e Serviços Marítimos",9137723,13368,13368,6684,6684,"2017-12-29","2018-05-28"]
[null,null,null,null,null,null,null,"MAR-01.09.02-FEAMP-0008","ARMINDO PEREIRA DA AURORA","ARMINDO AURORA, VC-229-C, PRT000020004","DGRM - Direção Geral de Recursos Naturais Segurança e Serviços Marítimos",7284002,357691.6,357691.6,178845.8,178845.8,"2017-12-29","2018-05-28"]
[null,null,null,null,null,null,null,"MAR-01.09.02-FEAMP-0010","MANUEL AGONIA ARTEIRO PEREIRA","FURIA, VC-209-C, PRT000019152, MANUEL PEREIRA","DGRM - Direção Geral de Recursos Naturais Segurança e Serviços Marítimos",9137874,13368,13368,6684,6684,"2017-12-29","2018-05-28"]
[null,null,null,null,null,null,null,"MAR-01.09.02-FEAMP-0011","MANUEL LUIS MARTINS NEVES","ARMINDO AURORA, VC-229-C, PRT000020004, MANUEL NEVES","DGRM - Direção Geral de Recursos Naturais Segurança e Serviços Marítimos",9138146,13368,13368,6684,6684,"2017-12-29","2018-05-29"]
[null,null,null,null,null,null,null,"MAR-01.09.02-FEAMP-0012","INÁCIO JOSÉ ARTEIRO PEREIRA","FURIA, VC-209-C, PRT000019152, INÁCIO PEREIRA","DGRM - Direção Geral de Recursos Naturais Segurança e Serviços Marítimos",9137835,13368,13368,6684,6684,"2017-12-29","2018-05-28"]
[null,null,null,null,null,null,null,"MAR-01.09.02-FEAMP-0013","JOSÉ MANUEL DA RUSSA CASTANHO","VIRGEM DOS ANJOS, VC-291-C, PRT000019182","DGRM - Direção Geral de Recursos Naturais Segurança e Serviços Marítimos",7284501,162344.92000000001,162344.92000000001,81172.460000000006,81172.460000000006,"2017-12-29","2018-05-28"]
[null,null,null,null,null,null,null,"MAR-01.09.02-FEAMP-0014","RODRIGO MARAVALHAS PEREIRA","VIRGEM DOS ANJOS, VC-291-C, PRT000019182, RODRIGO PEREIRA","DGRM - Direção Geral de Recursos Naturais Segurança e Serviços Marítimos",9138115,13368,13368,6684,6684,"2017-12-29","2018-05-28"]
[null,null,null,null,null,null,null,"MAR-01.09.02-FEAMP-0015","MARIA DA CONCEIÇÃO MEIRELES NOVO","VIRGEM DOS ANJOS, VC-291-C, PRT000019182, MARIA NOVO","DGRM - Direção Geral de Recursos Naturais Segurança e Serviços Marítimos",9137793,13368,13368,6684,6684,"2017-12-29","2018-05-28"]
[null,null,null,null,null,null,null,"MAR-01.09.02-FEAMP-0016","NATÁLIA MARIA PEREIRA MOREIRA","VIRGEM DOS ANJOS, VC-291-C, PRT000019182, NATÁLIA MOREIRA","DGRM - Direção Geral de Recursos Naturais Segurança e Serviços Marítimos",9137812,13368,13368,6684,6684,"2017-12-29","2018-05-28"]
[null,null,null,null,null,null,null,"MAR-01.09.02-FEAMP-0017","SÉRGIO JOSÉ MOREIRA CASTANHO","VIRGEM DOS ANJOS, VC-291-C, PRT000019182, SERGIO CASTANHO","DGRM - Direção Geral de Recursos Naturais Segurança e Serviços Marítimos",9138131,13368,13368,6684,6684,"2017-12-29","2018-05-28"]
[null,null,null,null,null,null,null,"MAR-01.09.02-FEAMP-0020","MARIA DO SAMEIRO RAMOS MOREIRA","VIRGEM DOS ANJOS, VC-291-C, PRT000019182, MARIA MOREIRA","DGRM - Direção Geral de Recursos Naturais Segurança e Serviços Marítimos",9137827,13368,13368,6684,6684,"2017-12-29","2018-05-28"]
[null,null,null,null,null,null,null,"MAR-02.01.01-FEAMP-0004","INSTITUTO POLITÉCNICO DE LEIRIA","OURICEIRA AQUA","DRAP Lisboa e Vale do Tejo - Oeste",7163701,285094.52,284990.90999999997,213743.19,71247.72,"2017-07-20","2020-12-30"]
[null,null,null,null,null,null,null,"MAR-02.01.03-FEAMP-0006","ALBERTO DA CRUZ FERREIRA","Modernização da Piscicultura Adeiro Velho I","DRAP Centro",4855713,98928.7,98928.7,37098.26,12366.09,"2016-09-01","2018-03-31"]
[null,null,null,null,null,null,null,"MAR-02.01.03-FEAMP-0009","MARVELLOUS WAVE - ATIVIDADES AQUÍCOLAS S,A,","Unidade Ostreícola da Marvellous Wave","DRAP Lisboa e Vale do Tejo - Oeste",8184507,1121422.5,974829.85,365561.21,121853.72,"2016-08-19","2020-04-29"]
[null,null,null,null,null,null,null,"MAR-02.01.03-FEAMP-0010","TESTA & CUNHAS S,A,","Construção e instalação no mar dos blocos 2 e 3 da Algarve Offshore Seashells,","DRAP Algarve",7067984,481374.46,465720.84,174645.32,58215.11,"2017-01-01","2019-12-31"]
[null,null,null,null,null,null,null,"MAR-02.01.03-FEAMP-0011","FINDFRESH, S,A,","Otimização da produtividade aquicola de enguia em RAS","DRAP Centro",7314974,2499470.15,2092882.83,784831.07,261610.35,"2015-05-10","2019-12-02"]
[null,null,null,null,null,null,null,"MAR-02.01.01-FEAMP-0013","MIRABILIS - AQUACULTURA SUSTENTÁVEL, LDA,","ANGULATA I&D - Inovação na Produção de Ostra Portuguesa em Maternidade","DRAP Algarve",8859123,98240.12,98240.12,36840.050000000003,12280.01,"2017-01-01","2020-01-31"]
[null,null,null,null,null,null,null,"MAR-02.01.01-FEAMP-0014","Universidade do Algarve","Desenvolvimento de um peixe de aquacultura","DRAP Algarve",7090437,486120.27,484222.78,363167.09,121055.69,"2017-11-01","2021-03-18"]
[null,null,null,null,null,null,null,"MAR-02.01.03-FEAMP-0017","AKI-D'EL-MAR  COMÉRCIO E INDÚSTRIA DE MARISCOS, LDA,","Criação de Nova Unidade de Depuração AKIDELMAR","DRAP Lisboa e Vale do Tejo - Oeste",8858762,2909901.15,2352255.61,882095.87,294031.95,"2015-10-19","2020-01-31"]
[null,null,null,null,null,null,null,"MAR-02.01.01-FEAMP-0018","Universidade de Aveiro","BIODEPURA - Desenvolvimento de metodologias de  depuração de moluscos bivalves","DRAP Centro",7430371,430001.46,396119.11,297089.33,99029.78,"2018-01-01","2020-11-20"]
[null,null,null,null,null,null,null,"MAR-02.01.01-FEAMP-0019","Universidade de Aveiro","MAXIAQUA - maximização estratégias controlo parasita em aquacultura","DRAP Centro",7430371,375586.28,345179.21,258884.42,86294.79,"2018-01-01","2020-10-20"]
[null,null,null,null,null,null,null,"MAR-02.01.03-FEAMP-0021","EDULIS - COMÉRCIO DE PEIXE E MARISCO, LDA","Unidade EDULIS","DRAP Algarve",8861702,604627.42000000004,603983.23,226493.71,75497.91,"2014-04-01","2020-03-31"]
[null,null,null,null,null,null,null,"MAR-02.01.01-FEAMP-0022","Universidade de Aveiro","Identificação e avaliação de zonas estuarinas e lagunares","DRAP Centro",7430371,330544.09999999998,308285.89,231214.42,77071.47,"2018-01-01","2020-09-30"]
[null,null,null,null,null,null,null,"MAR-02.01.01-FEAMP-0023","Faculdade de Ciências de Lisboa","UROFEED","DRAP Lisboa e Vale do Tejo - Oeste",7477221,590499.49,590376.49,442782.37,147594.12,"2017-10-01","2020-09-26"]
[null,null,null,null,null,null,null,"MAR-02.01.01-FEAMP-0025","Universidade de Aveiro","DETEÇÃO AUTOMÁTICA DE MICROALGAS TÓXICAS","DRAP Centro",7430371,250703,211237.24,158427.93,52809.31,"2018-01-01","2020-09-30"]
[null,null,null,null,null,null,null,"MAR-02.01.03-FEAMP-0027","ALFABETO SALGADO, LDA,","CORIM - NOVO ESTABELECIMENTO DE CULTURAS MARINHAS","DRAP Centro",8861806,99200,95917.5,35969.06,11989.69,"2016-10-07","2018-03-31"]
[null,null,null,null,null,null,null,"MAR-02.01.03-FEAMP-0028","LUSOAMOREIRAS - Sociedade Imobiliária, S A","BIOFAT,PT","DRAP Lisboa e Vale do Tejo - Oeste",8862632,16415023,13000000,4875000,1625000,"2017-01-01","2019-12-31"]
[null,null,null,null,null,null,null,"MAR-02.01.03-FEAMP-0030","MANUEL FILIPE FREITAS REBELO","TRUTIUCULTURA de MONTALEGRE","DRAP Norte",5177697,69750,66775,25040.63,8346.8700000000008,"2016-10-03","2020-10-06"]
[null,null,null,null,null,null,null,"MAR-02.01.01-FEAMP-0031","Universidade de Aveiro","AquaHeal - Modulação Microbiana em Aquaculturas com Sistema de Recirculação","DRAP Centro",7430371,405932,358129.91999999998,268597.45,89532.47,"2018-01-01","2020-09-30"]
[null,null,null,null,null,null,null,"MAR-02.01.03-FEAMP-0032","QUINTA DO SALMÃO COMÉRCIO DE PEIXE LDA","QUINTA do SALMÃO - Pisões - Montalegre","DRAP Norte",7073114,96942.64,96942.64,36353.49,12117.83,"2017-12-01","2020-08-02"]
[null,null,null,null,null,null,null,"MAR-02.01.03-FEAMP-0033","FALCAMAR - COMÉRCIO DE MARISCOS, LDA,","FALCAMAR, Lda - Depuradora Bivalves Frescos","DRAP Norte",8377927,169864.38,169864.38,63699.14,21233.05,"2016-01-01","2020-04-18"]
[null,null,null,null,null,null,null,"MAR-02.01.03-FEAMP-0036","Safiestela Sustainable Aquafarming Investments, SA","SAFIESTELA, S,A - Maternidade de Linguado","DRAP Norte",7775593,245909.83,243872.49,91452.19,30484.06,"2016-01-01","2020-06-26"]
[null,null,null,null,null,null,null,"MAR-02.01.03-FEAMP-0037","AQUAGOMA - PRODUTOS DO RIO E MAR LDA","AQUAGOMA - Aquicultura Rio Lima","DRAP Norte",8855407,710685,701685,263131.90000000002,87710.61,"2017-10-01","2020-07-30"]
[null,null,null,null,null,null,null,"MAR-02.01.01-FEAMP-0038","Universidade de Aveiro","AquaMMin: Desenvolvimento dum sistema de aquacultura modular","DRAP Centro",7430371,1590888.37,1269868.6100000001,952401.46,317467.15000000002,"2018-01-01","2020-09-30"]
[null,null,null,null,null,null,null,"MAR-02.01.01-FEAMP-0039","INSTITUTO SUPERIOR TÉCNICO","PHYCOSPT","DRAP Lisboa e Vale do Tejo - Oeste",7507791,1444149.15,1309608.8899999999,982206.68,327402.21000000002,"2017-03-02","2020-03-01"]
[null,null,null,null,null,null,null,"MAR-02.01.01-FEAMP-0040","INSTITUTO SUPERIOR TÉCNICO","FOULINGLESS","DRAP Lisboa e Vale do Tejo - Oeste",7507791,780692.64,770091.14,577568.36,192522.78,"2017-01-03","2020-02-28"]
[null,null,null,null,null,null,null,"MAR-02.01.01-FEAMP-0041","INSTITUTO SUPERIOR TÉCNICO","Cage4PTSea","DRAP Lisboa e Vale do Tejo - Oeste",7507791,762550.67,702010.81,526508.11,175502.7,"2017-10-01","2020-09-04"]
[null,null,null,null,null,null,null,"MAR-02.01.01-FEAMP-0042","Universidade Nova de Lisboa","INOVA4AQUA","DRAP Lisboa e Vale do Tejo - Oeste",9026322,749546,548233.79,411175.34,137058.45000000001,"2017-01-01","2019-12-13"]
[null,null,null,null,null,null,null,"MAR-02.01.02-FEAMP-0043","INSTITUTO PORTUGUÊS DO MAR E DA ATMOSFERA, I,P,","SNMB-MONITOR","DRAP Lisboa e Vale do Tejo - Oeste",7956586,3154580.5,2944296.68,2208222.5099999998,736074.17,"2016-01-01","2020-07-21"]
[null,null,null,null,null,null,null,"MAR-02.01.01-FEAMP-0045","INSTITUTO PORTUGUÊS DO MAR E DA ATMOSFERA, I,P,","SNMB - INOV","DRAP Lisboa e Vale do Tejo - Oeste",7956586,1722020.87,1706778.48,1280083.8799999999,426694.6,"2016-10-07","2020-08-01"]
[null,null,null,null,null,null,null,"MAR-02.01.03-FEAMP-0046","IRMÃOS GONÇALVES TEIXEIRA - EMPRESA DE PESCA LDA,","Modernização de Exploração Aquicola","DRAP Algarve",7256644,99335.54,46263.3,17348.75,5782.91,"2016-11-01","2018-12-31"]
[null,null,null,null,null,null,null,"MAR-02.01.01-FEAMP-0047","INSTITUTO PORTUGUÊS DO MAR E DA ATMOSFERA, I,P,","AQUAMAX","DRAP Lisboa e Vale do Tejo - Oeste",7956586,907228.56,881418.92,661064.21,220354.71,"2016-12-01","2019-11-30"]
[null,null,null,null,null,null,null,"MAR-02.01.03-FEAMP-0048","GUALTER MARISCOS, LDA,","Modernização de Exploração Aquicola","DRAP Algarve",8900137,423388.71,189289.29,70983.490000000005,23661.16,"2016-11-01","2020-03-31"]
[null,null,null,null,null,null,null,"MAR-02.01.01-FEAMP-0049","INSTITUTO SUPERIOR TÉCNICO","PISCISMOD","DRAP Lisboa e Vale do Tejo - Oeste",7507791,493889.98,488467.58,366350.69,122116.89,"2017-01-01","2020-12-31"]
[null,null,null,null,null,null,null,"MAR-02.01.01-FEAMP-0050","Faculdade de Ciências de Lisboa","CRASSOREAB","DRAP Lisboa e Vale do Tejo - Oeste",7477221,355697.45,353414.35,265060.77,88353.58,"2017-11-01","2020-10-31"]
[null,null,null,null,null,null,null,"MAR-02.01.01-FEAMP-0051","Faculdade de Ciências de Lisboa","AQUASADO","DRAP Lisboa e Vale do Tejo - Oeste",7477221,469226.3,454541.52,340906.14,113635.38,"2017-09-01","2020-08-31"]
[null,null,null,null,null,null,null,"MAR-02.01.01-FEAMP-0052","Faculdade de Ciências de Lisboa","NEWCUMBER","DRAP Lisboa e Vale do Tejo - Oeste",7477221,499359.83,462048.85,346536.64,115512.21,"2017-09-01","2020-07-31"]
[null,null,null,null,null,null,null,"MAR-02.01.01-FEAMP-0053","Universidade do Algarve","SEPIACUL - Optimização de tecnologia de cultivo do choco, Sepia officinalis","DRAP Algarve",7090437,526495.79,491244.98,368433.74,122811.24,"2017-11-01","2020-09-15"]
[null,null,null,null,null,null,null,"MAR-02.01.01-FEAMP-0054","Universidade do Algarve","HIPPONUTRE - Cultivo de Cavalo marinho, Hippocampus guttulatos","DRAP Algarve",7090437,235357.34,223258.48,167443.85999999999,55814.62,"2017-11-01","2020-09-15"]
[null,null,null,null,null,null,null,"MAR-02.01.03-FEAMP-0055","GERAÇÃO EM VOGA, LDA","Projeto de Desenvolvimento e Dinamização da Produção de Ostra em Tavira","DRAP Algarve",8854764,99154.34,77451.789999999994,29044.43,9681.4699999999993,"2014-02-01","2019-12-31"]
[null,null,null,null,null,null,null,"MAR-02.01.01-FEAMP-0057","Universidade do Algarve","OSTEOMAR - Novos compostos marinhos como fonte nutricional","DRAP Algarve",7090437,269449.19,269449.19,202086.89,67362.3,"2017-11-01","2020-09-15"]
[null,null,null,null,null,null,null,"MAR-02.01.01-FEAMP-0058","Universidade do Algarve","ALGASOLE-Desenvolvimento e implementação de alimentos suplementados em macroalga","DRAP Algarve",7090437,427275.81,427275.81,320456.86,106818.95,"2017-11-01","2020-09-15"]
[null,null,null,null,null,null,null,"MAR-02.01.01-FEAMP-0059","Universidade do Algarve","REPROF1: Condicionamento de individuos F1 de linguado senegalês","DRAP Algarve",7090437,273493.96000000002,273493.96000000002,205120.49,68373.47,"2017-11-01","2020-09-15"]
[null,null,null,null,null,null,null,"MAR-02.01.01-FEAMP-0060","INSTITUTO PORTUGUÊS DO MAR E DA ATMOSFERA, I,P,","AIM - Inovação e Valorização da Aquacultura de Invertebrados Marinhos","DRAP Algarve",7956586,715335.74,639159.05000000005,479369.29,159789.76000000001,"2017-06-01","2020-06-30"]
[null,null,null,null,null,null,null,"MAR-02.01.02-FEAMP-0061","INSTITUTO PORTUGUÊS DO MAR E DA ATMOSFERA, I,P,","SNMB Sul - Gestão das zonas de produção de moluscos bivalves da região algarvia,","DRAP Algarve",7956586,989183.66,924627.59,693470.69,231156.9,"2016-01-01","2020-07-21"]
[null,null,null,null,null,null,null,"MAR-02.01.03-FEAMP-0062","RELÍQUIAS DA PAISAGEM - UNIPESSOAL, LDA,","Relíquias da Paisagem - Equipamento básico e de transporte","DRAP Algarve",8861145,67514.91,52047.99,19518.009999999998,6505.99,"2016-10-10","2018-10-10"]
[null,null,null,null,null,null,null,"MAR-02.01.03-FEAMP-0063","ESSÊNCIA SELVAGEM, LDA,","Essência Selvagem - Equipamento Básico","DRAP Algarve",8861532,36150.730000000003,36150.730000000003,13556.53,4518.84,"2017-01-01","2019-12-31"]
[null,null,null,null,null,null,null,"MAR-02.01.01-FEAMP-0064","Universidade do Algarve","SERINOVA: Bases para implementação de uma nova espécie na aquacultura em Portuga","DRAP Algarve",7090437,426434.56,426434.56,319825.91999999998,106608.64,"2017-11-01","2020-09-15"]
[null,null,null,null,null,null,null,"MAR-02.01.01-FEAMP-0066","INSTITUTO PORTUGUÊS DO MAR E DA ATMOSFERA, I,P,","DIVERSIAQUA - Diversificação, Inovação e Desenvolvimento da Aquacultura em Port,","DRAP Algarve",7956586,1787925,1787925,1340943.76,446981.24,"2016-02-01","2020-07-21"]
[null,null,null,null,null,null,null,"MAR-02.01.03-FEAMP-0068","BIVALSADO, LDA,","Complexo Anjos de Menezes-Fâlcoa-Cabral","DRAP Lisboa e Vale do Tejo - Oeste",8860745,211673.66,204948.09,76855.539999999994,25618.51,"2015-01-01","2019-07-30"]
[null,null,null,null,null,null,null,"MAR-02.01.03-FEAMP-0069","BIVALMAR - ORGANIZAÇÃO DE PRODUTORES, CRL","Centro de Expedição de Moluscos Bivalves","DRAP Lisboa e Vale do Tejo - Oeste",7359721,51239.4,26299,9862.1299999999992,3287.37,"2017-01-02","2019-12-31"]
[null,null,null,null,null,null,null,"MAR-02.01.03-FEAMP-0070","EXPORSADO - COMÉRCIO E INDÚSTRIA DE PRODUTOS DO MAR, SA","PORTOCEAN","DRAP Lisboa e Vale do Tejo - Oeste",8862922,2945805,2682103,1005788.64,335262.87,"2017-06-26","2020-07-26"]
[null,null,null,null,null,null,null,"MAR-02.01.03-FEAMP-0071","AQUALVOR - ACTIVIDADES EM AQUACULTURA, LDA,","Modernização e Otimização dos Sistemas Produtivos","DRAP Algarve",7471197,273781.90999999997,159181.24,59692.97,19897.66,"2016-01-01","2019-02-28"]
[null,null,null,null,null,null,null,"MAR-02.01.03-FEAMP-0072","EMÁQUA - EMPREENDIMENTOS DE AQUACULTURA, S,A,","EMAQUA - Modernização e capacitação do estabelecimento - Aquacultura Espargueira","DRAP Algarve",7470205,208544.44,198904.53,74589.210000000006,24863.06,"2014-01-01","2019-09-30"]
[null,null,null,null,null,null,null,"MAR-02.01.03-FEAMP-0073","SOCIEDADE PISCICULTORA FARENSE, LDA,","Recuperação, modernização e reativação da Piscicultura dos Sapais","DRAP Algarve",7519277,1351296,1349512.94,506067.41,168689.07,"2015-01-01","2019-12-31"]
[null,null,null,null,null,null,null,"MAR-02.01.03-FEAMP-0074","PISCICULTURA VALE DA LAMA, LDA,","Capacitação e modernização do Estabelecimento - Sulmar","DRAP Algarve",7471182,339275,198135.82,74300.929999999993,24766.98,"2016-01-01","2018-12-31"]
[null,null,null,null,null,null,null,"MAR-02.01.03-FEAMP-0076","RUSTIVENTUR - CONSTRUÇÃO E ORGANIZAÇÃO DE EVENTOS & TURISMO, LDA,","MODERNIZAÇÃO DE EXPLORAÇÃO PISCÍCOLA EM MONDEGUINHO","DRAP Centro",7381434,507058.05,308344.76,115629.29,38543.089999999997,"2016-10-07","2018-10-07"]
[null,null,null,null,null,null,null,"MAR-02.01.03-FEAMP-0080","NASHARYBA, PRODUÇÃO E COMÉRCIO DE PEIXE, LDA","Intervenção estrutural para início do novo ciclo","DRAP Centro",8181784,499065.02,427624.97,160359.37,53453.120000000003,"2016-10-07","2019-11-30"]
[null,null,null,null,null,null,null,"MAR-02.01.03-FEAMP-0081","SILVIA PERRUCA PADINHA","Aquisição de material de apoio à atividade","DRAP Algarve",8377692,37232.080000000002,11102.08,4163.28,1387.76,"2017-01-01","2019-12-31"]
[null,null,null,null,null,null,null,"MAR-02.01.01-FEAMP-0084","INSTITUTO POLITÉCNICO DE LEIRIA","SEAWEEDFEEDS","DRAP Lisboa e Vale do Tejo - Oeste",7163701,360535.33,315856.90000000002,236892.68,78964.22,"2017-07-18","2020-07-17"]
[null,null,null,null,null,null,null,"MAR-02.01.03-FEAMP-0086","JOSÉ MANUEL PRATA, LDA,","Modernização do Centro de Depuração e de Expedição de Bivalves -José M, Prata","DRAP Algarve",7081013,147593,119225,44709.39,14903.11,"2016-01-01","2019-08-22"]
[null,null,null,null,null,null,null,"MAR-02.01.01-FEAMP-0087","INSTITUTO POLITECNICO DE VIANA DO CASTELO","IPVC - Prod, Int, Râ Rana Perezi","DRAP Norte",7170724,743485.17,743485.17,557613.88,185871.29,"2017-01-02","2019-12-31"]
[null,null,null,null,null,null,null,"MAR-02.01.01-FEAMP-0093","AQUAZOR-AQUICULTURA E BIOTECNOLOGIAS MARINHAS DOS AÇORES, SA,","Cultura Offshore de Algas, ECO Algae, Porto Martins, Terceira","DRP Açores",8836944,234777,219689.4,140052,46683.99,"2016-12-22","2020-10-20"]
[null,null,null,null,null,null,null,"MAR-02.01.01-FEAMP-0094","AQUAZOR-AQUICULTURA E BIOTECNOLOGIAS MARINHAS DOS AÇORES, SA,","Cultura Offshore de Algas, ECO Algae, Ribeira Quente Lote B","DRP Açores",8836944,216623,209840.11,133773.07999999999,44591.01,"2016-12-22","2020-10-20"]
[null,null,null,null,null,null,null,"MAR-02.01.01-FEAMP-0095","AQUAZOR-AQUICULTURA E BIOTECNOLOGIAS MARINHAS DOS AÇORES, SA,","Cultura Offshore de Algas, ECO Algae, Ribeira Quente Lote A","DRP Açores",8836944,232083,228893.84,145919.84,48639.92,"2016-12-22","2020-10-20"]
[null,null,null,null,null,null,null,"MAR-02.01.01-FEAMP-0096","AQUAZOR-AQUICULTURA E BIOTECNOLOGIAS MARINHAS DOS AÇORES, SA,","Cultura Offshore de Algas, ECO Algae, Feteira, Faial","DRP Açores",8836944,235623,209319.24,133441.01999999999,44480.33,"2016-12-22","2018-12-21"]
[null,null,null,null,null,null,null,"MAR-02.01.03-FEAMP-0097","CPDA - COMPANHIA PORTUGUESA DE ALGAS, UNIPESSOAL, LDA,","5 Essencia Spirulina Azores - Produção de Spirulina, Graciosa","DRP Açores",8914106,292416.26,292416.26,164484.16,54828.05,"2016-02-01","2020-06-30"]
[null,null,null,null,null,null,null,"MAR-02.01.02-FEAMP-0098","SOCIEDADE PISCICULTORA FARENSE, LDA,","Piscicultura dos Sapais - Ria Formosa","DRAP Algarve",7519277,32500,32500,12187.5,4062.5,"2016-06-23","2019-12-31"]
[null,null,null,null,null,null,null,"MAR-02.01.01-FEAMP-0099","AQUAZOR-AQUICULTURA E BIOTECNOLOGIAS MARINHAS DOS AÇORES, SA,","Laboratório de Ficologia - Estudo, Reprodução e Cultura de Macroalgas","DRP Açores",8836944,237171,233427.17,148809.82,49603.27,"2017-03-01","2021-06-19"]
[null,null,null,null,null,null,null,"MAR-02.01.03-FEAMP-0103","AQUABAIA SOCIEDADE DE AQUACULTURA DAS ILHAS, LDA","Modernização e ampliação da unidade produtiva da Ribeira Brava","DRP Madeira",8972604,1236744.1200000001,1236744.1200000001,463779.04,154593.01999999999,"2017-04-01","2020-03-31"]
[null,null,null,null,null,null,null,"MAR-02.01.03-FEAMP-0105","STOLT SEA FARM (PORTUGAL) S,A,","Ampliação das instalaçãoes de aquicultura na Praia da Tocha","DRAP Centro",7470082,10615000,9661538.5800000001,2173846.1800000002,724615.39,"2018-10-15","2020-10-15"]
[null,null,null,null,null,null,null,"MAR-02.01.01-FEAMP-0106","MUNICÍPIO DE FIGUEIRÓ DOS VINHOS","Adaptação Posto Aquícola  Campelo p/ criação experimental  trutas assilvestradas","DRAP Centro",7497024,1081747.73,1081747.73,811310.81,270436.92,"2019-05-01","2021-08-13"]
[null,null,null,null,null,null,null,"MAR-02.01.01-FEAMP-0107","INSTITUTO HIDROGRÁFICO","AQUIMAR","DRAP Lisboa e Vale do Tejo - Oeste",8991296,812467.82,810717.82,608038.38,202679.44,"2018-08-01","2021-05-15"]
[null,null,null,null,null,null,null,"MAR-02.01.03-FEAMP-0108","NEPTUNPEARL, LDA","Instalação de aquicultura em Setúbal - Reserva Natural do Estuário do Sado","DRAP Lisboa e Vale do Tejo - Oeste",9026063,246503.46,167372.03,62764.52,20921.5,"2017-01-01","2019-05-31"]
[null,null,null,null,null,null,null,"MAR-02.01.01-FEAMP-0110","Sustainable Ocean Supplements, Lda,","VET-AXN","DRAP Lisboa e Vale do Tejo - Oeste",9026314,937146.51,929146.5,348429.95,116143.31,"2017-01-01","2019-12-31"]
[null,null,null,null,null,null,null,"MAR-02.01.01-FEAMP-0111","Universidade do Porto","Faculdade de Ciencias U,P, - InovFeed","DRAP Norte",7513563,389050.03,388075.64,291056.73,97018.91,"2018-01-01","2020-12-31"]
[null,null,null,null,null,null,null,"MAR-02.01.03-FEAMP-0112","OYSTERWORLD","Complexo das marinhas de Canes e Alcacarenha e Cobelos","DRAP Lisboa e Vale do Tejo - Oeste",8215984,2157400.17,1629406.37,611027.39,203675.8,"2018-04-03","2021-06-21"]
[null,null,null,null,null,null,null,"MAR-02.01.03-FEAMP-0115","VIVEIROS RIO MIRA, LDA,","Viveiros Rio Mira","DRAP Norte",9022556,499879.18,468133,175549.88,58516.62,"2017-09-15","2020-12-31"]
[null,null,null,null,null,null,null,"MAR-02.01.01-FEAMP-0116","SEAENTIA-FOOD Lda","SEAENTIA-FOOD, Lda - Prod, de Corvina","DRAP Lisboa e Vale do Tejo - Oeste",9025512,698751.42,565443.93999999994,212041.51,70680.47,"2018-01-01","2020-03-31"]
[null,null,null,null,null,null,null,"MAR-02.01.03-FEAMP-0118","REAL ATUNARA, S,A,","Modernização de duas estruturas fixas em offshore para captura e engorda atuns","DRAP Algarve",7704005,2545317.7400000002,2497947.34,936730.26,312243.40999999997,"2016-01-01","2019-12-31"]
[null,null,null,null,null,null,null,"MAR-02.01.03-FEAMP-0120","FRANCISCO PIRES AVELELAS","Capacidade produtiva no cultivo das ostras-do-pacífico","DRAP Centro",9025334,37040,35816,13431,4477,"2018-02-01","2019-08-31"]
[null,null,null,null,null,null,null,"MAR-02.01.03-FEAMP-0121","AQUA PRIME, LDA,","Expansão da área produtiva e melhoramento do cultivo do molusco bivalve Crassost","DRAP Algarve",8216875,49893.69,36831.9,13811.98,4603.97,"2017-10-10","2019-06-30"]
[null,null,null,null,null,null,null,"MAR-02.01.03-FEAMP-0125","OCEANO FRESCO, UNIPESSOAL, LDA,","MATERNIDADE DE BIVALVES - OCEANO FRESCO","DRAP Lisboa e Vale do Tejo - Oeste",9016416,2531742.56,2226880.7999999998,835080.3,278360.11,"2017-09-18","2020-12-31"]
[null,null,null,null,null,null,null,"MAR-02.01.03-FEAMP-0126","AQUACRIA PISCÍCOLAS, S,A,","MELHORIA DO SISTEMA DE RECIRCULAÇÃO DE ÁGUA","DRAP Centro",7184071,506430.27,506430.27,189911.36,63303.78,"2017-02-01","2018-07-31"]
[null,null,null,null,null,null,null,"MAR-02.01.03-FEAMP-0128","OSTRASELECT ALGARVE, LDA","Modernização da Ostraselect","DRAP Algarve",8206447,404091.78,347030.67,130136.51,43378.83,"2014-04-29","2019-11-30"]
[null,null,null,null,null,null,null,"MAR-02.01.03-FEAMP-0131","RICARDO JOSÉ PERRUCA LOPES","Substituição de motor propulsor e material de apoio à atividade","DRAP Algarve",9038702,15088.3,12266.91,4600.1000000000004,1533.36,"2017-10-20","2019-12-31"]
[null,null,null,null,null,null,null,"MAR-02.01.03-FEAMP-0132","PAULA ISABEL DOS SANTOS PERRUCA LOPES","Substituição de motor propulsor e material de apoio à atividade","DRAP Algarve",9038733,13839.08,12143.09,4553.66,1517.89,"2017-10-20","2019-12-31"]
[null,null,null,null,null,null,null,"MAR-02.01.03-FEAMP-0133","SEMENTE SALTITANTE, LDA,","Instalação de maternidade de bivalves em sistema indoor e de recirculação","DRAP Algarve",9025802,204392,204392,76647.009999999995,25548.99,"2018-09-01","2020-06-30"]
[null,null,null,null,null,null,null,"MAR-02.01.03-FEAMP-0134","ROTA GREGA, LDA,","Armona Fish Farms","DRAP Algarve",8991153,5118074.45,4973886.49,1865207.44,621735.81000000006,"2018-01-02","2020-12-31"]
[null,null,null,null,null,null,null,"MAR-02.01.01-FEAMP-0135","AQUAZOR-AQUICULTURA E BIOTECNOLOGIAS MARINHAS DOS AÇORES, SA,","Aquicultura Atlantic Fish em IMTC c/ macro-algas, APA Ribeira Quente B","DRP Açores",8836944,760919.47,760919.47,485086.17,161695.38,"2017-02-01","2021-06-16"]
[null,null,null,null,null,null,null,"MAR-02.01.01-FEAMP-0136","AQUAZOR-AQUICULTURA E BIOTECNOLOGIAS MARINHAS DOS AÇORES, SA,","Mater-Aqua Unidade de Reprodução e Pré- Engorda de Peixes","DRP Açores",8836944,695849.32,695849.32,443603.94,147867.98000000001,"2017-11-15","2019-11-14"]
[null,null,null,null,null,null,null,"MAR-02.01.01-FEAMP-0139","MARISLAND - MADEIRA MARICULTURE, LDA","Produção de juvenis de pargo capelo","DRP Madeira",8193182,298719.45,298719.45,112019.8,37339.93,"2018-01-01","2020-12-31"]
[null,null,null,null,null,null,null,"MAR-02.01.03-FEAMP-0141","BIVALSETE LDA","Desenvolvimento de Unidade Aquicola","DRAP Lisboa e Vale do Tejo - Oeste",7723803,99854,84885.3,31831.99,10610.66,"2018-02-12","2021-02-11"]
[null,null,null,null,null,null,null,"MAR-02.01.03-FEAMP-0142","ACUINOVA - ACTIVIDADES PISCÍCOLAS, SA","Modernização do Sistema de Alimentação","DRAP Centro",7334077,1824721.8,1640794.6,615297.98,205099.32,"2018-05-01","2020-06-30"]
[null,null,null,null,null,null,null,"MAR-02.01.03-FEAMP-0145","FINISTERRA, S,A,","FINISTERRA, S,A,","DRAP Algarve",7641614,1993110.63,1866884.94,700081.86,233360.62,"2016-03-01","2021-01-04"]
[null,null,null,null,null,null,null,"MAR-02.01.03-FEAMP-0146","Safiestela Sustainable Aquafarming Investments, SA","SAFIESTELA - Ampliação Materdde Linguado","DRAP Norte",7775593,2695697.34,2044847.18,460090.62,153363.53,"2018-10-30","2021-05-31"]
[null,null,null,null,null,null,null,"MAR-02.01.03-FEAMP-0147","Truticultura do Minho - Castro & Cabero, Lda","CASTRO & CABERO - MODTRUMINHO2019","DRAP Norte",7073106,47218.86,39728.06,14898.03,4966,"2018-09-04","2020-12-31"]
[null,null,null,null,null,null,null,"MAR-02.01.03-FEAMP-0148","ACUINOVA - ACTIVIDADES PISCÍCOLAS, SA","MATERNIDADE DE PEIXES MARINHOS","DRAP Centro",7334077,5328479.57,4000000,1500000,500000,"2019-05-01","2021-12-31"]
[null,null,null,null,null,null,null,"MAR-02.01.03-FEAMP-0149","ACUINOVA - ACTIVIDADES PISCÍCOLAS, SA","Unidade de Engorda de Linguado","DRAP Centro",7334077,8394095.9100000001,4000000,1500000,500000,"2019-05-01","2021-12-31"]
[null,null,null,null,null,null,null,"MAR-02.01.03-FEAMP-0150","VOLTAR AO MAR, LDA","PAVILHÃO VOLTA AO MAR","DRAP Centro",8862705,487208.91,339134.1,127175.29,42391.76,"2019-09-01","2021-08-31"]
[null,null,null,null,null,null,null,"MAR-02.01.03-FEAMP-0151","ALGAPLUS - PRODUÇÃO E COMERCIALIZAÇÃO DE ALGAS E SEUS PRODUTOS DERIVADOS, LDA,","IMTA BIO ALGAS E PEIXE","DRAP Centro",7910735,414492,375606.42,140852.41,46950.8,"2018-08-16","2020-12-31"]
[null,null,null,null,null,null,null,"MAR-02.01.03-FEAMP-0152","JCFFPORT,  UNIPESSOAL, LDA,","Nova Oceana - Criação de unidade aquícola de produção de camarões","DRAP Lisboa e Vale do Tejo - Oeste",9306777,1241722.19,1241722.19,465645.82,155215.28,"2019-07-25","2021-12-06"]
[null,null,null,null,null,null,null,"MAR-02.01.03-FEAMP-0154","VIVEIROS RIO MIRA, LDA,","Roncanito 2022","DRAP Alentejo",9022556,457179,308600.24,115725.09,38575.03,"2019-03-01","2022-02-28"]
[null,null,null,null,null,null,null,"MAR-02.01.03-FEAMP-0156","ALVOSTRAL - PRODUÇÃO E COMERCIALIZAÇÃO DE BIVALVES, LDA","ALVOSTRAL - PRODUÇÃO E COMERCIALIZAÇÃO DE BIVALVES, LDA","DRAP Algarve",9142353,1052807.1100000001,777258.4,291471.92,97157.28,"2014-01-14","2021-02-20"]
[null,null,null,null,null,null,null,"MAR-02.01.03-FEAMP-0157","BIVALVIA - MARISCOS DA FORMOSA, LDA,","BIVALVIA - MARISCOS DA FORMOSA, LDA","DRAP Algarve",7692017,99414,87449.75,32793.65,10931.23,"2017-01-01","2020-12-31"]
[null,null,null,null,null,null,null,"MAR-02.01.03-FEAMP-0159","JORGE DANIEL BRANCO SERRA","JORGE DANIEL BRANCO SERRA","DRAP Algarve",7075121,9696.26,9696.26,3636.1,1212.03,"2017-01-31","2019-12-31"]
[null,null,null,null,null,null,null,"MAR-02.01.03-FEAMP-0160","MARÍLIA BENEDITO MARTINS LOPES","MARÍLIA BENEDITO MARTINS LOPES","DRAP Algarve",9321243,14350.04,11778.76,4417.04,1472.34,"2018-12-20","2020-08-31"]
[null,null,null,null,null,null,null,"MAR-02.01.03-FEAMP-0162","JOAQUIM MANUEL BRAVO DOMINGOS","JOAQUIM MANUEL BRAVO DOMINGOS","DRAP Algarve",9325202,15000,11718.25,4394.3500000000004,1464.78,"2019-04-01","2019-12-31"]
[null,null,null,null,null,null,null,"MAR-02.01.03-FEAMP-0165","MIGUEL FILIPE BUCHINHO LOPES","MIGUEL FILIPE BUCHINHO LOPES","DRAP Algarve",9325507,23718,23641.95,8865.74,2955.24,"2019-02-22","2020-05-31"]
[null,null,null,null,null,null,null,"MAR-02.01.03-FEAMP-0166","AQUALVOR - ACTIVIDADES EM AQUACULTURA, LDA,","AQUALVOR - ACTIVIDADES EM AQUACULTURA, LDA","DRAP Algarve",7471197,463621.4,384451.88,144169.46,48056.49,"2019-01-01","2021-12-31"]
[null,null,null,null,null,null,null,"MAR-02.01.03-FEAMP-0168","VIVEIROS ESPARGUEIRA SA","VIVEIROS DA ESPARGUEIRA -  ACTIVIDADES DE AQUACULTURA, LDA","DRAP Algarve",7475705,2630570.2000000002,2466045.04,924766.89,308255.64,"2018-06-03","2020-12-31"]
[null,null,null,null,null,null,null,"MAR-02.01.03-FEAMP-0169","GERAÇÃO EM VOGA, LDA","GERAÇÃO EM VOGA, LDA","DRAP Algarve",8854764,98504,75819,28432.13,9477.3700000000008,"2019-02-01","2020-09-30"]
[null,null,null,null,null,null,null,"MAR-02.01.03-FEAMP-0170","PISCICULTURA VALE DA LAMA, LDA,","PISCICULTURA DO VALE DA LAMA, LDA","DRAP Algarve",7471182,368615.24,335560.08,125835.05,41945,"2017-01-01","2021-12-31"]
[null,null,null,null,null,null,null,"MAR-02.01.03-FEAMP-0171","PMA - AQUACULTURA, LDA,","PMA-AQUACULTURA, LDA","DRAP Algarve",9321107,88696.02,88168.09,33063.040000000001,11021.01,"2019-08-01","2020-12-31"]
[null,null,null,null,null,null,null,"MAR-02.01.03-FEAMP-0173","PURO MAR, LDA","PURO MAR - UNIPESSOAL, LDA","DRAP Algarve",8783936,3124725,3091221,1159207.8799999999,386402.62,"2019-01-22","2021-06-30"]
[null,null,null,null,null,null,null,"MAR-02.01.01-FEAMP-0175","INSTITUTO PORTUGUÊS DO MAR E DA ATMOSFERA, I,P,","DIVERSIAQUA II","DRAP Algarve",7956586,1301906.08,1266092.03,949569.04,316522.99,"2019-07-01","2020-06-30"]
[null,null,null,null,null,null,null,"MAR-02.02.01-FEAMP-0004","Faculdade de Ciências de Lisboa","Protectlnvad - Proteção contra Invasões em Sistemas Aquícolas Costeiros","DRAP Lisboa e Vale do Tejo - Oeste",7477221,512469.67,506974.48,380230.87,126743.61,"2019-01-01","2021-10-31"]
[null,null,null,null,null,null,null,"MAR-02.05.01-FEAMP-0001","INSTITUTO PORTUGUÊS DO MAR E DA ATMOSFERA, I,P,","LABVIVOS","DRAP Lisboa e Vale do Tejo - Oeste",7956586,417969,417942.22,313456.67,104485.55,"2019-01-01","2020-12-31"]
[null,null,null,null,null,null,null,"MAR-02.05.01-FEAMP-0003","OSTRASELECT ALGARVE, LDA","OSTRASELECT Algarve - Compensação Financeira por mortalidade excecional","DRAP Algarve",8206447,48720.959999999999,48720.959999999999,36540.720000000001,12180.24,"2015-07-01","2015-10-31"]
[null,null,null,null,null,null,null,"MAR-02.05.01-FEAMP-0004","INSTITUTO PORTUGUÊS DO MAR E DA ATMOSFERA, I,P,","SAÚDE E BEM ESTAR ANIMAL DAS POPULAÇÕES AQUÍCOLAS","DRAP Lisboa e Vale do Tejo - Oeste",7956586,483678.75,384448.08,288336.06,96112.02,"2017-01-01","2019-12-31"]
[null,null,null,null,null,null,null,"MAR-02.05.01-FEAMP-0005","ACÁCIO JOSÉ GUERREIRO SIMÕES","Compensação por mortalidade viveiro Alvor - Vale da lama","DRAP Algarve",8898786,14202.74,14202.74,10652.06,3550.68,"2015-09-15","2015-12-31"]
[null,null,null,null,null,null,null,"MAR-02.05.01-FEAMP-0006","MANUEL LUIS NEVES DA SILVA","Mortalidade das ostras nos viveiros H2-Andorinha-Flamingo","DRAP Algarve",8924275,27572.03,27572.03,20679.02,6893.01,"2015-07-15","2015-12-31"]
[null,null,null,null,null,null,null,"MAR-02.05.01-FEAMP-0007","CARLA ISABEL DA CRUZ PRATA","Mortalidade massiva de ameijoa Lameirão - Ria Formosa","DRAP Algarve",8920591,13511.92,13511.92,10133.94,3377.98,"2015-10-10","2017-10-31"]
[null,null,null,null,null,null,null,"MAR-02.05.01-FEAMP-0008","JOSÉ MANUEL PRATA, LDA,","Mortalidade massiva ameijoa Lameirão/Ponta Lava Ria Formosa","DRAP Algarve",7081013,47640.160000000003,47640.160000000003,35730.120000000003,11910.04,"2015-10-10","2017-10-31"]
[null,null,null,null,null,null,null,"MAR-02.05.01-FEAMP-0009","INSTITUTO PORTUGUÊS DO MAR E DA ATMOSFERA, I,P,","SAÚDE&AQUA - Prevenção e bem estar em aquacultura marinha","DRAP Algarve",7956586,563569.99,563569.99,422677.49,140892.5,"2018-12-14","2021-09-16"]
[null,null,null,null,null,null,null,"MAR-02.05.01-FEAMP-0010","Faculdade de Medicina Veterinária","MONITORIZAÇÃO SANITÁRIA DE BIVALVES","DRAP Lisboa e Vale do Tejo - Oeste",7185573,321559.27,198802.55,149101.92000000001,49700.63,"2018-05-27","2020-12-31"]
[null,null,null,null,null,null,null,"MAR-02.05.01-FEAMP-0011","OCTÁVIO MANUEL DOS REIS PARREIRA","Narceja e Pardal - Compensação suspenção temporária da actividade","DRAP Algarve",7092394,21967.99,21967.99,16475.990000000002,5492,"2015-07-01","2018-03-31"]
[null,null,null,null,null,null,null,"MAR-02.05.01-FEAMP-0012","Universidade do Algarve","WELLFISH - Estabelecimento de biomarcadores de bem estar","DRAP Algarve",7090437,745982.85,745982.85,559487.14,186495.71,"2018-01-01","2021-03-20"]
[null,null,null,null,null,null,null,"MAR-02.05.01-FEAMP-0013","INSTITUTO POLITÉCNICO DE LEIRIA","Be4AQUAHEALTH","DRAP Lisboa e Vale do Tejo - Oeste",7163701,626362.22,590928.05000000005,443196.04,147732.01,"2018-11-01","2020-12-31"]
[null,null,null,null,null,null,null,"MAR-02.05.01-FEAMP-0014","ALVOSTRAL - PRODUÇÃO E COMERCIALIZAÇÃO DE BIVALVES, LDA","Mortalidade Massiva de bivalves","DRAP Algarve",9142353,3906.85,3906.85,2930.14,976.71,"2015-07-01","2015-12-31"]
[null,null,null,null,null,null,null,"MAR-02.05.01-FEAMP-0015","GILBERTO JOSÉ GONÇALVES FERNANDES","Mortalidade Massiva de bivalves","DRAP Algarve",7334715,169564.93,169564.93,127173.7,42391.23,"2015-10-31","2017-04-22"]
[null,null,null,null,null,null,null,"MAR-02.05.01-FEAMP-0016","BERNARDINO DE SOUSA GIL","Mortalidade de amêijoa-boa na Ria Formosa - OLH2","DRAP Algarve",7071614,810.73,810.73,608.04999999999995,202.68,"2017-08-01","2019-01-22"]
[null,null,null,null,null,null,null,"MAR-02.05.01-FEAMP-0017","JOÃO FERNANDES DOS SANTOS","Mortalidade de amêijoa-boa na zona de produção do Lameirão - Ria Formosa","DRAP Algarve",8929887,17763.78,17763.78,13322.84,4440.9399999999996,"2015-10-10","2017-04-01"]
[null,null,null,null,null,null,null,"MAR-02.05.01-FEAMP-0018","LUÍS FERNANDO MELO DOS SANTOS","Mortalidade de amêijoa-boa na zona de produção do Lameirão - Ria Formosa","DRAP Algarve",7077642,5475.95,5475.95,4106.96,1368.99,"2015-10-31","2017-10-31"]
[null,null,null,null,null,null,null,"MAR-02.05.01-FEAMP-0019","JOÃO LUÍS VIEGAS ANDRÉS","Mortalidade de amêijoa-boa na zona de produção do Lameirão - Ria Formosa","DRAP Algarve",7106783,9649.73,9649.73,7237.29,2412.44,"2015-10-10","2017-04-01"]
[null,null,null,null,null,null,null,"MAR-02.05.01-FEAMP-0021","FRANCISCO DOS SANTOS MARÇAL CALERES","Pedido de apoio à mortalidade de ameijoa boa na zona de produção de Marchil - Ri","DRAP Algarve",7090863,7308,7308,5481,1827,"2015-10-31","2017-04-22"]
[null,null,null,null,null,null,null,"MAR-02.05.01-FEAMP-0022","MARIA ISABEL BELCHIOR CALERES","Pedido de apoio à mortalidade de ameijoa boa na zona de produção de Marchil - Ri","DRAP Algarve",7091112,3581.36,3581.36,2686.02,895.34,"2015-10-31","2017-04-22"]
[null,null,null,null,null,null,null,"MAR-02.05.01-FEAMP-0023","JOSÉ MARCOS MATIAS FLORÊNCIO","Pedido de apoio à mortalidade de ameijoa boa na zona de produção do Lameirão","DRAP Algarve",9146745,1930.68,1930.68,1448.01,482.67,"2015-10-31","2017-04-22"]
[null,null,null,null,null,null,null,"MAR-02.05.01-FEAMP-0024","FRANCISCO MARIA HERMÍNIO","Mortalidade de amêijoa-boa na zona de produção do Lameirão - Ria Formosa","DRAP Algarve",7087226,5969.34,5969.34,4477.01,1492.33,"2015-10-31","2017-04-22"]
[null,null,null,null,null,null,null,"MAR-02.05.01-FEAMP-0025","ANTÓNIO FERNANDO  DE SOUSA","Mortalidade de amêijoa-boa na zona de produção do Lameirão - Ria Formosa","DRAP Algarve",8930071,4808.22,4808.22,3606.17,1202.05,"2015-10-31","2017-04-22"]
[null,null,null,null,null,null,null,"MAR-02.05.01-FEAMP-0026","JOSÉ EDUARDO PALMIRA MARTINS","Mortalidade de amêijoa-boa na zona de produção do Lameirão - Ria Formosa","DRAP Algarve",7075001,2875.68,2875.68,2156.7600000000002,718.92,"2015-10-31","2017-04-22"]
[null,null,null,null,null,null,null,"MAR-02.05.01-FEAMP-0028","ANTÓNIO JOAQUIM DOS ANJOS","Mortalidade massiva de ameijoa boa na zona de produção do Lameirão","DRAP Algarve",7083074,907.4,907.4,680.55,226.85,"2015-10-31","2017-04-22"]
[null,null,null,null,null,null,null,"MAR-02.05.01-FEAMP-0029","ELEUTÉRIO JOSÉ GONÇALVES","Mortalidade massiva de ameijoa boa na zona de produção de Marchil","DRAP Algarve",7083275,6961.32,6961.32,5220.99,1740.33,"2015-10-31","2017-04-22"]
[null,null,null,null,null,null,null,"MAR-02.05.01-FEAMP-0030","JOSÉ FERNANDES PEREIRA","Mortalidade de amêijoa-boa na zona de produção do Lameirão - Ria Formosa","DRAP Algarve",9165495,7285.32,7285.32,5463.99,1821.33,"2015-10-31","2017-04-22"]
[null,null,null,null,null,null,null,"MAR-02.05.01-FEAMP-0031","EUGENIA MARIA GALHARDO SILVA RUSSO","EPISÓDIO MORTALIDADE FORTALEZA OLH2 2018","DRAP Algarve",9264976,10152.49,10152.49,7614.37,2538.12,"2018-09-03","2020-02-24"]
[null,null,null,null,null,null,null,"MAR-02.05.01-FEAMP-0033","EDUARDO ALBERTO PEREIRA SOARES","EDUARDO ALBERTO PEREIRA SOARES","DRAP Algarve",8166587,8093.7,8093.7,6070.28,2023.42,"2018-04-05","2020-03-18"]
[null,null,null,null,null,null,null,"MAR-02.05.01-FEAMP-0034","VÍTOR MANUEL MOREIRA JOAQUIM","VITOR MANUEL MOREIRA JOAQUIM","DRAP Algarve",9326824,381378.74,381378.74,286034.06,95344.68,"2018-06-30","2020-06-18"]
[null,null,null,null,null,null,null,"MAR-02.05.01-FEAMP-0035","FORMOSA, COOPERATIVA DE VIVEIRISTAS DA RIA FORMOSA, CRL","FORMOSA, COOPERATIVA DE VIVEIRISTAS RIA FORMOSA, CRL","DRAP Algarve",7482261,36590.300000000003,36590.300000000003,27442.73,9147.57,"2018-09-15","2020-03-07"]
[null,null,null,null,null,null,null,"MAR-02.05.01-FEAMP-0036","RICARDO VICENTE DE JESUS RAIMUNDO","RICARDO VICENTE DE JESUS RAIMUNDO","DRAP Algarve",9331736,18603.62,18603.62,13952.72,4650.8999999999996,"2018-08-10","2020-01-31"]
[null,null,null,null,null,null,null,"MAR-02.05.01-FEAMP-0037","VÍTOR MANUEL MOREIRA JOAQUIM","VITOR MANUEL MOREIRA JOAQUIM","DRAP Algarve",9326824,240308.38,240308.38,180231.28,60077.1,"2015-09-01","2020-01-24"]
[null,null,null,null,null,null,null,"MAR-02.05.01-FEAMP-0039","NUNO JORGE DOS SANTOS DO Ó PEREIRA","Nuno Jorge dos Santos do Ó Pereira","DRAP Algarve",9341537,10565.75,10565.75,7924.32,2641.43,"2018-08-01","2020-01-22"]
[null,null,null,null,null,null,null,"MAR-02.05.01-FEAMP-0040","MOINHO DOS ILHÉUS, LDA,","MOINHO DOS ILHEUS, LDA","DRAP Algarve",7767856,34950.65,34950.65,26212.99,8737.66,"2018-10-10","2020-03-18"]
[null,null,null,null,null,null,null,"MAR-02.05.01-FEAMP-0041","MÁRIO ELISEU BRANCO SERRA","MÁRIO ELISEU BRANCO SERRA","DRAP Algarve",7085212,14435.51,14435.51,10826.63,3608.88,"2018-08-01","2020-01-22"]
[null,null,null,null,null,null,null,"MAR-02.05.01-FEAMP-0042","PAULA CRISTINA MARTINS GONÇALVES CORREIA","PAULA CRISTINA MARTINS GONÇALVES CORREIA","DRAP Algarve",9342541,2894.79,2894.79,2171.09,723.7,"2018-09-17","2020-03-09"]
[null,null,null,null,null,null,null,"MAR-02.05.01-FEAMP-0043","JOSÉ MANUEL NORTE COLUCAS","JOSÉ MANUEL NORTE COLUCAS","DRAP Algarve",7716513,18288.490000000002,18288.490000000002,13716.37,4572.12,"2017-08-01","2020-01-23"]
[null,null,null,null,null,null,null,"MAR-02.05.01-FEAMP-0044","JOÃO MIGUEL DOS REIS RODRIGUES","JOAO MIGUEL DOS REIS RODRIGUES","DRAP Algarve",7078831,5960.96,5960.96,4470.72,1490.24,"2018-08-01","2020-01-22"]
[null,null,null,null,null,null,null,"MAR-02.05.01-FEAMP-0045","JOSÉ MANUEL GOMES","JOSÉ MANUEL GOMES","DRAP Algarve",9364513,6860.22,6860.22,5145.17,1715.05,"2018-09-01","2020-02-22"]
[null,null,null,null,null,null,null,"MAR-02.05.01-FEAMP-0046","PAULA ISABEL DOS SANTOS PERRUCA LOPES","PAULA ISABEL DOS SANTOS PERRUCA LOPES","DRAP Algarve",9038733,4494.08,4494.08,3370.56,1123.52,"2018-08-01","2020-01-22"]
[null,null,null,null,null,null,null,"MAR-02.05.01-FEAMP-0047","ANA PAULA DE ALEXANDRIA BAPTISTA SOUSA","ANA PAULA DE ALEXANDRIA BAPTISTA SOUSA","DRAP Algarve",8851062,8784.99,8784.99,6588.74,2196.25,"2018-10-01","2020-03-23"]
[null,null,null,null,null,null,null,"MAR-02.05.01-FEAMP-0049","NUNO MIGUEL SILVA RUSSO","Nuno Miguel Silva Russo","DRAP Algarve",7668062,22884.82,22884.82,17163.62,5721.2,"2019-08-20","2021-08-08"]
[null,null,null,null,null,null,null,"MAR-02.05.01-FEAMP-0050","LUCÍLIO SILVA RUSSO","LUCILIO SILVA RUSSO","DRAP Algarve",8834326,31748.65,31748.65,23811.49,7937.16,"2019-08-20","2021-08-08"]
[null,null,null,null,null,null,null,"MAR-02.05.01-FEAMP-0051","EDUARDO JOSÉ DE MENDONÇA PEREIRA","EDUARDO JOSE MENDONCA PEREIRA","DRAP Algarve",7146672,64504.11,64504.11,48378.080000000002,16126.03,"2019-05-14","2020-11-03"]
[null,null,null,null,null,null,null,"MAR-02.05.01-FEAMP-0052","Universidade do Algarve","BIOIMMUNE","DRAP Algarve",7090437,98869,97869.01,73401.759999999995,24467.25,"2020-01-01","2021-12-31"]
[null,null,null,null,null,null,null,"MAR-03.01.01-FEAMP-0009","Direção-Geral de Recursos Naturais, Segurança e Serviços Marítimos","Missões de controlo, inspeção da pesca e das atividades conexas","DGRM - Direção Geral de Recursos Naturais Segurança e Serviços Marítimos",8171291,4148101,4148101,3733290.9,414810.1,"2014-01-01","2020-12-31"]
[null,null,null,null,null,null,null,"MAR-03.01.01-FEAMP-0010","SECRETARIA REGIONAL DE AGRICULTURA E PESCAS","Implementação e Consolidação do Plano de Ação na Madeira (CAPM+CVMAR)","DGRM - Direção Geral de Recursos Naturais Segurança e Serviços Marítimos",8590586,1474000,424441.51,381997.36,42444.15,"2015-01-01","2017-12-31"]
[null,null,null,null,null,null,null,"MAR-03.01.01-FEAMP-0011","SECRETARIA REGIONAL DO MAR CIÊNCIA E TECNOLOGIA/INSPEÇÃO REGIONAL PESCAS AÇORES","Implementação do Plano de Ação do Sistema Nacional de Controlo das Pescas","DGRM - Direção Geral de Recursos Naturais Segurança e Serviços Marítimos",8578875,1904289.97,1904289.97,1713860.97,190429,"2015-01-01","2019-08-30"]
[null,null,null,null,null,null,null,"MAR-03.01.02-FEAMP-0014","Ministério da Defesa Nacional - Marinha","Modernização de meios de acostagem de navios patrulha","DGRM - Direção Geral de Recursos Naturais Segurança e Serviços Marítimos",5650563,2209400,2209400,1546580,662820,"2016-10-01","2021-12-31"]
[null,null,null,null,null,null,null,"MAR-03.01.01-FEAMP-0015","Ministério da Defesa Nacional - Marinha","Apoio planeamento, execução e controlo, da fiscalização pesca - SIFICAP","DGRM - Direção Geral de Recursos Naturais Segurança e Serviços Marítimos",5650563,1397904,1397904,1258113.6000000001,139790.39999999999,"2020-02-01","2021-12-31"]
[null,null,null,null,null,null,null,"MAR-03.01.02-FEAMP-0016","Ministério da Defesa Nacional - Marinha","Modernização de meios de vigilância e comunicações de navios patrulha","DGRM - Direção Geral de Recursos Naturais Segurança e Serviços Marítimos",5650563,4971349.33,4971349.33,3479944.53,1491404.8,"2016-10-01","2021-12-31"]
[null,null,null,null,null,null,null,"MAR-03.01.02-FEAMP-0017","Ministério da Defesa Nacional - Marinha","Modernização das embarcações de fiscalização","DGRM - Direção Geral de Recursos Naturais Segurança e Serviços Marítimos",5650563,1801950,1801950,1261364.99,540585.01,"2017-01-01","2018-12-31"]
[null,null,null,null,null,null,null,"MAR-03.01.01-FEAMP-0018","Direção-Geral de Recursos Naturais, Segurança e Serviços Marítimos","Sistemas registo e transmissao de dados, cruzamento dados, analise de risco, e","DGRM - Direção Geral de Recursos Naturais Segurança e Serviços Marítimos",8171291,6145710.4299999997,6145710.4299999997,5531139.3899999997,614571.04,"2014-01-01","2023-06-30"]
[null,null,null,null,null,null,null,"MAR-03.01.01-FEAMP-0019","Direção-Geral de Recursos Naturais, Segurança e Serviços Marítimos","Certificação de Processos de Controlo e Inspeção das Pescas","DGRM - Direção Geral de Recursos Naturais Segurança e Serviços Marítimos",8171291,219900,219900,197910,21990,"2018-01-01","2020-12-31"]
[null,null,null,null,null,null,null,"MAR-03.01.01-FEAMP-0020","Direção-Geral de Recursos Naturais, Segurança e Serviços Marítimos","Recuperação de Processos de contraordenação","DGRM - Direção Geral de Recursos Naturais Segurança e Serviços Marítimos",8171291,44280,44280,39852,4428,"2017-01-01","2019-12-31"]
[null,null,null,null,null,null,null,"MAR-03.01.01-FEAMP-0021","Direção-Geral de Recursos Naturais, Segurança e Serviços Marítimos","Formação de Inspetores de Pescas da Autoridade Nacional da Pesca","DGRM - Direção Geral de Recursos Naturais Segurança e Serviços Marítimos",8171291,1001243,540959,486863.1,54095.9,"2018-01-01","2020-12-31"]
[null,null,null,null,null,null,null,"MAR-03.01.01-FEAMP-0022","SECRETARIA REGIONAL DO MAR CIÊNCIA E TECNOLOGIA/INSPEÇÃO REGIONAL PESCAS AÇORES","Acompanhamento, vigilância e gestão eletrónica- Videovigilância Áreas Costeiras","DGRM - Direção Geral de Recursos Naturais Segurança e Serviços Marítimos",8578875,81120,81080.33,72972.3,8108.03,"2018-01-01","2020-12-31"]
[null,null,null,null,null,null,null,"MAR-03.01.01-FEAMP-0025","SECRETARIA REGIONAL DE AGRICULTURA E PESCAS","CVMAR +","DGRM - Direção Geral de Recursos Naturais Segurança e Serviços Marítimos",8590586,156388.12,156388.12,140749.31,15638.81,"2018-01-01","2020-12-31"]
[null,null,null,null,null,null,null,"MAR-03.01.01-FEAMP-0027","SECRETARIA REGIONAL DO MAR CIÊNCIA E TECNOLOGIA/INSPEÇÃO REGIONAL PESCAS AÇORES","Programa de Formação dos Inspetores de Pescas da IRP Açores","DGRM - Direção Geral de Recursos Naturais Segurança e Serviços Marítimos",8578875,69275.38,69275.38,62347.839999999997,6927.54,"2019-01-01","2020-12-31"]
[null,null,null,null,null,null,null,"MAR-03.02.01-FEAMP-000001","INSTITUTO PORTUGUÊS DO MAR E DA ATMOSFERA, I,P,","Programa Nacional de Amostragem Biológica - PNAB/DCF","DGRM - Direção Geral de Recursos Naturais Segurança e Serviços Marítimos",7956586,6910998.71,6910998.71,5528798.96,1382199.75,"2014-01-01","2016-12-31"]
[null,null,null,null,null,null,null,"MAR-03.02.01-FEAMP-0002","Direção-Geral de Recursos Naturais, Segurança e Serviços Marítimos","PROGRAMA NACIONAL DE RECOLHA DE DADOS","DGRM - Direção Geral de Recursos Naturais Segurança e Serviços Marítimos",8171291,417387.27,322091.59999999998,257673.29,64418.31,"2014-01-01","2016-12-31"]
[null,null,null,null,null,null,null,"MAR-03.02.01-FEAMP-0003","IMAR - INSTITUTO DO MAR","Programa Nacional de Recolha de Dados da Pesca - IMAR/Açores","DGRM - Direção Geral de Recursos Naturais Segurança e Serviços Marítimos",7369023,1079143.3899999999,1079143.3899999999,863314.71,215828.68,"2014-01-01","2017-09-30"]
[null,null,null,null,null,null,null,"MAR-03.02.01-FEAMP-0004","SECRETARIA REGIONAL DE AGRICULTURA E PESCAS","Recolha de dados no quadro da PCP(2014-2016) - Madeira","DGRM - Direção Geral de Recursos Naturais Segurança e Serviços Marítimos",8590586,348851.88,347205.48,277764.38,69441.100000000006,"2014-01-01","2016-12-31"]
[null,null,null,null,null,null,null,"MAR-03.02.01-FEAMP-0005","SECRETARIA REGIONAL DO MAR CIÊNCIA E TECNOLOGIA/INSPEÇÃO REGIONAL PESCAS AÇORES","Recolha de dados no âmbito da PCP - Açores","DGRM - Direção Geral de Recursos Naturais Segurança e Serviços Marítimos",8578875,37627.379999999997,29199.09,23359.27,5839.82,"2014-01-01","2016-12-31"]
[null,null,null,null,null,null,null,"MAR-03.02.01-FEAMP-0006","Direção-Geral de Recursos Naturais, Segurança e Serviços Marítimos","Programa Nacional de Recolha de Dados","DGRM - Direção Geral de Recursos Naturais Segurança e Serviços Marítimos",8171291,1435584,1435584,1148467.2,287116.79999999999,"2017-01-01","2021-12-31"]
[null,null,null,null,null,null,null,"MAR-03.02.01-FEAMP-0007","INSTITUTO PORTUGUÊS DO MAR E DA ATMOSFERA, I,P,","Programa Nacional de Amostragem Biológica- PNAB/DCF","DGRM - Direção Geral de Recursos Naturais Segurança e Serviços Marítimos",7956586,9212890.7599999998,9212890.7599999998,7370312.5999999996,1842578.16,"2017-01-01","2019-12-31"]
[null,null,null,null,null,null,null,"MAR-03.02.01-FEAMP-0008","IMAR - INSTITUTO DO MAR","Recolha de Dados 2017","DGRM - Direção Geral de Recursos Naturais Segurança e Serviços Marítimos",7369023,284212.77,284212.77,227370.22,56842.55,"2017-01-01","2017-12-31"]
[null,null,null,null,null,null,null,"MAR-03.02.01-FEAMP-0009","Direção-Geral de Recursos Naturais, Segurança e Serviços Marítimos","Programa Nacional de Recolha de dados 2020-2021","DGRM - Direção Geral de Recursos Naturais Segurança e Serviços Marítimos",8171291,691574.41,618762.56999999995,495010.05,123752.52,"2020-01-01","2023-06-30"]
[null,null,null,null,null,null,null,"MAR-04.01.01-FEAMP-0001","Comunidade Intermunicipal do Alto Minho","AP - GAL Litoral Norte","Secretariado Técnico da AG do Mar2020",7525703,25000,24977.41,21230.799999999999,3746.61,"2015-07-01","2016-09-30"]
[null,null,null,null,null,null,null,"MAR-04.01.01-FEAMP-0002","ÁREA METROPOLITANA DO PORTO","AP - GAL Litoral Norte AMP","Secretariado Técnico da AG do Mar2020",8836905,25000,24999.75,21249.79,3749.96,"2014-11-16","2016-12-31"]
[null,null,null,null,null,null,null,"MAR-04.01.01-FEAMP-0003","CIRA-Comunidade Intermunicipal da Região de Aveiro - Baixo Vouga","AP - GAL Região de Aveiro","Secretariado Técnico da AG do Mar2020",7354526,25000,25000,21250,3750,"2016-02-01","2016-10-31"]
[null,null,null,null,null,null,null,"MAR-04.01.01-FEAMP-00004","ADELO- Associação de Desenvolvimento Local da Bairrada e Mondego","AP - GAL Mondego Mar","Secretariado Técnico da AG do Mar2020",7165093,25000,23723.3,20164.8,3558.5,"2014-11-16","2016-08-31"]
[null,null,null,null,null,null,null,"MAR-04.01.01-FEAMP-00005","ADAE - ASSOCIAÇÃO DE DESENVOLVIMENTO DA ALTA ESTREMADURA","AP - GAL ADAE MAR","Secretariado Técnico da AG do Mar2020",7169021,25000,24695.75,20991.39,3704.36,"2015-08-01","2016-07-30"]
[null,null,null,null,null,null,null,"MAR-04.01.01-FEAMP-00006","ADEPE - ASSOCIAÇÃO PARA O DESENVOLVIMENTO DE PENICHE","AP - GAL Oeste","Secretariado Técnico da AG do Mar2020",7338206,25000,25000,21250,3750,"2014-11-16","2016-08-20"]
[null,null,null,null,null,null,null,"MAR-04.01.01-FEAMP-0007","MUNICÍPIO DE TORRES VEDRAS","AP - GAL ecoMar","Secretariado Técnico da AG do Mar2020",7379153,25000,21562.91,18328.47,3234.44,"2014-12-01","2016-07-20"]
[null,null,null,null,null,null,null,"MAR-04.01.01-FEAMP-00008","A2S - ASSOCIAÇÃO PARA O DESENVOLVIMEMTO SUSTENTÁVEL DA REGIÃO SALOIA","AP - GAL Ericeira/ Cascais","Secretariado Técnico da AG do Mar2020",8590717,25000,24996.27,21246.83,3749.44,"2015-01-23","2016-07-31"]
[null,null,null,null,null,null,null,"MAR-04.01.01-FEAMP-00009","ADREPES - Associação para o Desenvolvimento Rural da Península de Setúbal","AP - GAL ADREPES Costeiro","Secretariado Técnico da AG do Mar2020",7169303,25000,24999.99,21249.99,3750,"2014-02-01","2016-07-20"]
[null,null,null,null,null,null,null,"MAR-04.01.01-FEAMP-00010","ADL - Associação de Desenvolvimento do Litoral Alentejano","AP - GAL Litoral Alentejano","Secretariado Técnico da AG do Mar2020",7168942,25000,24983.06,21235.599999999999,3747.46,"2014-11-16","2016-07-20"]
[null,null,null,null,null,null,null,"MAR-04.01.01-FEAMP-00011","Agência de Desenvolvimento do Barlavento - Associação","AP - GAL Barlavento do Algarve","Secretariado Técnico da AG do Mar2020",7356854,25000,25000,21250,3750,"2014-11-16","2016-07-30"]
[null,null,null,null,null,null,null,"MAR-04.01.01-FEAMP-0012","MUNICÍPIO DE OLHÃO","AP - GAL Sotavento do Algarve","Secretariado Técnico da AG do Mar2020",7080934,25000,24998.25,21248.51,3749.74,"2015-06-01","2016-07-30"]
[null,null,null,null,null,null,null,"MAR-04.01.01-FEAMP-0013","ARDE-ASSOCIAÇÃO REGIONAL PARA O DESENVOLVIMENTO","Apoio Preparatório da Associação Regional para o Desenvolvimento (ARDE)","DRP Açores",7180912,9971,9971,8475.35,1495.65,"2016-08-01","2017-12-31"]
[null,null,null,null,null,null,null,"MAR-04.01.01-FEAMP-0014","ASDEPR-ASSOCIAÇÃO PARA O DESENVOLVIMENTO E PRODUÇÃO RURAL","Apoio Preparatório da Associação p/ Desenvolvimento e Promoção Rural (ASDEPR)","DRP Açores",7158874,14160,14160,12036,2124,"2017-08-03","2017-12-31"]
[null,null,null,null,null,null,null,"MAR-04.01.01-FEAMP-0015","GRATER-ASSOCIAÇÃO DE DESENVOLVIMENTO REGIONAL","Apoio Preparatório da Associação de Desenvolvimento Regional (GRATER)","DRP Açores",7177337,14526.3,14526.3,12347.36,2178.94,"2017-07-10","2017-12-31"]
[null,null,null,null,null,null,null,"MAR-04.01.01-FEAMP-0016","MARAÇORESORIENTAL-ASSOCIAÇÃO DE DESENVOLVIMENTO COSTEIRO","Apoio Preparatório da Associação de Desenvolvimento Costeiro (MARAÇORESORIENTAL)","DRP Açores",9030173,20000,20000,17000,3000,"2017-09-08","2020-05-29"]
[null,null,null,null,null,null,null,"MAR-04.01.01-FEAMP-0017","ADELIAÇOR-ASSOCIAÇÃO PARA O DESENVOLVIMENTO LOCAL DE ILHAS DOS AÇORES","Apoio Preparatório Associação p/ Desenvolvimento Local Ilhas Açores (ADELIAÇOR)","DRP Açores",7158897,2911,2911,2474.35,436.65,"2017-10-01","2017-11-15"]
[null,null,null,null,null,null,null,"MAR-04.02.01-FEAMP-0001","Comunidade Intermunicipal do Alto Minho","GAL Litoral Norte - Custos Operacionais e de Animação (2016-2018)","Secretariado Técnico da AG do Mar2020",7525703,257142,257142,218570.7,38571.300000000003,"2016-01-01","2019-01-31"]
[null,null,null,null,null,null,null,"MAR-04.02.01-FEAMP-0002","ÁREA METROPOLITANA DO PORTO","GAL Litoral Norte AMP - Custos Operacionais e de Animação (2016-2018)","Secretariado Técnico da AG do Mar2020",8836905,257133.03,257133.03,218563.06,38569.97,"2016-06-02","2019-01-31"]
[null,null,null,null,null,null,null,"MAR-04.02.01-FEAMP-0003","ADELO- Associação de Desenvolvimento Local da Bairrada e Mondego","GAL  Mondego Mar - Custos Operacionais e de Animação (2016-2018)","Secretariado Técnico da AG do Mar2020",7165093,211395,211395,179685.75,31709.25,"2016-01-01","2019-01-31"]
[null,null,null,null,null,null,null,"MAR-04.02.01-FEAMP-0004","CIRA-Comunidade Intermunicipal da Região de Aveiro - Baixo Vouga","GAL  Região de Aveiro - Custos Operacionais e de Animação (2016-2018)","Secretariado Técnico da AG do Mar2020",7354526,257142,193204.55,164223.87,28980.68,"2016-01-01","2019-01-31"]
[null,null,null,null,null,null,null,"MAR-04.02.01-FEAMP-0005","ADAE - ASSOCIAÇÃO DE DESENVOLVIMENTO DA ALTA ESTREMADURA","GAL ADAE Mar - Custos Operacionais e de Animação (2016-2018)","Secretariado Técnico da AG do Mar2020",7169021,159615,159615,135672.75,23942.25,"2016-12-23","2019-01-31"]
[null,null,null,null,null,null,null,"MAR-04.02.01-FEAMP-0006","ADEPE - ASSOCIAÇÃO PARA O DESENVOLVIMENTO DE PENICHE","GAL  Oeste - Custos Operacionais e de Animação (2016-2018)","Secretariado Técnico da AG do Mar2020",7338206,257142,240517.22,204439.64,36077.58,"2016-01-01","2019-01-31"]
[null,null,null,null,null,null,null,"MAR-04.02.01-FEAMP-0007","Agência de Desenvolvimento Costeiro ECOCOAST - Associação","GAL  ecoMar - Custos Operacionais e de Animação (2016-2018)","Secretariado Técnico da AG do Mar2020",8898724,180993,180993,153844.04999999999,27148.95,"2016-01-01","2019-01-31"]
[null,null,null,null,null,null,null,"MAR-04.02.01-FEAMP-0008","A2S - ASSOCIAÇÃO PARA O DESENVOLVIMEMTO SUSTENTÁVEL DA REGIÃO SALOIA","GAL Ericeira/Cascais - Custos Operacionais e de Animação (2016-2018)","Secretariado Técnico da AG do Mar2020",8590717,196173,196173,166747.04999999999,29425.95,"2016-01-01","2019-01-31"]
[null,null,null,null,null,null,null,"MAR-04.02.01-FEAMP-0009","ADREPES - Associação para o Desenvolvimento Rural da Península de Setúbal","GAL ADREPES Costeiro - Custos Operacionais e de Animação (2016-2018)","Secretariado Técnico da AG do Mar2020",7169303,257142,257142,218570.7,38571.300000000003,"2016-01-01","2019-01-31"]
[null,null,null,null,null,null,null,"MAR-04.02.01-FEAMP-0010","ADL - Associação de Desenvolvimento do Litoral Alentejano","GAL  Litoral Alentejano  - Custos Operacionais e de Animação (2016-2018)","Secretariado Técnico da AG do Mar2020",7168942,214671,214671,182470.35,32200.65,"2016-01-01","2019-01-31"]
[null,null,null,null,null,null,null,"MAR-04.02.01-FEAMP-0011","MUNICÍPIO DE OLHÃO","GAL Sotavento do Algarve - Custos Operacionais e de Animação (2016-2018)","Secretariado Técnico da AG do Mar2020",7080934,257142,255376.41,217069.94,38306.47,"2016-01-01","2019-01-31"]
[null,null,null,null,null,null,null,"MAR-04.02.01-FEAMP-0012","Agência de Desenvolvimento do Barlavento - Associação","GAL Barlavento do Algarve - Custos Operacionais e de Animação (2016-2018)","Secretariado Técnico da AG do Mar2020",7356854,252297,234340.64,199189.55,35151.089999999997,"2016-01-01","2019-01-31"]
[null,null,null,null,null,null,null,"MAR-04.02.01-FEAMP-0013","ÁREA METROPOLITANA DO PORTO","GAL-Pesca Litoral Norte-AMP - COA 2","Secretariado Técnico da AG do Mar2020",8836905,342858,342858,291429.3,51428.7,"2019-01-01","2021-12-31"]
[null,null,null,null,null,null,null,"MAR-04.02.01-FEAMP-0014","A2S - ASSOCIAÇÃO PARA O DESENVOLVIMEMTO SUSTENTÁVEL DA REGIÃO SALOIA","GAL-Pesca Ericeira/ Cascais - COA 2","Secretariado Técnico da AG do Mar2020",8590717,261561,261561,222326.85,39234.15,"2019-01-01","2023-12-31"]
[null,null,null,null,null,null,null,"MAR-04.02.01-FEAMP-0015","ADEPE - ASSOCIAÇÃO PARA O DESENVOLVIMENTO DE PENICHE","GAL-Pesca do Oeste - COA 2","Secretariado Técnico da AG do Mar2020",7338206,342857.99,342857.99,291429.3,51428.69,"2019-01-01","2023-12-30"]
[null,null,null,null,null,null,null,"MAR-04.02.01-FEAMP-0016","ADELO- Associação de Desenvolvimento Local da Bairrada e Mondego","GAL-Pesca Mondego Mar - COA 2","Secretariado Técnico da AG do Mar2020",7165093,281860,281860,239581,42279,"2019-01-01","2023-12-31"]
[null,null,null,null,null,null,null,"MAR-04.02.01-FEAMP-0017","ADREPES - Associação para o Desenvolvimento Rural da Península de Setúbal","GAL-Pesca ADREPES Costeiro - COA 2","Secretariado Técnico da AG do Mar2020",7169303,342858,342858,291429.3,51428.7,"2019-01-01","2023-12-31"]
[null,null,null,null,null,null,null,"MAR-04.02.01-FEAMP-0018","Agência de Desenvolvimento Costeiro ECOCOAST - Associação","GAL-Pesca ecoMar - COA 2","Secretariado Técnico da AG do Mar2020",8898724,241324,241324,205125.4,36198.6,"2019-01-01","2023-12-30"]
[null,null,null,null,null,null,null,"MAR-04.02.01-FEAMP-0019","ADAE - ASSOCIAÇÃO DE DESENVOLVIMENTO DA ALTA ESTREMADURA","GAL-Pesca ADAE Mar - COA 2","Secretariado Técnico da AG do Mar2020",7169021,212821,212821,180897.85,31923.15,"2019-01-01","2023-12-31"]
[null,null,null,null,null,null,null,"MAR-04.02.01-FEAMP-0020","MUNICÍPIO DE OLHÃO","GAL-Pesca do Sotavento do Algarve - COA 2","Secretariado Técnico da AG do Mar2020",7080934,342858,342858,291429.3,51428.7,"2019-01-01","2023-12-31"]
[null,null,null,null,null,null,null,"MAR-04.02.01-FEAMP-0021","ADL - Associação de Desenvolvimento do Litoral Alentejano","GAL-Pesca do Litoral Alentejano - COA 2","Secretariado Técnico da AG do Mar2020",7168942,286228,286228,243293.81,42934.19,"2019-01-01","2023-12-31"]
[null,null,null,null,null,null,null,"MAR-04.02.01-FEAMP-0022","Agência de Desenvolvimento do Barlavento - Associação","GAL-Pesca do Barlavento do Algarve - COA 2","Secretariado Técnico da AG do Mar2020",7356854,336399,336399,285939.15999999997,50459.839999999997,"2019-01-01","2023-12-31"]
[null,null,null,null,null,null,null,"MAR-04.02.01-FEAMP-0023","Comunidade Intermunicipal do Alto Minho","GAL-Pesca Litoral Norte - COA 2","Secretariado Técnico da AG do Mar2020",7525703,342858,342858,291429.3,51428.7,"2019-01-01","2023-12-31"]
[null,null,null,null,null,null,null,"MAR-04.02.01-FEAMP-0024","GRATER-ASSOCIAÇÃO DE DESENVOLVIMENTO REGIONAL","Custos de funcionamento e animação da GRATER","DRP Açores",7177337,191332.71,191332.71,162632.69,28700.02,"2018-10-01","2022-12-31"]
[null,null,null,null,null,null,null,"MAR-04.02.01-FEAMP-0025","ADELIAÇOR-ASSOCIAÇÃO PARA O DESENVOLVIMENTO LOCAL DE ILHAS DOS AÇORES","Custos de funcionamento e animação da ADELIAÇOR","DRP Açores",7158897,300820.73,300820.73,255697.62,45123.11,"2018-10-01","2022-12-31"]
[null,null,null,null,null,null,null,"MAR-04.02.01-FEAMP-0026","A PONTE NORTE - COOPERATIVA DE ENSINO E DESENVOLVIMENTO DA RIBEIRA GRANDE, CRL","Custos de funcionamento e animação da MarAçores Oriental","DRP Açores",9284892,325963.21000000002,325963.21000000002,277068.74,48894.47,"2018-05-03","2022-12-31"]
[null,null,null,null,null,null,null,"MAR-04.02.01-FEAMP-0027","CIRA-Comunidade Intermunicipal da Região de Aveiro - Baixo Vouga","GAL-Pesca Região de Aveiro - COA 2","Secretariado Técnico da AG do Mar2020",7354526,342858,342858,291429.3,51428.7,"2019-01-01","2023-12-31"]
[null,null,null,null,null,null,null,"MAR-04.03.01-FEAMP-0001","MUNICÍPIO DE SINES","Estação Náutica de Sines","DRAP Alentejo",7492971,340820.7,172416.21,146553.78,25862.43,"2019-06-01","2021-02-20"]
[null,null,null,null,null,null,null,"MAR-04.03.01-FEAMP-0003","Município de Alcácer do Sal","Conservação e Restauro do Galeão Pinto Luísa","DRAP Alentejo",8143213,140835,114499.91,97324.92,17174.990000000002,"2017-11-02","2018-12-31"]
[null,null,null,null,null,null,null,"MAR-04.03.01-FEAMP-0006","NUMEN, LDA","Casa D'Avó Dalina","GAL Mondego Mar",7748751,177279.79,168437.22,71585.83,12632.79,"2019-01-10","2020-09-24"]
[null,null,null,null,null,null,null,"MAR-04.03.01-FEAMP-0007","UNIVERSIDADE DE COIMBRA","AlgaDepur - Aquacultura Multi-trófica Integrada como veículo de sustentabilidade","GAL Mondego Mar",5233282,276550.84000000003,208835.89,177510.51,31325.38,"2018-10-01","2020-09-30"]
[null,null,null,null,null,null,null,"MAR-04.03.01-FEAMP-0008","UNIVERSIDADE DE COIMBRA","OTIMO - Otimização dos processos de produção de Ouriço-do-mar","GAL Mondego Mar",5233282,260974.95,202942.01,172500.71,30441.3,"2018-10-01","2020-09-30"]
[null,null,null,null,null,null,null,"MAR-04.03.01-FEAMP-0009","MUNICIPIO DA FIGUEIRA DA FOZ","Reconstrução do Cais de Acostagem do Cabedelo","GAL Mondego Mar",7596641,98875.39,78032.960000000006,66328.02,11704.94,"2018-12-21","2019-12-31"]
[null,null,null,null,null,null,null,"MAR-04.03.01-FEAMP-0011","Bork You, Lda,","Projeto de expansão da atividade de turismo náutico da Bork You em Sesimbra","GAL ADREPES Costeiro",7820334,89925.33,89619.46,45705.919999999998,8065.76,"2018-01-01","2019-12-31"]
[null,null,null,null,null,null,null,"MAR-04.03.01-FEAMP-0012","ASSOCIAÇÃO DOS ARMADORES DA PESCA ARTESANAL E LOCAL DO CENTRO E SUL","Expansão do Cabaz do Peixe","GAL ADREPES Costeiro",7607625,30568.35,30568.35,15589.86,2751.15,"2018-01-04","2018-09-04"]
[null,null,null,null,null,null,null,"MAR-04.03.01-FEAMP-0013","MECOMAR - COMÉRCIO E PRODUÇÃO DE PEIXES E MARISCOS, LDA","Mecomar 2018","GAL ADREPES Costeiro",7616261,199084.21,194958.04,82857.17,14621.85,"2015-12-10","2018-12-31"]
[null,null,null,null,null,null,null,"MAR-04.03.01-FEAMP-0014","Cipreia - Formação e Mergulho, Lda,","Uma nova Cipreia","GAL ADREPES Costeiro",7576501,199060.75,192404.64,81771.97,14430.35,"2018-01-01","2019-03-19"]
[null,null,null,null,null,null,null,"MAR-04.03.01-FEAMP-0015","Vertente Natural - Actividades Ecológicas e Culturais, Lda,","Turismar - Turismo náutico e da natureza","GAL ADREPES Costeiro",7399695,148976.12,148976.12,75977.820000000007,13407.85,"2015-06-09","2019-09-30"]
[null,null,null,null,null,null,null,"MAR-04.03.01-FEAMP-0016","BOATCENTER - SERVIÇOS E ACTIVIDADES NAÚTICAS, S,A,","Boatcenter - Plano integrado de aquisição de equipamento","GAL ADREPES Costeiro",9034291,191663.29,191657.29,84989.47,14998.14,"2016-04-21","2020-10-01"]
[null,null,null,null,null,null,null,"MAR-04.03.01-FEAMP-0017","Salina Greens - Produção e Comercialização de Halófitas e Seus Derivados, Unipessoal, Lda,","Desenvolvimento de novos produtos em salinas","GAL ADREPES Costeiro",9028313,89851.58,82797.119999999995,42226.53,7451.74,"2017-03-20","2022-08-20"]
[null,null,null,null,null,null,null,"MAR-04.03.01-FEAMP-0018","ARTESANALPESCA - ORGANIZAÇAO DE PRODUTORES DE PESCA, CRL","Modernização/automação da linha de embalamento e congelação de pelágicos","DRAP Lisboa e Vale do Tejo - Oeste",4912912,196040,196040,83317,14703,"2018-11-15","2020-08-15"]
[null,null,null,null,null,null,null,"MAR-04.03.01-FEAMP-0021","FOLLOW SENSATIONS UNIPESSOAL LDA","Bolhas Tours Experience","GAL ADREPES Costeiro",9035255,93482.9,93403.39,47635.73,8406.31,"2017-07-26","2020-08-31"]
[null,null,null,null,null,null,null,"MAR-04.03.01-FEAMP-0022","Mares Sem Fim - Saberes e Cultura do Mar, Lda","A água dos rios corre para o mar","GAL ADREPES Costeiro",9038025,10445.530000000001,10033.700000000001,4264.32,752.53,"2017-11-15","2018-12-31"]
[null,null,null,null,null,null,null,"MAR-04.03.01-FEAMP-0023","Mares Sem Fim - Saberes e Cultura do Mar, Lda","A Barca Bela","GAL ADREPES Costeiro",9038025,20438,20438,8686.15,1532.85,"2017-11-15","2018-12-31"]
[null,null,null,null,null,null,null,"MAR-04.03.01-FEAMP-0024","Nosso Tejo, Lda","Passeios maritímo-turísticos do Porto Brandão","GAL ADREPES Costeiro",9041704,199350,199350,84723.75,14951.25,"2018-04-01","2020-09-14"]
[null,null,null,null,null,null,null,"MAR-04.03.01-FEAMP-0025","Ensaios e Diálogos, Associação","Projeto TransforMar","GAL ADREPES Costeiro",9039036,12840,12840,5457,963,"2017-01-01","2020-01-30"]
[null,null,null,null,null,null,null,"MAR-04.03.01-FEAMP-0027","MUNICÍPIO DE CASTRO MARIM","Salineiro - Uma profissão","GAL Sotavento do Algarve",7492843,71032.5,65682,55829.7,9852.2999999999993,"2016-05-23","2018-12-31"]
[null,null,null,null,null,null,null,"MAR-04.03.01-FEAMP-0029","APARA - ASSOCIAÇÃO DE PESCA ARTESANAL DA REGIÃO DE AVEIRO","Recuperação e modernização de estruturas, equipamentos e infraestruturas","DRAP Centro",7544372,155085.46,144686.74,73790.240000000005,13021.81,"2019-05-22","2020-12-31"]
[null,null,null,null,null,null,null,"MAR-04.03.01-FEAMP-0031","MUNICÍPIO DE AVEIRO","Ecomuseu Marinha da Troncalhada","DRAP Centro",7167246,45146.01,26429.16,22464.79,3964.37,"2017-08-07","2019-05-31"]
[null,null,null,null,null,null,null,"MAR-04.03.01-FEAMP-0034","PASSEIODISSEIA, LDA","Expansão das atividades maritimo-turísticas no Barlavento","GAL Barlavento do Algarve",8114152,383977,287257.34000000003,73250.62,12926.58,"2018-07-05","2020-06-30"]
[null,null,null,null,null,null,null,"MAR-04.03.01-FEAMP-0037","OCEAN4FUN - ATIVIDADES MARÍTIMO-TURÍSTICAS, LDA","Dinamização de novas atividades marítimo-turísticas no Barlavento","GAL Barlavento do Algarve",9032365,331483.95,290280.63,74021.56,13062.63,"2017-10-27","2020-05-31"]
[null,null,null,null,null,null,null,"MAR-04.03.01-FEAMP-0041","AUGUSTO TOMÉ PENELA","Turismo Maritimo","DRAP Centro",8619955,36625.370000000003,27754,11795.45,2081.5500000000002,"2019-02-01","2020-09-30"]
[null,null,null,null,null,null,null,"MAR-04.03.01-FEAMP-0042","MUNICÍPIO DE OLHÃO","Zonas Balneares Limpas","DRAP Algarve",7080934,273184.02,273184.02,232206.42,40977.599999999999,"2018-03-01","2019-12-31"]
[null,null,null,null,null,null,null,"MAR-04.03.01-FEAMP-0044","Municipio de Tavira","Roteiros de Pesca de Santa Luzia - Rota do Polvo e Rota do Atum","DRAP Algarve",7158174,169966.38,169966.38,144471.42000000001,25494.959999999999,"2018-07-01","2020-06-30"]
[null,null,null,null,null,null,null,"MAR-04.03.01-FEAMP-0051","MOMENTOS DINAMICOS UNIPESSOAL, LDA","Momentos Mais Dinâmicos em Albufeira","GAL Barlavento do Algarve",7753125,167516.69,162405.29,48315.57,8526.2800000000007,"2015-06-26","2019-10-31"]
[null,null,null,null,null,null,null,"MAR-04.03.01-FEAMP-0052","DREAM WAVE - ACTIVIDADES MARÍTIMO-TURÍSTICAS, LDA","Expansão e Inovação da Atividade Marítimo-Turística","GAL Barlavento do Algarve",8009536,154608,143781.19,42774.91,7548.51,"2018-03-01","2019-10-15"]
[null,null,null,null,null,null,null,"MAR-04.03.01-FEAMP-0053","Bom Dia - Actividades Maritimas Lda,","Bom Dia-Tradição, Crescimento e Eficiência Energética","GAL Barlavento do Algarve",8068121,99698.82,50110.98,21297.17,3758.32,"2018-01-15","2019-12-31"]
[null,null,null,null,null,null,null,"MAR-04.03.01-FEAMP-0058","SEALIFE - ACTIVIDADES MARÍTIMO TURÍSTICAS, LDA","Sealife - Mais Conhecimento, Mais Valor","GAL Barlavento do Algarve",9038814,150383.04000000001,131543.21,39134.1,6906.02,"2018-02-01","2019-06-30"]
[null,null,null,null,null,null,null,"MAR-04.03.01-FEAMP-0064","MUNICIPIO DE PENICHE","Musealização do Sitio Arqueológico do Morraçal da Ajuda","DRAP Lisboa e Vale do Tejo - Oeste",7335904,363468.63,160300,136255,24045,"2019-04-30","2020-08-31"]
[null,null,null,null,null,null,null,"MAR-04.03.01-FEAMP-0066","MUNICIPIO DE PENICHE","Valorização Paisagistica  do Naufrágio do Navio San Pedro de Alcantara","DRAP Lisboa e Vale do Tejo - Oeste",7335904,145139.25,145139.25,123368.36,21770.89,"2018-08-28","2021-01-28"]
[null,null,null,null,null,null,null,"MAR-04.03.01-FEAMP-0069","MUNICÍPIO DA LOURINHÃ","Orientação no Mar","DRAP Lisboa e Vale do Tejo - Oeste",7376731,102326.16,100221.41,85188.2,15033.21,"2019-04-26","2020-02-06"]
[null,null,null,null,null,null,null,"MAR-04.03.01-FEAMP-0070","MUNICÍPIO DA LOURINHÃ","Recuperação da Praia do Areal Sul - Praia da Areia Branca","DRAP Lisboa e Vale do Tejo - Oeste",7376731,261377.3,125632.3,106787.45,18844.849999999999,"2015-10-23","2021-03-31"]
[null,null,null,null,null,null,null,"MAR-04.03.01-FEAMP-0072","MUNICÍPIO DA LOURINHÃ","Requalificação dos Postos de Turismo da Lourinhã e da Praia da Areia Branca","DRAP Lisboa e Vale do Tejo - Oeste",7376731,84749.63,18308.82,15562.5,2746.32,"2018-08-01","2019-09-30"]
[null,null,null,null,null,null,null,"MAR-04.03.01-FEAMP-0074","Rotas do Sal - Actividades de Animação Ambiental e Turismo da Natureza, Lda","Aquisição de Embarcação","GAL Litoral Alentejano",7529105,396022,375000,158960.63,28051.87,"2018-12-15","2019-12-15"]
[null,null,null,null,null,null,null,"MAR-04.03.01-FEAMP-0077","CPSI - Comunidade Portuária de Sines","Documentário - Sines e o Mar","GAL Litoral Alentejano",9137201,75774.149999999994,42041.4,28588.15,5044.97,"2017-07-01","2019-12-31"]
[null,null,null,null,null,null,null,"MAR-04.03.01-FEAMP-0079","Clube Fluvial Odemirense","Requalificação do Centro Náutico de Odemira","GAL Litoral Alentejano",7694515,435121.8,200000,85000,15000,"2019-08-08","2021-02-07"]
[null,null,null,null,null,null,null,"MAR-04.03.01-FEAMP-0081","SINES TECNOPOLO - ASSOCIAÇÃO CENTRO DE INCUBAÇÃO DE BASE TECNOLÓGICA VASCO DA GAMA","AQUA + Programa de capacitação de Atores Ligadas ao meio aquático","DRAP Alentejo",8123166,222180.7,86375.86,58735.59,10365.1,"2017-12-22","2021-03-18"]
[null,null,null,null,null,null,null,"MAR-04.03.01-FEAMP-0082","Grupo do Almargem, SA","Requalificação dos Apoios de Praia de Melides e Santo André","GAL Litoral Alentejano",5720511,203723.35,33353.01,14175.03,2501.48,"2020-01-01","2021-12-31"]
[null,null,null,null,null,null,null,"MAR-04.03.01-FEAMP-0083","Troiacruze Navegação Costeira de Cruzeiro, Lda,","Preservação do Património","GAL Litoral Alentejano",7577005,197646,138655.81,58928.72,10399.19,"2019-02-01","2021-02-01"]
[null,null,null,null,null,null,null,"MAR-04.03.01-FEAMP-0086","MUNICÍPIO DE ODEMIRA","Plano Estratégico e Operacional de Valorização do Rio Mira","GAL Litoral Alentejano",7389581,87222.83,15498,13173.3,2324.6999999999998,"2018-06-26","2019-12-31"]
[null,null,null,null,null,null,null,"MAR-04.03.01-FEAMP-0087","MUNICÍPIO DE ODEMIRA","Dinamização e Valorização do Turismo Náutico do Mira","GAL Litoral Alentejano",7389581,548929.32999999996,374042.84,317936.40999999997,56106.43,"2017-07-28","2020-11-30"]
[null,null,null,null,null,null,null,"MAR-04.03.01-FEAMP-0088","Luis Manuel Guisado Mateus - Comércio de Peixe e Marisco, Unipessoal, Lda,","Aquisição de aquário para crustáceos","GAL Litoral Alentejano",9137514,7500,5000,2125,375,"2018-02-26","2019-12-31"]
[null,null,null,null,null,null,null,"MAR-04.03.01-FEAMP-0090","Emoções do Atlântico, Lda,","Mais Emoções - Sado Emotion","GAL Litoral Alentejano",9137584,181770.83,169694.56,72120.19,12727.09,"2018-11-30","2020-11-30"]
[null,null,null,null,null,null,null,"MAR-04.03.01-FEAMP-0091","EPO - Centro Escolar e Empresarial do Sudoeste Alentejano","Guia da Natureza no Sudoeste Alentejano","DRAP Alentejo",8833613,64999.71,47496.21,20185.89,3562.22,"2019-05-01","2021-01-31"]
[null,null,null,null,null,null,null,"MAR-04.03.01-FEAMP-0092","MUNICÍPIO DE TORRES VEDRAS","PRIMEIRA ONDA","DRAP Lisboa e Vale do Tejo - Oeste",7379153,191878,169236.89,143851.35999999999,25385.53,"2019-03-28","2020-12-15"]
[null,null,null,null,null,null,null,"MAR-04.03.01-FEAMP-0093","MUNICÍPIO DE TORRES VEDRAS","Implementação da ISO 13009:2015 nas praias Centro e Fisica","DRAP Lisboa e Vale do Tejo - Oeste",7379153,12112.55,12112.55,10295.67,1816.88,"2017-08-26","2021-09-21"]
[null,null,null,null,null,null,null,"MAR-04.03.01-FEAMP-0094","MUNICÍPIO DE TORRES VEDRAS","Reserva Natural Local Foz Azul - Àrea Marinha Protegida de Torres Vedras","DRAP Lisboa e Vale do Tejo - Oeste",7379153,46532.68,23113.48,19646.46,3467.02,"2019-03-19","2020-05-31"]
[null,null,null,null,null,null,null,"MAR-04.03.01-FEAMP-0096","R,A,B - Aluguer de Embarcações de Recreio, Lda","Reforço da Competitividade do Turismo","GAL Sotavento do Algarve",9032895,175263.22,175263.22,74486.87,13144.74,"2016-11-17","2020-07-15"]
[null,null,null,null,null,null,null,"MAR-04.03.01-FEAMP-0097","Mário Manuel Belo Pedro","QUINTA QUANTA - Aproveitamento dos recursos marinhos autóctones da região centro","GAL Oeste",9142523,38779.71,31546.17,13407.13,2365.96,"2018-07-01","2020-06-30"]
[null,null,null,null,null,null,null,"MAR-04.03.01-FEAMP-0101","INSTITUTO POLITÉCNICO DE LEIRIA","LIMO DO CAIS -  Exploração sustentada dos recursos endógenos S, Martinho Porto","GAL Oeste",7163701,55741.36,55398.19,47088.46,8309.73,"2019-04-04","2021-04-14"]
[null,null,null,null,null,null,null,"MAR-04.03.01-FEAMP-0103","Manuel Cláudiio da Conceição Mestre","MANUEL MESTRE - PASSEIOS MARÍTIMO - TURÍSTICOS - CULATRA","GAL Sotavento do Algarve",9145614,46570.73,46570.73,19792.560000000001,3492.81,"2018-05-01","2020-06-30"]
[null,null,null,null,null,null,null,"MAR-04.03.01-FEAMP-0105","FANTASTIKSPIRIT - Actividades MArítimas, SA","FANTASTIKSPIRIT - Criação empresa de passeios marítimo-turísticos e degustação","GAL Sotavento do Algarve",9147466,398500,210000,89250,15750,"2018-04-01","2020-05-30"]
[null,null,null,null,null,null,null,"MAR-04.03.01-FEAMP-0106","INSTITUTO POLITÉCNICO DE LEIRIA","PAS - Paté de Percebe com Amora Silvestre","GAL Oeste",7163701,48077.78,45146.86,38374.83,6772.03,"2019-03-01","2021-02-28"]
[null,null,null,null,null,null,null,"MAR-04.03.01-FEAMP-0109","Tavares & Guerreiro, Lda","Reforço da Competitividade do Turismo","GAL Sotavento do Algarve",9150662,635000,635000,152047.57999999999,26831.919999999998,"2019-10-07","2020-12-31"]
[null,null,null,null,null,null,null,"MAR-04.03.01-FEAMP-0111","INSTITUTO POLITÉCNICO DE LEIRIA","SMART FISH - Restauração Sustentável","GAL Oeste",7163701,52821.440000000002,52821.440000000002,44898.22,7923.22,"2019-02-25","2021-02-10"]
[null,null,null,null,null,null,null,"MAR-04.03.01-FEAMP-0113","SALT & SEA, Unipessoal, Lda","SALT & SEA - Criação de empresa de passeios marítimo-turísticos","GAL Sotavento do Algarve",9145943,442388.78,442388.78,159361.71,28122.65,"2018-01-07","2019-11-30"]
[null,null,null,null,null,null,null,"MAR-04.03.01-FEAMP-0122","ZESENGO - Explorações Hoteleiras, SA","ZESENGO Diversificação, Passeios Marítimo-Turísticos Experiências Gastronómicas","GAL Sotavento do Algarve",9150646,382769.14,323468.81,137474.23999999999,24260.17,"2018-01-01","2020-06-30"]
[null,null,null,null,null,null,null,"MAR-04.03.01-FEAMP-0124","TEJO RIBEIRINHO - IMPORTAÇÃO E COMÉRCIO DE PEIXES E MARISCOS, LDA","Depósito de Crustáceos","GAL Oeste",8220215,67650,55000,23375,4125,"2018-01-15","2019-12-31"]
[null,null,null,null,null,null,null,"MAR-04.03.01-FEAMP-0125","TEJO RIBEIRINHO - IMPORTAÇÃO E COMÉRCIO DE PEIXES E MARISCOS, LDA","Centro de Expedição","GAL Oeste",8220215,30538.38,24828.44,10552.09,1862.13,"2018-01-01","2019-12-31"]
[null,null,null,null,null,null,null,"MAR-04.03.01-FEAMP-0126","Lendas ao Vento, Lda,","Aquisição de 3 embarcações solares para operação em Tavira-Olhão","GAL Sotavento do Algarve",9141736,191949.82,161954.94,68830.850000000006,12146.62,"2018-02-01","2020-06-30"]
[null,null,null,null,null,null,null,"MAR-04.03.01-FEAMP-0128","INSTITUTO POLITÉCNICO DE LEIRIA","MACAU - Diversidadeda macroalgal reserva natural das berlengas e costa adjacente","GAL Oeste",7163701,49812.34,49812.34,42340.49,7471.85,"2019-03-18","2021-01-31"]
[null,null,null,null,null,null,null,"MAR-04.03.01-FEAMP-0141","VIAMAR - Sociedade de Viagens Peniche-Berlenga, Lda","MODERNIZAÇÃO/ REQUALIFICAÇÃO DA VIAMAR","GAL Oeste",9156295,36470.379999999997,27792.720000000001,11811.91,2084.4499999999998,"2018-03-01","2020-02-15"]
[null,null,null,null,null,null,null,"MAR-04.03.01-FEAMP-0142","Alexandre Miguel Franco Carinhas","G3 STORE SURFCENTER","GAL Oeste",9156144,31235.81,26522.799999999999,11272.19,1989.22,"2018-01-01","2020-06-30"]
[null,null,null,null,null,null,null,"MAR-04.03.01-FEAMP-0143","Fábrica da Igreja Paroquial da Freguesia da Nossa Senhora da Conceição de Salir do Porto","REABILITAÇÃO E BENEFICIAÇÃO DE EDIFÍCIO DESTINADO A CULTO CATÓLICO","GAL Oeste",9165545,115198.18,115198.18,78334.759999999995,13823.78,"2019-10-29","2021-03-29"]
[null,null,null,null,null,null,null,"MAR-04.03.01-FEAMP-0147","JUSTDIVE - Actividades Marítimas, Lda","JUSTDIVE - UpGrate I","GAL Oeste",9158681,29814.06,24239.07,10301.6,1817.94,"2018-05-01","2021-02-01"]
[null,null,null,null,null,null,null,"MAR-04.03.01-FEAMP-0148","JUSTDIVE - Actividades Marítimas, Lda","JUSTDIVE - UpGrate II","GAL Oeste",9158681,29383,29383,12487.77,2203.73,"2019-06-05","2021-02-01"]
[null,null,null,null,null,null,null,"MAR-04.03.01-FEAMP-0154","Instituto de Conservação da Natureza e das Florestas, I,P,","Porta das Berlengas / Biosfera","GAL Oeste",7962285,141690.9,133112.56,113145.68,19966.88,"2019-04-08","2021-03-01"]
[null,null,null,null,null,null,null,"MAR-04.03.01-FEAMP-0155","Municipio da Nazaré","Museu do Peixe Seco","GAL Oeste",7227641,162225.64000000001,159781.67000000001,135814.42000000001,23967.25,"2016-08-22","2019-01-24"]
[null,null,null,null,null,null,null,"MAR-04.03.01-FEAMP-0156","Associação de Nadadores Salvadores de Grândola - Seagull Rescue","Capacitação da Seagull Rescue","GAL Litoral Alentejano",9138227,64851.27,64081.63,27234.7,4806.12,"2018-06-01","2020-08-31"]
[null,null,null,null,null,null,null,"MAR-04.03.01-FEAMP-0157","Ginásio Clube Naval de Faro","Construção de Ponte Pedonal - Doca de Faro","GAL Sotavento do Algarve",9186746,179678.4,179678.4,76363.320000000007,13475.88,"2018-01-01","2019-03-31"]
[null,null,null,null,null,null,null,"MAR-04.03.01-FEAMP-0158","Good Moments - Indústria Criativa de Cultura e Alimentação Tradicional, Lda","Faro Story Spot - A Cidade e a Ria","GAL Sotavento do Algarve",9148102,483246.26,463979.61,130816.74,23085.3,"2017-06-10","2020-09-09"]
[null,null,null,null,null,null,null,"MAR-04.03.01-FEAMP-0161","SUMMERWARRIOR, Lda","Aquisição de 3 embarcações solares - Ria Formosa Olhão","GAL Sotavento do Algarve",9152026,175037,149477,63527.73,11210.77,"2018-03-31","2020-12-10"]
[null,null,null,null,null,null,null,"MAR-04.03.01-FEAMP-0167","Life Culture, Unipessoal, Lda","GSGL Surf Academy by Inês Tralha","GAL ecoMAR",9144522,37899.67,32256.12,13708.85,2419.21,"2018-01-01","2020-09-30"]
[null,null,null,null,null,null,null,"MAR-04.03.01-FEAMP-0168","Sunday Oasis, Unipessoal, Lda","Surf Camp 360 - referência para o turismo de mar Local","GAL ecoMAR",9157372,70114.399999999994,37889.32,16102.96,2841.7,"2017-06-22","2020-05-09"]
[null,null,null,null,null,null,null,"MAR-04.03.01-FEAMP-0170","Universidade Nova de Lisboa","Ondas do Oeste e Cultura Oceânica","GAL ecoMAR",9026322,62986,39397.9,33488.22,5909.68,"2019-01-01","2020-12-31"]
[null,null,null,null,null,null,null,"MAR-04.03.01-FEAMP-0171","Freguesia de A dos Cunhados e Maceira","Passadiço das Escarpas, Concelho de Torres Vedras","GAL ecoMAR",9139923,157919.85999999999,157919.85999999999,134231.88,23687.98,"2019-02-01","2019-10-31"]
[null,null,null,null,null,null,null,"MAR-04.03.01-FEAMP-0172","INSTITUTO POLITÉCNICO DE LEIRIA","ELITIST - Especialização em Turismo Subaquático","GAL Oeste",7163701,125437.08,125437.08,106621.52,18815.560000000001,"2019-03-15","2021-02-21"]
[null,null,null,null,null,null,null,"MAR-04.03.01-FEAMP-0173","INSTITUTO POLITÉCNICO DE LEIRIA","INOVAÇÃO COM TRADIÇÃO para um consumo sustentável","GAL Oeste",7163701,25575.74,25201.25,21421.06,3780.19,"2019-06-01","2021-05-31"]
[null,null,null,null,null,null,null,"MAR-04.03.01-FEAMP-0174","MUNICIPIO DE PENICHE","Criação da Marca Rendas de Bilros de Peniche","DRAP Lisboa e Vale do Tejo - Oeste",7335904,36900,27700,23545,4155,"2018-08-01","2019-06-30"]
[null,null,null,null,null,null,null,"MAR-04.03.01-FEAMP-0175","MUNICIPIO DE PENICHE","Capital da Onda - Rebranding: Estudo de Mercado e Plano de Marketing","DRAP Lisboa e Vale do Tejo - Oeste",7335904,49200,27700,23545,4155,"2019-07-15","2020-12-31"]
[null,null,null,null,null,null,null,"MAR-04.03.01-FEAMP-0177","INSTITUTO POLITÉCNICO DE LEIRIA","ProValgas@Oeste: Promoção e valorização das algas para uma alimentação saudável","GAL Oeste",7163701,27948.13,27700,23545,4155,"2019-06-01","2021-05-31"]
[null,null,null,null,null,null,null,"MAR-04.03.01-FEAMP-0178","INSTITUTO POLITÉCNICO DE LEIRIA","Especialização em Mergulho Cientifico (SCI-DIVE)","GAL Oeste",7163701,125410.69,125410.69,106599.09,18811.599999999999,"2019-04-01","2021-03-21"]
[null,null,null,null,null,null,null,"MAR-04.03.01-FEAMP-0188","MUNICÍPIO DE ÍLHAVO","Estação Náutica do Município de Ílhavo: Projeto piloto para a Região de Aveiro","GAL Região de Aveiro",7558267,69495,67650,57502.5,10147.5,"2019-01-15","2020-11-30"]
[null,null,null,null,null,null,null,"MAR-04.03.01-FEAMP-0189","Sporting Clube de Aveiro","Navegadores de palmo e meio (NPM) - Ria na Escola","GAL Região de Aveiro",9236833,26464.37,26294.71,11175.25,1972.11,"2019-07-01","2021-06-30"]
[null,null,null,null,null,null,null,"MAR-04.03.01-FEAMP-0190","MUNICÍPIO DE ÍLHAVO","Navio Museu Santo André: Museografia, Beneficiacão e Reabilitacão","GAL Região de Aveiro",7558267,586095,652515,424907.98,227607.02,"2019-02-01","2020-10-30"]
[null,null,null,null,null,null,null,"MAR-04.03.01-FEAMP-0191","MUNICÍPIO DE ÍLHAVO","Notoriedade da Ostra produzida no Município de Ílhavo e na Ria de Aveiro","GAL Região de Aveiro",7558267,52275,52275,44433.75,7841.25,"2019-02-01","2020-11-30"]
[null,null,null,null,null,null,null,"MAR-04.03.01-FEAMP-0192","MUNICÍPIO DE ÍLHAVO","Formação para o Mar e para a Ria de Aveiro: Vela para Todos","GAL Região de Aveiro",7558267,66265.8,66265.8,56325.93,9939.8700000000008,"2019-01-02","2020-12-20"]
[null,null,null,null,null,null,null,"MAR-04.03.01-FEAMP-0193","MUNICÍPIO DE VAGOS","Centro de Promoção e Desenvolvimento de Desportos Náuticos (Surf e Canoagem)","GAL Região de Aveiro",7505312,164118.95000000001,160358.34,136304.59,24053.75,"2018-02-12","2021-03-31"]
[null,null,null,null,null,null,null,"MAR-04.03.01-FEAMP-0194","MUNICÍPIO DA MURTOSA","Marina na Torreira","GAL Região de Aveiro",7392037,989435.8,989435.8,356424.46,633011.34,"2018-11-01","2020-10-31"]
[null,null,null,null,null,null,null,"MAR-04.03.01-FEAMP-0195","MUNICÍPIO DA MURTOSA","Ampliação e Remodelação do Estaleiro Museu da Praia do Monte Branco","GAL Região de Aveiro",7392037,179044.6,179044.6,152187.91,26856.69,"2019-11-19","2020-12-31"]
[null,null,null,null,null,null,null,"MAR-04.03.01-FEAMP-0196","MUNICÍPIO DE VAGOS","Centro Náutico e Piscatório da Praia da Vagueira","GAL Região de Aveiro",7505312,803607.2,803607.2,424935.43,378671.77,"2019-01-02","2020-12-15"]
[null,null,null,null,null,null,null,"MAR-04.03.01-FEAMP-0201","Espaço de Experiências, Lda,","Migração para Motores Eléctricos nas Embarcações Tradicionais - Esp Experiências","GAL Região de Aveiro",9232352,171708,171708,72975.899999999994,12878.1,"2018-01-01","2019-08-31"]
[null,null,null,null,null,null,null,"MAR-04.03.01-FEAMP-0203","IncrivelOdisseia - Marítimo-Turísticos, Lda,","Migração para Motores Eléctricos nas Embarcações Tradicionais -Incrível Odisseia","GAL Região de Aveiro",9228203,205843.5,205843.5,87483.49,15438.26,"2017-12-27","2019-12-26"]
[null,null,null,null,null,null,null,"MAR-04.03.01-FEAMP-0206","FEDRAVE - FUNDAÇÃO PARA O ESTUDO E DESENVOLVIMENTO DA REGIÃO DE AVEIRO","Formação/Qualificação/Certificação Tripulantes Emb Marítimo-Turísticas Ria Aveir","GAL Região de Aveiro",7557314,123506.94,95411.56,48659.9,8587.0400000000009,"2019-10-01","2021-04-30"]
[null,null,null,null,null,null,null,"MAR-04.03.01-FEAMP-0208","AGUARELATROPICAL - AQUICULTURA DE OSTRAS LDA","Marinha Passagem - Atividades Turísticas","GAL Região de Aveiro",8862446,203920.86,179455.75,91522.43,16151.02,"2018-01-01","2019-12-31"]
[null,null,null,null,null,null,null,"MAR-04.03.01-FEAMP-0209","SALINÁRIO, LDA,","Salinário - Actividades Turísticas","GAL Região de Aveiro",9237515,332306,291491.08,148660.45000000001,26234.2,"2018-03-01","2020-02-28"]
[null,null,null,null,null,null,null,"MAR-04.03.01-FEAMP-0211","PALMAYACHTS LDA","Turismo Náutico no concelho de Cascais","GAL Ericeira/Cascais",7685547,437394,437394,169980.06,29996.48,"2019-01-01","2020-05-30"]
[null,null,null,null,null,null,null,"MAR-04.03.01-FEAMP-0214","SailCascais, Lda","Dinamização de vela na zona de Cascais","GAL Ericeira/Cascais",9188366,189959.7,172671.88,73385.55,12950.39,"2018-07-01","2020-12-31"]
[null,null,null,null,null,null,null,"MAR-04.03.01-FEAMP-0215","We Surf, Lda","Aumento da atratividade turística","GAL Ericeira/Cascais",9189613,21115.759999999998,10921.56,4641.66,819.12,"2018-09-26","2020-09-25"]
[null,null,null,null,null,null,null,"MAR-04.03.01-FEAMP-0220","Municipio de Mafra","Festival Internacional do Ouriço do Mar da Ericeira","DRAP Lisboa e Vale do Tejo - Oeste",7499417,45510,41820,35547,6273,"2016-01-01","2019-03-30"]
[null,null,null,null,null,null,null,"MAR-04.03.01-FEAMP-0221","Município de Cascais","Requalificação da Embarcação Estou para Ver","DRAP Lisboa e Vale do Tejo - Oeste",7383383,519410.39,493626.07,419582.16,74043.91,"2019-03-01","2020-12-31"]
[null,null,null,null,null,null,null,"MAR-04.03.01-FEAMP-0223","Município de Cascais","Food Lab Cantina Cascais","DRAP Lisboa e Vale do Tejo - Oeste",7383383,57488.41,20239.099999999999,17203.240000000002,3035.86,"2018-09-01","2019-10-31"]
[null,null,null,null,null,null,null,"MAR-04.03.01-FEAMP-0227","MUNICIPIO DE MIRA","Reabilitação e Modernização do Mercado da Praia de Mira","DRAP Centro",7387937,440922.88,148416.93,126154.39,22262.54,"2019-03-08","2021-06-07"]
[null,null,null,null,null,null,null,"MAR-04.03.01-FEAMP-0228","MUNICIPIO DE MIRA","Dinamização da Praia de Mira - Uma Aldeia de Mar","DRAP Centro",7387937,64653.72,64653.72,54955.66,9698.06,"2019-10-15","2021-05-09"]
[null,null,null,null,null,null,null,"MAR-04.03.01-FEAMP-0229","MUNICIPIO DE MIRA","Requalificação e Revitalização dos Viveiros na Praia de Mira","DRAP Centro",7387937,354454.12,354454.12,301286,53168.12,"2019-08-05","2021-05-09"]
[null,null,null,null,null,null,null,"MAR-04.03.01-FEAMP-0231","MUNICIPIO DA FIGUEIRA DA FOZ","Cais Ancoradouro em Vila Verde","GAL Mondego Mar",7596641,92219.25,92219.25,78386.36,13832.89,"2019-06-27","2020-05-01"]
[null,null,null,null,null,null,null,"MAR-04.03.01-FEAMP-0232","MUNICIPIO DA FIGUEIRA DA FOZ","Centro de Observação de Avifauna das Lagoas da Vela e Braças - Infraestruturas e","GAL Mondego Mar",7596641,184469.25,147631.5,125486.77,22144.73,"2019-08-02","2020-12-12"]
[null,null,null,null,null,null,null,"MAR-04.03.01-FEAMP-0234","Município de Cantanhede","Arte Xávega - Praia da Tocha: Conteúdos, Promoção, Divulgação e Comunicação","GAL Mondego Mar",7386845,154302.62,105728.22,89868.99,15859.23,"2019-07-29","2020-12-31"]
[null,null,null,null,null,null,null,"MAR-04.03.01-FEAMP-0235","INOVA-EMPRESA DE DESENVOLVIMENTO ECONOMICO E SOCIAL DE CANTANHEDE-EM,S,A,","Praia da Tocha é Património, é Qualidade, é Ambiente","GAL Mondego Mar",7001645,204376.8,124838.85,106113.02,18725.830000000002,"2018-01-01","2020-09-30"]
[null,null,null,null,null,null,null,"MAR-04.03.01-FEAMP-0241","Jornada do Vento, Lda,","Viana Beach Center","GAL Litoral Norte",9166123,399661.05,397854.05,169087.98,29839.05,"2017-03-01","2019-12-31"]
[null,null,null,null,null,null,null,"MAR-04.03.01-FEAMP-0242","Rui Pereira - Comércio de Motas e Peixe, Unipessoal, Lda,","Lampreias a bordo","GAL Litoral Norte",9201187,19585.16,17990.16,7645.82,1349.26,"2018-12-01","2020-12-01"]
[null,null,null,null,null,null,null,"MAR-04.03.01-FEAMP-0248","COOPERATIVA PISCATÓRIA AÇOREANA, CRL","Unidade de produção","DRP Açores",9323234,54280.1,54280.1,39217.370000000003,6920.72,"2019-02-20","2019-07-24"]
[null,null,null,null,null,null,null,"MAR-04.03.01-FEAMP-0249","MUNICIPIO DA PRAIA DA VITÓRIA","Roteiro de mergulho recreativo,durf e body board","DRP Açores",7463097,9131.26,9131.26,6597.34,1164.23,"2019-02-28","2019-12-31"]
[null,null,null,null,null,null,null,"MAR-04.03.01-FEAMP-0250","MUNICIPIO DA PRAIA DA VITÓRIA","Parque aquático insuflável","DRP Açores",7463097,12970,12970,9370.82,1653.68,"2019-02-28","2019-12-31"]
[null,null,null,null,null,null,null,"MAR-04.03.01-FEAMP-0251","MUNICIPIO DE ANGRA DO HEROÍSMO","Formações para a comunidade pescatória","DRP Açores",7558712,4230,4230,3056.17,539.33000000000004,"2019-03-01","2020-02-29"]
[null,null,null,null,null,null,null,"MAR-04.03.01-FEAMP-0252","AZORES SEAWEED EXPORT GNSN, LDA,","Pesca Turismo","GAL GRATER",9262103,32972.11,32972.11,23822.35,4203.9399999999996,"2019-03-01","2020-03-31"]
[null,null,null,null,null,null,null,"MAR-04.03.01-FEAMP-0253","PRAIA CULTURAL - COOPERATIVA DE INTERESSE PÚBLICO","Conhece a baía da Praia da Vitória","GAL GRATER",7626955,7266.67,7266.67,5250.17,926.5,"2019-02-28","2019-12-31"]
[null,null,null,null,null,null,null,"MAR-04.03.01-FEAMP-0256","SÉRGIO MANUEL DOS SANTOS ALVES","Bravio Seafood","GAL GRATER",9320804,46570.04,46570.04,33646.85,5937.68,"2019-06-01","2019-12-31"]
[null,null,null,null,null,null,null,"MAR-04.03.01-FEAMP-0257","EMANUEL DA SILVA RAIMUNDO","Coasteering, Kayaks e SUP na exploração da aventura","GAL GRATER",9313843,17466.36,17466.36,12619.45,2226.96,"2019-02-28","2019-12-31"]
[null,null,null,null,null,null,null,"MAR-04.03.01-FEAMP-0259","OCTOPUS ACTIVIDADES NÁUTICAS LDA","Modernização, diversificação e valorização ambiental da empresa","GAL GRATER",9314251,21494.95,21494.95,15530.1,2740.61,"2019-02-28","2019-12-31"]
[null,null,null,null,null,null,null,"MAR-04.03.01-FEAMP-0262","ASSOCIAÇÃO PRÓ MAIOR SEGURANÇA DOS HOMENS DO MAR","Modernização das Instalações da sede APMSHM","GAL Litoral Norte - AMP",7188092,149386.82999999999,110707.12,84690.95,14945.46,"2018-06-04","2019-12-31"]
[null,null,null,null,null,null,null,"MAR-04.03.01-FEAMP-0263"," Aquisição de viatura","Aquisição de armário de conservação de pescado",null,"Ana de Jesus Viana","Un, Freg, Póvoa de Varzim, Beiriz e Argivai",20263.669999999998,20263.669999999998,8612.06,"2019-04-29","2019-03-01"]
[null,null,null,null,null,null,null,"MAR-04.03.01-FEAMP-0265","Mário Queirós - Marítimo Turística, Unipessoal, Lda,","Vitamin Sea","GAL Litoral Norte - AMP",9369835,123595.32,122555.32,52086.01,9191.65,"2019-09-02","2020-01-31"]
[null,null,null,null,null,null,null,"MAR-04.03.01-FEAMP-0267","APROPESCA - ORGANIZAÇÃO DE PRODUTORES DE PESCA ARTESANAL, CRL","Carrinha de Frio","GAL Litoral Norte - AMP",5169841,25118.41,24386.81,10364.39,1829.02,"2019-05-25","2020-12-31"]
[null,null,null,null,null,null,null,"MAR-04.03.01-FEAMP-0274","MUNICÍPIO DE TORRES VEDRAS","Centro Interpretativo da Reserva Natural Local Foz Azul","DRAP Lisboa e Vale do Tejo - Oeste",7379153,126123.04,126123.04,107204.58,18918.46,"2020-03-02","2021-12-31"]
[null,null,null,null,null,null,null,"MAR-04.03.01-FEAMP-0275","Mónica Soares Carvalho, Unipessoal, Lda,","Santa Cruz Dive House","GAL ecoMAR",9326557,435396.9,435396.9,169981.13,29996.67,"2020-03-30","2021-08-02"]
[null,null,null,null,null,null,null,"MAR-04.03.01-FEAMP-0276","Freguesia da Silveira","Passadiço da Praia Azul","GAL ecoMAR",9351427,158470,158470,134699.5,23770.5,"2020-01-06","2020-07-06"]
[null,null,null,null,null,null,null,"MAR-04.03.01-FEAMP-0286","MUNICÍPIO DE ALMADA","Valoriz, Pesca Artesanal e instal, Museu Vivo da Arte-xávega na Costa da Caparic","GAL ADREPES Costeiro",7975951,350000,299989.33,254990.93,44998.400000000001,"2019-07-01","2021-06-30"]
[null,null,null,null,null,null,null,"MAR-04.03.01-FEAMP-0287","Universidade Nova de Lisboa","Embaixadores pelo Mar","GAL ADREPES Costeiro",9026322,212307.32,175512.17,149185.34,26326.83,"2019-10-01","2021-10-01"]
[null,null,null,null,null,null,null,"MAR-04.03.01-FEAMP-0288","MUNICÍPIO DE ALCOCHETE","Valorização dos recursos naturais do Município de Alcochete","GAL ADREPES Costeiro",7368267,39426.17,25807.99,21936.79,3871.2,"2019-12-02","2020-12-31"]
[null,null,null,null,null,null,null,"MAR-04.03.01-FEAMP-0289","Waves&Kangaroos, Unipessoal","Abertura da Atlantic Coast Surf School","GAL ecoMAR",9384371,101965.86,66220.23,28143.61,4966.51,"2019-07-01","2020-12-31"]
[null,null,null,null,null,null,null,"MAR-04.03.01-FEAMP-0291","Poentapetecível, Unipessoal, Lda,","Turismo no Mar da Lourinhã","GAL ecoMAR",9383994,75263.37,62374.04,26508.97,4678.05,"2019-10-01","2020-12-31"]
[null,null,null,null,null,null,null,"MAR-04.03.01-FEAMP-0292","3FIN, Lda,","UpRise Surf School - Operador Maritimo Turístico","GAL ecoMAR",9361066,76644.259999999995,20524.39,8722.8700000000008,1539.33,"2019-06-01","2021-05-31"]
[null,null,null,null,null,null,null,"MAR-04.03.01-FEAMP-0293","ACIRO - Associação Comercial, Industrial e Serviços da Região Oeste","Mar de Aldeias","GAL ecoMAR",9382824,36900.04,36900,21955.5,3874.5,"2019-08-01","2021-01-31"]
[null,null,null,null,null,null,null,"MAR-04.03.01-FEAMP-0294","Europeia ID - Associação para a Investigação em Design, Marketing e Comunicação","Blue Circular Postbranding Project","GAL Ericeira/Cascais",7501306,49994.98,44021.55,29934.65,5282.59,"2019-12-16","2021-12-15"]
[null,null,null,null,null,null,null,"MAR-04.03.01-FEAMP-0296","GAIVOTA TAGARELA - UNIPESSOAL LDA","Modernização da Gaivota Tagarela","GAL Ericeira/Cascais",9321227,25026.6,25026.6,10636.3,1877,"2019-06-01","2020-06-01"]
[null,null,null,null,null,null,null,"MAR-04.03.01-FEAMP-0314","FEELVIANA - HOTELARIA, LDA,","Desenvolvimento atividades náuticas - Feel Viana","GAL Litoral Norte",9203743,352567.14,340567.14,144741.04999999999,25542.53,"2018-10-29","2019-06-30"]
[null,null,null,null,null,null,null,"MAR-04.03.01-FEAMP-0318","Mário Daniel Leitão UNIPESSOAL LDA","Explorar Viana do Castelo","GAL Litoral Norte",9333461,122420.81,118820.81,50498.85,8911.56,"2019-06-01","2020-12-31"]
[null,null,null,null,null,null,null,"MAR-04.03.01-FEAMP-0322","Trincapeixe-Ind, e Com, Prod, Alimentares Frescos e Congelados, Lda","Modernização estabelecimento Docapesca","GAL Litoral Norte",8847884,99048.49,89939.13,38224.14,6745.43,"2020-01-06","2021-12-31"]
[null,null,null,null,null,null,null,"MAR-04.03.01-FEAMP-0332","MUNICÍPIO DE MATOSINHOS","MMATOSINHOS-GES,ESTAÇÃO NAUTICA","DRAP Norte",7494521,85464.5,81795,69525.75,12269.25,"2019-04-26","2021-03-26"]
[null,null,null,null,null,null,null,"MAR-04.03.01-FEAMP-0333","MUNICÍPIO DE MATOSINHOS","MMatosinhos-Turismo Gastronómico","DRAP Norte",7494521,262486.09999999998,121155,102981.75,18173.25,"2019-04-26","2021-03-26"]
[null,null,null,null,null,null,null,"MAR-04.03.01-FEAMP-0334","MUNICÍPIO DE MATOSINHOS","MMatosinhos Mercados Locais","DRAP Norte",7494521,144604.35,110556.74,93973.23,16583.509999999998,"2019-04-26","2021-03-26"]
[null,null,null,null,null,null,null,"MAR-04.03.01-FEAMP-0335","CAMARA MUNICIPAL DE VILA DO CONDE","CVConde - Cais de Apoio","DRAP Norte",7493003,88017.1,88017.1,74814.539999999994,13202.56,"2019-06-01","2019-10-31"]
[null,null,null,null,null,null,null,"MAR-04.03.01-FEAMP-0336","CAMARA MUNICIPAL DE VILA DO CONDE","CVilaConde - Passadiços Freg Árvore","DRAP Norte",7493003,141881,141881,120598.85,21282.15,"2019-05-01","2019-09-30"]
[null,null,null,null,null,null,null,"MAR-04.03.01-FEAMP-0337","CAMARA MUNICIPAL DE VILA DO CONDE","CVilaConde - Mercado de Caxinas","DRAP Norte",7493003,106000,106000,90100,15900,"2019-10-01","2019-12-31"]
[null,null,null,null,null,null,null,"MAR-04.03.01-FEAMP-0338","MUNICÍPIO DA PÓVOA DE VARZIM","MPóvoaVarzim -Mercado Municipal","DRAP Norte",7648734,63570.63,63570.63,54035.040000000001,9535.59,"2019-09-02","2020-03-31"]
[null,null,null,null,null,null,null,"MAR-04.03.01-FEAMP-0339","MUNICÍPIO DA PÓVOA DE VARZIM","MPóvoaVarzim - Mar Para Todos","DRAP Norte",7648734,322918.61,219977.69,186981.04,32996.65,"2020-01-06","2020-12-31"]
[null,null,null,null,null,null,null,"MAR-04.03.01-FEAMP-0340","MUNICÍPIO DA PÓVOA DE VARZIM","MPóvoaVarzim - Memórias do Mar","DRAP Norte",7648734,129245.31,38888.239999999998,33055,5833.24,"2020-01-02","2020-12-31"]
[null,null,null,null,null,null,null,"MAR-05.01.01-FEAMP-000001","CAPA - COOPERATIVA DOS ARMADORES DA PESCA ARTESANAL, CRL","Planos de produção e comercialização da CAPA","DGRM - Direção Geral de Recursos Naturais Segurança e Serviços Marítimos",5168965,41238.76,29920.67,16830.43,5610.07,"2014-01-01","2016-12-31"]
[null,null,null,null,null,null,null,"MAR-05.01.01-FEAMP-000002","APROPESCA - ORGANIZAÇÃO DE PRODUTORES DE PESCA ARTESANAL, CRL","Planos de produção e comercialização da APROPESCA","DGRM - Direção Geral de Recursos Naturais Segurança e Serviços Marítimos",5169841,279732.73,225626.89,126915.13,42305.04,"2014-01-01","2016-12-31"]
[null,null,null,null,null,null,null,"MAR-05.01.01-FEAMP-000003","OPCENTRO - COOPERATIVA DE PESCA GERAL DO CENTRO, CRL","Planos de produção e de comercialização da OPCENTRO","DGRM - Direção Geral de Recursos Naturais Segurança e Serviços Marítimos",4913857,294863.52,209232.35,117693.2,39231.06,"2014-01-01","2016-12-31"]
[null,null,null,null,null,null,null,"MAR-05.01.01-FEAMP-000004","OLHÃOPESCA - ORGANIZAÇÃO DE PRODUTORES DE PESCA DO ALGARVE, CRL","Planos de produção e comercialização da OLHÃOPESCA","DGRM - Direção Geral de Recursos Naturais Segurança e Serviços Marítimos",5826466,51879.74,50891.72,28626.61,9542.18,"2014-01-01","2016-12-31"]
[null,null,null,null,null,null,null,"MAR-05.01.01-FEAMP-000005","ARTESANALPESCA - ORGANIZAÇAO DE PRODUTORES DE PESCA, CRL","Planos de produção e comercialização da ARTESANALPESCA","DGRM - Direção Geral de Recursos Naturais Segurança e Serviços Marítimos",4912912,435152.05,393238.05,221196.41,73732.13,"2014-01-01","2016-12-31"]
[null,null,null,null,null,null,null,"MAR-05.01.01-FEAMP-000006","COOPERATIVA DE PRODUTORES DE PEIXE DO CENTRO LITORAL, C,R,L,","Planos de produção e comercialização da Centro Litoral","DGRM - Direção Geral de Recursos Naturais Segurança e Serviços Marítimos",5628165,96764.77,64340.36,36191.660000000003,12063.89,"2014-01-01","2016-12-31"]
[null,null,null,null,null,null,null,"MAR-05.01.01-FEAMP-000007","VIANAPESCA, OP - COOPERATIVA DE PRODUTORES DE PEIXE DE VIANA DO CASTELO, CRL","Planos de produção e comercialização da VIANAPESCA","DGRM - Direção Geral de Recursos Naturais Segurança e Serviços Marítimos",5168957,222036.51,222036.51,124895.53,41631.85,"2014-01-01","2016-12-31"]
[null,null,null,null,null,null,null,"MAR-05.01.01-FEAMP-000010","PROPEIXE O,P, - COOPERATIVA DE PRODUTORES DE PEIXE DO NORTE, CRL","Planos Produção e Comercialização da PROPEIXE","DRAP Norte",4907002,381339.26,286697.27,161268.31,53756.09,"2014-01-01","2017-03-31"]
[null,null,null,null,null,null,null,"MAR-05.01.01-FEAMP-000011","SESIBAL - COOPERATIVA DE PESCA DE SETÚBAL, SESIMBRA E SINES, CRL","Planos de produção e de Comercialização da SESIBAL","DGRM - Direção Geral de Recursos Naturais Segurança e Serviços Marítimos",4910607,221439.87,176158.76,99089.71,33029.9,"2014-01-01","2016-12-31"]
[null,null,null,null,null,null,null,"MAR-05.01.01-FEAMP-0012","BIVALMAR - ORGANIZAÇÃO DE PRODUTORES, CRL","Plano de produção e comercialização da Bivalmar","DGRM - Direção Geral de Recursos Naturais Segurança e Serviços Marítimos",7359721,87795.34,49735.49,27976.22,9325.4,"2014-01-01","2016-12-31"]
[null,null,null,null,null,null,null,"MAR-05.01.01-FEAMP-0013","APARA - ASSOCIAÇÃO DE PESCA ARTESANAL DA REGIÃO DE AVEIRO","Plano de Produção e Comercialização Plurianual - 2014, 2015 e 2016","DGRM - Direção Geral de Recursos Naturais Segurança e Serviços Marítimos",7544372,214559.75,206386.01,116092.13,38697.379999999997,"2014-01-01","2018-04-30"]
[null,null,null,null,null,null,null,"MAR-05.01.01-FEAMP-0014","CAPA - COOPERATIVA DOS ARMADORES DA PESCA ARTESANAL, CRL","Planos de Produção e Comercialização dos anos 2017 e 2018","DGRM - Direção Geral de Recursos Naturais Segurança e Serviços Marítimos",5168965,23019.73,23019.73,12948.6,4316.2,"2017-01-01","2018-12-31"]
[null,null,null,null,null,null,null,"MAR-05.01.01-FEAMP-0015","APROPESCA - ORGANIZAÇÃO DE PRODUTORES DE PESCA ARTESANAL, CRL","APROPESCA  - Plano Prod, e Com, 2017 e 2018","DRAP Norte",5169841,627600,243196.24,136798.29999999999,45599.44,"2017-01-01","2018-12-31"]
[null,null,null,null,null,null,null,"MAR-05.01.01-FEAMP-0016","COOPERATIVA DE PRODUTORES DE PEIXE DO CENTRO LITORAL, C,R,L,","Melhoria da Rentabilidade Económica do produto da pesca e estabelização mercado","DGRM - Direção Geral de Recursos Naturais Segurança e Serviços Marítimos",5628165,288578.74,215319.37,121117.14,40372.39,"2017-01-01","2018-12-31"]
[null,null,null,null,null,null,null,"MAR-05.01.01-FEAMP-0017","ARTESANALPESCA - ORGANIZAÇAO DE PRODUTORES DE PESCA, CRL","Plano de Produção e Comercialização para os anos de 2017 e 2018","DGRM - Direção Geral de Recursos Naturais Segurança e Serviços Marítimos",4912912,911731.74,903877.05,508430.85,169476.94,"2017-01-01","2019-04-16"]
[null,null,null,null,null,null,null,"MAR-05.01.01-FEAMP-0018","SESIBAL - COOPERATIVA DE PESCA DE SETÚBAL, SESIMBRA E SINES, CRL","Planos de Produção e de Comercialização 2017-2018","DGRM - Direção Geral de Recursos Naturais Segurança e Serviços Marítimos",4910607,270207.5,237645.86,133675.79999999999,44558.6,"2017-01-01","2018-12-31"]
[null,null,null,null,null,null,null,"MAR-05.01.01-FEAMP-0020","APARA - ASSOCIAÇÃO DE PESCA ARTESANAL DA REGIÃO DE AVEIRO","PREPARAÇÃO E EXECUÇÃO DOS PLANOS DE PRODUÇÃO E DE COMERCIALIZAÇÃO","DGRM - Direção Geral de Recursos Naturais Segurança e Serviços Marítimos",7544372,160579.59,160579.59,90326.02,30108.67,"2017-01-01","2018-12-31"]
[null,null,null,null,null,null,null,"MAR-05.01.01-FEAMP-0021","PROPEIXE O,P, - COOPERATIVA DE PRODUTORES DE PEIXE DO NORTE, CRL","PROPEIXE - P,O, 2017 e 2018","DGRM - Direção Geral de Recursos Naturais Segurança e Serviços Marítimos",4907002,1031863.58,707470.36,397952.08,132650.69,"2017-01-01","2019-03-31"]
[null,null,null,null,null,null,null,"MAR-05.01.01-FEAMP-0023","VIANAPESCA, OP - COOPERATIVA DE PRODUTORES DE PEIXE DE VIANA DO CASTELO, CRL","VIANAPESCA o,p - P,O, 2017 / 2018","DGRM - Direção Geral de Recursos Naturais Segurança e Serviços Marítimos",5168957,232241.94,231981.94,130489.84,43496.62,"2017-01-01","2018-12-31"]
[null,null,null,null,null,null,null,"MAR-05.01.01-FEAMP-0026","BIVALMAR - ORGANIZAÇÃO DE PRODUTORES, CRL","Planos de Produção e Comercialização 2017 e 2018","DGRM - Direção Geral de Recursos Naturais Segurança e Serviços Marítimos",7359721,83474.42,66866.679999999993,37612.519999999997,12537.5,"2017-01-01","2018-12-31"]
[null,null,null,null,null,null,null,"MAR-05.01.01-FEAMP-0027","OPCENTRO - COOPERATIVA DE PESCA GERAL DO CENTRO, CRL","Planos de Produção e Comercialização","DGRM - Direção Geral de Recursos Naturais Segurança e Serviços Marítimos",4913857,293758.12,188357.36,105951.02,35317,"2017-01-01","2019-07-15"]
[null,null,null,null,null,null,null,"MAR-05.01.01-FEAMP-0028","BARLAPESCAS - COOPERATIVA DOS ARMADORES DE PESCA DO BARLAVENTO CRL","Elaboração e execução do PPC 2017 e 2018","DGRM - Direção Geral de Recursos Naturais Segurança e Serviços Marítimos",5021955,55867.9,55867.9,31425.7,10475.23,"2017-01-01","2019-02-28"]
[null,null,null,null,null,null,null,"MAR-05.01.01-FEAMP-0029","OLHÃOPESCA - ORGANIZAÇÃO DE PRODUTORES DE PESCA DO ALGARVE, CRL","PPC 2017 e 2018","DGRM - Direção Geral de Recursos Naturais Segurança e Serviços Marítimos",5826466,47002.82,36498.629999999997,20530.48,6843.49,"2017-01-01","2018-12-31"]
[null,null,null,null,null,null,null,"MAR-05.01.01-FEAMP-0030","CAPA - COOPERATIVA DOS ARMADORES DA PESCA ARTESANAL, CRL","CAPA - Cooperativa dos Armadores da Pesca Artesanal, CRL - 2019","DGRM - Direção Geral de Recursos Naturais Segurança e Serviços Marítimos",5168965,21544.82,21544.82,12118.97,4039.65,"2019-01-01","2019-12-31"]
[null,null,null,null,null,null,null,"MAR-05.01.01-FEAMP-0032","OLHÃOPESCA - ORGANIZAÇÃO DE PRODUTORES DE PESCA DO ALGARVE, CRL","Olhãopesca PPC 2019","DGRM - Direção Geral de Recursos Naturais Segurança e Serviços Marítimos",5826466,37445.879999999997,37445.879999999997,21063.31,7021.1,"2019-01-01","2019-12-31"]
[null,null,null,null,null,null,null,"MAR-05.01.01-FEAMP-0035","BARLAPESCAS - COOPERATIVA DOS ARMADORES DE PESCA DO BARLAVENTO CRL","Barlapescas, PPC 2019","DGRM - Direção Geral de Recursos Naturais Segurança e Serviços Marítimos",5021955,168617.58,16889.580000000002,9500.39,3166.8,"2019-01-01","2019-12-31"]
[null,null,null,null,null,null,null,"MAR-05.01.01-FEAMP-0037","ARTESANALPESCA - ORGANIZAÇAO DE PRODUTORES DE PESCA, CRL","Artesanalpesca, PPC 2019","DGRM - Direção Geral de Recursos Naturais Segurança e Serviços Marítimos",4912912,587082.30000000005,476988.51,268306.03999999998,89435.34,"2019-01-01","2020-06-30"]
[null,null,null,null,null,null,null,"MAR-05.01.01-FEAMP-0039","APROPESCA - ORGANIZAÇÃO DE PRODUTORES DE PESCA ARTESANAL, CRL","Apropesca, PPC 2019","DGRM - Direção Geral de Recursos Naturais Segurança e Serviços Marítimos",5169841,142281.93,140430.88,78992.37,26330.79,"2019-01-01","2019-12-31"]
[null,null,null,null,null,null,null,"MAR-05.01.01-FEAMP-0040","SESIBAL - COOPERATIVA DE PESCA DE SETÚBAL, SESIMBRA E SINES, CRL","SESIBAL, PPC 2019","DGRM - Direção Geral de Recursos Naturais Segurança e Serviços Marítimos",4910607,195110.39999999999,167409.4,94167.79,31389.26,"2019-01-01","2019-12-31"]
[null,null,null,null,null,null,null,"MAR-05.01.01-FEAMP-0042","OPCENTRO - COOPERATIVA DE PESCA GERAL DO CENTRO, CRL","OPCENTRO, PPC 2019","DGRM - Direção Geral de Recursos Naturais Segurança e Serviços Marítimos",4913857,331182,329182.38,185165.1,61721.69,"2019-01-01","2019-12-31"]
[null,null,null,null,null,null,null,"MAR-05.01.01-FEAMP-0044","APARA - ASSOCIAÇÃO DE PESCA ARTESANAL DA REGIÃO DE AVEIRO","APARA, PPC 2019","DGRM - Direção Geral de Recursos Naturais Segurança e Serviços Marítimos",7544372,165179.82999999999,94484.9,53147.76,17715.919999999998,"2019-01-01","2019-12-31"]
[null,null,null,null,null,null,null,"MAR-05.01.01-FEAMP-0045","COOPERATIVA DE PRODUTORES DE PEIXE DO CENTRO LITORAL, C,R,L,","Centro Litoral, PPC 2019","DGRM - Direção Geral de Recursos Naturais Segurança e Serviços Marítimos",5628165,285432.49,279774.92,157373.4,52457.8,"2019-01-01","2019-12-31"]
[null,null,null,null,null,null,null,"MAR-05.01.01-FEAMP-0047","BIVALMAR - ORGANIZAÇÃO DE PRODUTORES, CRL","BIVALMAR, PPC 2019","DGRM - Direção Geral de Recursos Naturais Segurança e Serviços Marítimos",7359721,64251.040000000001,53276.84,29968.22,9989.41,"2019-01-01","2019-12-31"]
[null,null,null,null,null,null,null,"MAR-05.02.01-FEAMP-0001","ALIF - ASSOCIAÇÃO DA INDÚSTRIA ALIMENTAR PELO FRIO","Participação de Portugal na ESE 2016 e 2017","DRAP Lisboa e Vale do Tejo - Oeste",7270516,725399.11,597282.94999999995,268777.33,89592.44,"2015-07-29","2017-06-30"]
[null,null,null,null,null,null,null,"MAR-05.02.01-FEAMP-0002","ASSOCIAÇÃO DOS COMERCIANTES DE PESCADO (ACOPE)","FEIRA SIAL PARIS - FRANÇA - 2016","DRAP Lisboa e Vale do Tejo - Oeste",7373477,162120.75,159585.34,71813.399999999994,23937.8,"2015-12-01","2017-02-28"]
[null,null,null,null,null,null,null,"MAR-05.02.01-FEAMP-0003","DOCAPESCA PORTOS E LOTAS, S,A,","VALORIZAÇÃO DOS PRODUTOS DA PESCA E AQUACULTURA - DO BARCO AO PRATO","DRAP Lisboa e Vale do Tejo - Oeste",7282212,278500,229694.82,172271.12,57423.7,"2016-01-01","2018-09-30"]
[null,null,null,null,null,null,null,"MAR-05.02.01-FEAMP-0005","ALIF - ASSOCIAÇÃO DA INDÚSTRIA ALIMENTAR PELO FRIO","Feira Internacional ANUGA 2017 - Colónia - Alemanha","DRAP Lisboa e Vale do Tejo - Oeste",7270516,193496.36,170362.14,76662.960000000006,25554.32,"2017-08-07","2017-12-31"]
[null,null,null,null,null,null,null,"MAR-05.02.03-FEAMP-0006","PENWAVE, LDA","PENWave","DRAP Lisboa e Vale do Tejo - Oeste",8844657,21600,21600,8100,2700,"2016-08-05","2017-10-31"]
[null,null,null,null,null,null,null,"MAR-05.02.01-FEAMP-0007","ASSOCIAÇÃO DOS COMERCIANTES DE PESCADO (ACOPE)","Feira Internacional Seafood Expo North America  2017 em Boston","DRAP Lisboa e Vale do Tejo - Oeste",7373477,370216.27,328229.55,246172.16,82057.39,"2016-12-23","2017-06-30"]
[null,null,null,null,null,null,null,"MAR-05.02.01-FEAMP-0008","DOCAPESCA PORTOS E LOTAS, S,A,","PARTICIPAÇÃO NA FEIRA SISAB 2017","DRAP Lisboa e Vale do Tejo - Oeste",7282212,54500,54500,40875,13625,"2017-03-01","2017-05-31"]
[null,null,null,null,null,null,null,"MAR-05.02.01-FEAMP-0009","DOCAPESCA PORTOS E LOTAS, S,A,","VALORIZAÇÃO DOS PRODUTOS DA PESCA E AQUACULTURA - DO BARCO AO PRATO -  2017","DRAP Lisboa e Vale do Tejo - Oeste",7282212,203250,203250,152437.5,50812.5,"2017-01-01","2020-01-31"]
[null,null,null,null,null,null,null,"MAR-05.02.01-FEAMP-0012","ALIF - ASSOCIAÇÃO DA INDÚSTRIA ALIMENTAR PELO FRIO","PESCADO CONTROLADO IV","DRAP Lisboa e Vale do Tejo - Oeste",7270516,649729.85,649729.85,487297.39,162432.46,"2018-10-12","2021-12-31"]
[null,null,null,null,null,null,null,"MAR-05.02.01-FEAMP-0013","DOCAPESCA PORTOS E LOTAS, S,A,","Plano de Comunicação de Produtos da Pesca e da Aquacultura","DRAP Lisboa e Vale do Tejo - Oeste",7282212,61750,61750,46312.5,15437.5,"2017-01-01","2020-01-31"]
[null,null,null,null,null,null,null,"MAR-05.02.01-FEAMP-0014","DOCAPESCA PORTOS E LOTAS, S,A,","Rede Nacional de Circuitos Curtos de Comercialização de Pescado","DRAP Lisboa e Vale do Tejo - Oeste",7282212,35000,35000,26250,8750,"2017-06-01","2020-01-31"]
[null,null,null,null,null,null,null,"MAR-05.02.01-FEAMP-0015","DOCAPESCA PORTOS E LOTAS, S,A,","INOVAÇÃO NOS PRODUTOS DA PESCA E AQUACULTURA","DRAP Lisboa e Vale do Tejo - Oeste",7282212,9500,9500,7125,2375,"2017-05-01","2019-04-30"]
[null,null,null,null,null,null,null,"MAR-05.02.01-FEAMP-0016","LUGRADE - BACALHAU DE COIMBRA, SA,","Realização de campanhas promocionais para os produtos da pesca (bacalhau)","DRAP Centro",7136743,179134.88,179134.87,67175.58,22391.86,"2016-01-01","2019-12-31"]
[null,null,null,null,null,null,null,"MAR-05.02.01-FEAMP-0017","ALIF - ASSOCIAÇÃO DA INDÚSTRIA ALIMENTAR PELO FRIO","Feira Internacional Conxemar 2017","DRAP Lisboa e Vale do Tejo - Oeste",7270516,114764.93,92598,41669.1,13889.7,"2017-05-02","2018-01-15"]
[null,null,null,null,null,null,null,"MAR-05.02.01-FEAMP-0018","DOCAPESCA PORTOS E LOTAS, S,A,","PORTUGAL É MAR","DRAP Lisboa e Vale do Tejo - Oeste",7282212,60300,60300,45225,15075,"2017-03-01","2020-02-15"]
[null,null,null,null,null,null,null,"MAR-05.02.03-FEAMP-0019","Guimarpeixe - Comércio de Produtos Alimentares, Ld","GUIMARPEIXE - Dsvlto de Nvs Mrcds Externos -  Benelux, FR, CH, GB e BR","DRAP Norte",7295046,270320,254020,95257.5,31752.5,"2017-05-03","2020-04-30"]
[null,null,null,null,null,null,null,"MAR-05.02.01-FEAMP-0020","Direção-Geral de Política do Mar","ESPAÇO DO MAR - O MELHOR PEIXE II","DRAP Lisboa e Vale do Tejo - Oeste",8013252,151014,49378.35,37033.760000000002,12344.59,"2017-09-20","2017-12-31"]
[null,null,null,null,null,null,null,"MAR-05.02.07-FEAMP-0021","COFACO AÇORES - Indústria de Conservas, S,A,","Estudo shopper de conservas de peixe","DRP Açores",5613781,35500,35500,7987.5,2662.5,"2017-04-27","2018-12-31"]
[null,null,null,null,null,null,null,"MAR-05.02.01-FEAMP-0022","ALIF - ASSOCIAÇÃO DA INDÚSTRIA ALIMENTAR PELO FRIO","Feiras Seafood Brussels 2018 e 2019 e Conxemar Lisboa 2019","DRAP Lisboa e Vale do Tejo - Oeste",7270516,583602.17000000004,578466.35,260309.85,86769.96,"2017-08-04","2019-12-31"]
[null,null,null,null,null,null,null,"MAR-05.02.06-FEAMP-0023","SECRETARIA REGIONAL DO MAR CIÊNCIA E TECNOLOGIA/INSPEÇÃO REGIONAL PESCAS AÇORES","Conferência Mundial de Salto e Vara","DRP Açores",8578875,112607.79,99181.93,74386.45,24795.48,"2017-07-14","2018-02-28"]
[null,null,null,null,null,null,null,"MAR-05.02.01-FEAMP-0025","ALIF - ASSOCIAÇÃO DA INDÚSTRIA ALIMENTAR PELO FRIO","Feira Internacional Tuttofood 2019 - Milão-Itália","DRAP Lisboa e Vale do Tejo - Oeste",7270516,167569.43,167567.41,75405.34,25135.11,"2018-01-01","2020-03-31"]
[null,null,null,null,null,null,null,"MAR-05.02.01-FEAMP-0026","ALIF - ASSOCIAÇÃO DA INDÚSTRIA ALIMENTAR PELO FRIO","Feira Internacional Conxemar 2018 - Vigo-Espanha","DRAP Lisboa e Vale do Tejo - Oeste",7270516,119337.91,112221.49,50499.67,16833.22,"2018-01-01","2018-12-31"]
[null,null,null,null,null,null,null,"MAR-05.02.01-FEAMP-0027","ASSOCIAÇÃO DOS COMERCIANTES DE PESCADO (ACOPE)","FEIRA SIAL PARIS 2018","DRAP Lisboa e Vale do Tejo - Oeste",7373477,229677.86,220903.55,99406.61,33135.519999999997,"2017-12-21","2019-07-31"]
[null,null,null,null,null,null,null,"MAR-05.02.01-FEAMP-0028","DOCAPESCA PORTOS E LOTAS, S,A,","Produção de Web-Docs sobre a Indústria Conserveira","DRAP Lisboa e Vale do Tejo - Oeste",7282212,74950,74950,56212.5,18737.5,"2018-08-01","2019-11-30"]
[null,null,null,null,null,null,null,"MAR-05.02.06-FEAMP-0030","DIREÇÃO REGIONAL DAS PESCAS","I Fórum Internacional Socioecnómico das Pescas","DRP Açores",7991621,77441.17,77441.17,58080.88,19360.29,"2018-01-14","2020-12-31"]
[null,null,null,null,null,null,null,"MAR-05.02.01-FEAMP-0034","DOCAPESCA PORTOS E LOTAS, S,A,","Campanha de Promoção do Carapau","DRAP Lisboa e Vale do Tejo - Oeste",7282212,324831.76,324831.76,243623.82,81207.94,"2018-03-01","2020-02-15"]
[null,null,null,null,null,null,null,"MAR-05.02.01-FEAMP-0036","DOCAPESCA PORTOS E LOTAS, S,A,","CAMPANHA DE RÁDIO - PESCADO PORTUGUÊS NOS SANTOS POPULARES","DRAP Lisboa e Vale do Tejo - Oeste",7282212,13797.37,13797.37,10348.030000000001,3449.34,"2018-06-01","2020-02-15"]
[null,null,null,null,null,null,null,"MAR-05.02.01-FEAMP-0038","ALIF - ASSOCIAÇÃO DA INDÚSTRIA ALIMENTAR PELO FRIO","Feira Internacional ANUGA 2019","DRAP Lisboa e Vale do Tejo - Oeste",7270516,211736.05,184607.41,83073.33,27691.119999999999,"2018-09-01","2020-01-31"]
[null,null,null,null,null,null,null,"MAR-05.02.01-FEAMP-0041","ALIF - ASSOCIAÇÃO DA INDÚSTRIA ALIMENTAR PELO FRIO","O PEIXE É FIXE - PARA CONSUMIDORES DE PALMO E MEIO","DRAP Lisboa e Vale do Tejo - Oeste",7270516,92803.4,92803.4,41761.53,13920.51,"2018-10-22","2020-10-31"]
[null,null,null,null,null,null,null,"MAR-05.02.01-FEAMP-0043","ASSOCIAÇÃO NACIONAL DOS INDUSTRIAIS DE CONSERVAS DE PEIXE","ANICP - Vamos Conservar o que e Nosso","DRAP Norte",8471352,681490.89,681490.89,511118.17,170372.72,"2020-03-01","2020-12-31"]
[null,null,null,null,null,null,null,"MAR-05.03.01-FEAMP-0002","Henrique Rodrigues Serra, Lda","Modernização do estabelecimento de processamento de pescado congelado","DRAP Centro",8845131,363816.57,339720.69,127395.26,42465.09,"2016-08-01","2018-04-15"]
[null,null,null,null,null,null,null,"MAR-05.03.01-FEAMP-0006","DOCA MARINHA - Sociedade de Congelados e Pescados, Lda","Modernização da Unidade DocaMarinha","DRAP Lisboa e Vale do Tejo - Oeste",7536183,1118384.1399999999,1076020.03,403507.51,134502.51,"2014-06-20","2020-01-31"]
[null,null,null,null,null,null,null,"MAR-05.03.01-FEAMP-0007","GELPEIXE - ALIMENTOS CONGELADOS, S A","Ampliação da Unidade Gelpeixe","DRAP Lisboa e Vale do Tejo - Oeste",7149747,5166901.1500000004,5165274.8899999997,1936978.1,645659.35,"2016-06-01","2020-03-31"]
[null,null,null,null,null,null,null,"MAR-05.03.01-FEAMP-0008","Frigosto, Lda,","Ampliação da Unidade Frigosto","DRAP Lisboa e Vale do Tejo - Oeste",7182184,3604240.24,3136568.13,1176213.06,392071.01,"2016-09-01","2020-06-30"]
[null,null,null,null,null,null,null,"MAR-05.03.01-FEAMP-0010","Macro-Frio - Comércio Internacional de Produtos alimentares, Lda","MACRO-FRIO - 3º  Mod, Unid, Produtiva","DRAP Norte",7329196,2074244.66,2013573.97,755090.25,251696.75,"2016-02-10","2020-03-31"]
[null,null,null,null,null,null,null,"MAR-05.03.01-FEAMP-0013","Superfish - Produtos Alimentares, S A","Modernização da Unidade Superfish","DRAP Lisboa e Vale do Tejo - Oeste",8860881,757298.93,748876.14,280828.55,93609.52,"2016-11-01","2019-03-31"]
[null,null,null,null,null,null,null,"MAR-05.03.01-FEAMP-0014","ALCIDES DOS SANTOS ANTUNES, LDA,","Criação de nova unidade produtiva para processamento produtos pesca aquicultura","DRAP Centro",7776097,4269277.7300000004,4269277.72,1600979.14,533659.73,"2016-10-10","2019-06-30"]
[null,null,null,null,null,null,null,"MAR-05.03.01-FEAMP-0017","Soguima - Comércio e indústria alimentar, S,A,","SOGUIMA, S,A  - Modernização da Fábrica","DRAP Norte",7609021,4499668.68,4498505.33,1686939.5,562313.17000000004,"2014-01-01","2020-06-13"]
[null,null,null,null,null,null,null,"MAR-05.03.01-FEAMP-0019","COMDALGEL, Lda","Modernização da Unidade Industrial","DRAP Centro",7309273,1319375.1599999999,1296625.95,486234.74,162078.24,"2017-01-02","2020-02-12"]
[null,null,null,null,null,null,null,"MAR-05.03.01-FEAMP-0020","MAR CABO - Produtos Congelados, Lda","MAR-CABO, Lda - Ampliação Unid, Produção","DRAP Norte",7966975,6251848.4199999999,6160543.6100000003,2310203.86,770067.95,"2016-01-01","2019-12-31"]
[null,null,null,null,null,null,null,"MAR-05.03.01-FEAMP-0021","BEIRANOVA - INDÚSTRIA DE CONGELADOS SA","Unidade de preparação e transformação de pescado congelado","DRAP Centro",7183767,4586593.08,4369416.34,1638531.13,546177.04,"2014-04-11","2019-06-30"]
[null,null,null,null,null,null,null,"MAR-05.03.01-FEAMP-0025","COFISA-Conservas de Peixe da Figueira,SA","Modernização Fase 1 da Fábrica de Conservas de Peixe na Figueira da Foz","DRAP Centro",4997784,4820844.01,4820844.01,1807816.51,602605.5,"2016-05-01","2020-03-31"]
[null,null,null,null,null,null,null,"MAR-05.03.01-FEAMP-0026","NI,FI,IR,-PESCADOS, SOCIEDADE UNIPESSOAL,LDA","NIFIR - Expanção - Aumento da cap, de conservação de congelados e efic, energ,","DRAP Algarve",7361712,1648173.39,1418452.21,531919.59,177306.53,"2014-05-08","2020-05-16"]
[null,null,null,null,null,null,null,"MAR-05.03.01-FEAMP-0027","LUÍS SILVÉRIO & FILHOS S,A,","Nova Unidade Luis Silvério","DRAP Lisboa e Vale do Tejo - Oeste",7105482,16067465.140000001,12999999.970000001,4875000,1625000,"2015-08-13","2020-01-31"]
[null,null,null,null,null,null,null,"MAR-05.03.01-FEAMP-0028","South Atlantic Capital, S A","Conserveira South Atlantic Capital","DRAP Lisboa e Vale do Tejo - Oeste",8227776,9782295.8900000006,9492423.3200000003,3559658.75,1186552.92,"2015-07-01","2020-05-11"]
[null,null,null,null,null,null,null,"MAR-05.03.01-FEAMP-0030","FIXE EM CASA, LDA","Unidade Fixe em Casa","DRAP Lisboa e Vale do Tejo - Oeste",7588703,496310.65,480929.15,180348.43,60116.15,"2016-06-21","2020-11-01"]
[null,null,null,null,null,null,null,"MAR-05.03.01-FEAMP-0032","CONGELAGOS - TRANSFORMAÇÃO E COMÉRCIO DE PRODUTOS ALIMENTARES, S,A,","CONGELAGOS - Implementação de uma uni, transf, e proces, de pesc, e cefalópodes","DRAP Algarve",8849063,13000000,13000000,4875000,1625000,"2015-11-12","2020-07-13"]
[null,null,null,null,null,null,null,"MAR-05.03.01-FEAMP-0033","ARTESANALPESCA - ORGANIZAÇAO DE PRODUTORES DE PESCA, CRL","Ampliação da Unidade Artesanalpesca","DRAP Lisboa e Vale do Tejo - Oeste",4912912,1510231.7,1510231.7,566336.89,188778.96,"2015-12-10","2020-03-05"]
[null,null,null,null,null,null,null,"MAR-05.03.01-FEAMP-0038","Fabrica de Conservas A Poveira, S,A,","A POVEIRA - Otimização Proc, Produtivo","DRAP Norte",4914114,2633267.2599999998,2605042.66,976891.01,325630.33,"2015-03-01","2020-03-31"]
[null,null,null,null,null,null,null,"MAR-05.03.01-FEAMP-0040","Ramirez & Ca, (Filhos), SA","RAMIREZ, S,A - Aperfeiçoamento da Nv Unid, Fabril","DRAP Norte",4911947,2753292.6,2665726.58,999647.47,333215.82,"2014-01-01","2020-05-11"]
[null,null,null,null,null,null,null,"MAR-05.03.01-FEAMP-0044","LUGRADE - BACALHAU DE COIMBRA, SA,","Investimento complementar - unidades de Taveira e Ponte de Vilela","DRAP Centro",7136743,2529844.41,2334737.37,875526.52,291842.18,"2014-01-27","2020-12-31"]
[null,null,null,null,null,null,null,"MAR-05.03.01-FEAMP-0045","LITOFISH, LDA,","Linha de Ultracongelação rápida e armazenamento de congelados","DRAP Centro",7332836,7118280.3499999996,6428367.1699999999,2410637.71,803545.89,"2016-10-26","2020-06-21"]
[null,null,null,null,null,null,null,"MAR-05.03.01-FEAMP-0048","Sociedade Corretora,Lda","Modernização da fábrica de conservas de peixe,","DRP Açores",4911986,5232800,5232800,2550990,850330,"2017-06-01","2018-12-31"]
[null,null,null,null,null,null,null,"MAR-05.03.01-FEAMP-0049","TRICIA ANN BAGLIO ALKER","Azores Deepwater Crab Claws - Tricia Ann Baglio Alker","DRP Açores",8926413,42136.959999999999,20951.599999999999,10213.9,3404.63,"2016-08-03","2019-12-31"]
[null,null,null,null,null,null,null,"MAR-05.03.01-FEAMP-0050","EMPRESA FIGUEIRENSE DE PESCA, LDA","Fábrica de farinha de peixe","DRAP Centro",7066176,1170408.8,1114414.5900000001,417905.46,139301.84,"2017-04-01","2020-12-31"]
[null,null,null,null,null,null,null,"MAR-05.03.01-FEAMP-0051","HARDY, Lda","HARDY, Lda - Defumagem de Salmão, Enguia e Truta (II)","DRAP Norte",8862261,204893.64,151294.03,56735.27,18911.759999999998,"2016-06-10","2020-06-18"]
[null,null,null,null,null,null,null,"MAR-05.03.01-FEAMP-0052","GENTILSABOR - INDÚSTRIA DE PRODUTOS ALIMENTARES, LDA,","Gentilsabor - Modernização Fábrica","DRAP Norte",7660484,389079.45,389079.45,145904.79,48634.94,"2014-08-07","2020-06-30"]
[null,null,null,null,null,null,null,"MAR-05.03.01-FEAMP-0053","GAIVOTAPRATEADA, LDA,","Modernização e adaptação das instalações para o processamento de cefalópodes","DRAP Centro",8847621,821860.87,821735.86,308150.96000000002,102716.98,"2014-01-01","2020-12-31"]
[null,null,null,null,null,null,null,"MAR-05.03.01-FEAMP-0054","Mar-Ibérica - Sociedade de Produtos Alimentares, S,A,","MAR-IBÉRICA, S,A","DRAP Norte",7096426,1464728.09,1441736,540651.02,180216.99,"2018-01-01","2019-12-31"]
[null,null,null,null,null,null,null,"MAR-05.03.01-FEAMP-0055","FRIPEX - Sociedade de Conservação e Comércio de Peixe, Lda","Fabricação de novo produto, melhoria das condições de laboração e aumento da ef,","DRAP Alentejo",7072006,479289.4,478225.4,179334.53,59778.18,"2018-12-21","2019-12-31"]
[null,null,null,null,null,null,null,"MAR-05.03.01-FEAMP-0056","CAXAMAR - COMÉRCIO DE BACALHAU, LDA,","Modernização da unidade Caxamar","DRAP Lisboa e Vale do Tejo - Oeste",7560394,1147774.1299999999,1145264.1299999999,429474.05,143158.01999999999,"2014-11-26","2020-07-31"]
[null,null,null,null,null,null,null,"MAR-05.03.01-FEAMP-0058","CONSERVEIRA DO ARADE, LDA,","Instalação do estabelecimento industrial de conservas de pescado","DRAP Algarve",8846173,388515.5,219395.77,82273.42,27424.48,"2015-01-21","2019-12-31"]
[null,null,null,null,null,null,null,"MAR-05.03.01-FEAMP-0059","Trincapeixe-Ind, e Com, Prod, Alimentares Frescos e Congelados, Lda","Trincapeixe, Lda - Nova Unid, Ind, Prep, Pescado","DRAP Norte",8847884,717522.38,619604.82999999996,232351.83,77450.59,"2017-01-01","2020-03-31"]
[null,null,null,null,null,null,null,"MAR-05.03.01-FEAMP-0060","FAVORITEVELVET, LDA,","Construção de unidade de produção de transformação de marisco","DRAP Lisboa e Vale do Tejo - Oeste",8861636,1332235.6000000001,1224949.78,459356.18,153118.71,"2015-01-01","2020-12-31"]
[null,null,null,null,null,null,null,"MAR-05.03.01-FEAMP-0062","PINHAIS & CA LDA","PINHAIS & Cª, Lda - Ef, Energética","DRAP Norte",4911963,498305.87,451023.09,169133.67,56377.88,"2017-03-01","2019-12-31"]
[null,null,null,null,null,null,null,"MAR-05.03.01-FEAMP-0063","Vanibru - Comércio de Produtos Alimentares, Lda","VANIBRU - Ampliação das Instalações","DRAP Norte",9025357,16563731.289999999,7978763.6399999997,2992036.4,997345.44,"2017-10-20","2020-10-28"]
[null,null,null,null,null,null,null,"MAR-05.03.01-FEAMP-0064","FILMAR-Comercialização de Produtos Congelados,Ldª","Modernização da unidade industrial da Filmar","DRAP Lisboa e Vale do Tejo - Oeste",8899847,399856.37,396856.37,148821.16,49607.03,"2016-06-08","2020-07-06"]
[null,null,null,null,null,null,null,"MAR-05.03.01-FEAMP-0066","COFISA-Conservas de Peixe da Figueira,SA","MODERNIZAÇÃO FASE 2 DA FÁBRICA DE CONSERVAS DE PEIXE DA FIGUEIRA","DRAP Centro",4997784,4118033.52,2602698.36,976011.9,325337.28999999998,"2017-05-29","2020-12-31"]
[null,null,null,null,null,null,null,"MAR-05.03.01-FEAMP-0068","PREFEITOS - Pré-Cozinhados, Lda","PREFEITOS, Lda - Unid, Ind, Pré-Cozinhados","DRAP Norte",9025833,2198508.4,2067160,775185,258395,"2018-03-01","2019-05-31"]
[null,null,null,null,null,null,null,"MAR-05.03.01-FEAMP-0069","Jolefilo - Produtos Alimentares, Lda","JOLEFILO, Lda - Unid Ind Pré-Cozinhados","DRAP Norte",8857832,2232277.12,1837967.83,689237.94,229745.98,"2017-11-01","2020-02-28"]
[null,null,null,null,null,null,null,"MAR-05.03.01-FEAMP-0074","IRMAOS NORINHO, LDA,","CONSTRUÇÃO E INSTALAÇÃO DE ESTABELECIMENTO DE PREPARAÇÃO E CONGELAÇÃO DE ENGUIAS","DRAP Centro",7492151,698920.77,396627.76,148735.43,49578.47,"2017-04-02","2020-09-30"]
[null,null,null,null,null,null,null,"MAR-05.03.01-FEAMP-0075","DELTAGEL - PRODUTOS ALIMENTARES, S,A,","UNIDADE DE PREPARAÇÃO DE PESCADO CONGELADO","DRAP Centro",7285694,695321.03,663385.36,248769.53,82923.149999999994,"2017-10-23","2020-03-31"]
[null,null,null,null,null,null,null,"MAR-05.03.01-FEAMP-0076","FRIQUENTAL, INDÚSTRIA E COMÉRCIAL ALIMENTAR, LDA,","NOVO ESTABELECIMENTO INDUSTRIAL DE CONGELAÇÃO E PREPARAÇÃO DE PESCADO","DRAP Centro",9016397,3502093.33,2622713.9,983517.73,327839.24,"2016-08-29","2020-12-31"]
[null,null,null,null,null,null,null,"MAR-05.03.01-FEAMP-0078","Conserveira do Sul, Lda","Modernização das linhas de transformação de produtos da pesca com a introdução d","DRAP Algarve",8207273,1233897.28,1233292.28,462484.61,154161.54,"2017-11-02","2020-06-30"]
[null,null,null,null,null,null,null,"MAR-05.03.01-FEAMP-0079","SOCIEDADE DE PESCAS PELÁGICAS, LDA,","Aumento da capacidade de produção","DRAP Algarve",8863001,255518.65,195100.08,73162.55,24387.5,"2014-06-12","2019-06-30"]
[null,null,null,null,null,null,null,"MAR-05.03.01-FEAMP-0080","ABRANCONGELADOS - PRODUTOS ALIMENTARES, LDA","Reengenharia e Ampliação do Estabelecimento Industrial","DRAP Lisboa e Vale do Tejo - Oeste",7805466,2228419.9300000002,2011074.47,754152.95,251384.3,"2018-01-01","2020-12-18"]
[null,null,null,null,null,null,null,"MAR-05.03.01-FEAMP-0081","Mundo dos Congelados - Comércio e Industria Produtos Alimentares,Lda","Aumento da capacidade produtiva e diversificação do produto","DRAP Lisboa e Vale do Tejo - Oeste",8860672,135354.68,116094.68,43535.51,14511.83,"2016-08-01","2020-11-30"]
[null,null,null,null,null,null,null,"MAR-05.03.01-FEAMP-0083","PDM - TRANSFORMAÇÃO E COMÉRCIO DE PESCADO, LDA,","Edificação de novo estabelecimento industrial processamento pescado Pico","DRP Açores",9005507,6751623.0700000003,6751623.0700000003,3291416.26,1097138.74,"2017-10-12","2019-06-28"]
[null,null,null,null,null,null,null,"MAR-05.03.01-FEAMP-0085","PESCATUM - CONSERVAS E PESCA, LDA,","Investimento na estrutura do edifício, instalações de frio e programa informátic","DRP Açores",6410834,1650428.47,1650428.47,804583.88,268194.63,"2019-01-23","2020-06-30"]
[null,null,null,null,null,null,null,"MAR-05.03.01-FEAMP-0086","FINISTERRA, S,A,","FINISTERRA, S,A,","DRAP Algarve",7641614,485811.03,420342.24,157628.35,52542.78,"2018-01-02","2021-01-01"]
[null,null,null,null,null,null,null,"MAR-05.03.01-FEAMP-0087","FRIJOBEL - INDÚSTRIA E COMÉRCIO ALIMENTAR, SA","FRIJOBEL 2020 OTIMIZAR E CRESCER","DRAP Centro",7314475,2041139,2019032.5,757137.2,252379.06,"2018-03-01","2020-12-31"]
[null,null,null,null,null,null,null,"MAR-05.03.01-FEAMP-0088","Seis Oito Fish - Comércio e Indústria, Lda","SeisOitoFish - Modernização e Ampliação","DRAP Norte",9287325,1134496.71,1126435.04,422413.15,140804.37,"2019-03-01","2020-12-31"]
[null,null,null,null,null,null,null,"MAR-05.03.01-FEAMP-0089","Soguima - Comércio e indústria alimentar, S,A,","SOGUIMA - Criação Novos Produtos","DRAP Norte",7609021,1774344.64,1774344.64,665379.26,221793.06,"2018-01-01","2020-12-31"]
[null,null,null,null,null,null,null,"MAR-05.03.01-FEAMP-0090","FRIGORIFICOS DA ERMIDA - COMERCIALIZAÇÃO DE PRODUTOS ALIMENTARES, LDA,","FRIGORIFICOS DA ERMIDA - AMPLIAÇÃO E MODERNIZAÇÃO","DRAP Centro",9312051,971149.19,675043.95,253141.5,84380.479999999996,"2018-12-14","2021-10-01"]
[null,null,null,null,null,null,null,"MAR-05.03.01-FEAMP-0091","Guimarpeixe - Comércio de Produtos Alimentares, Ld","Guimarpeixe, S,A, - Novos Produtos","DRAP Norte",7295046,1370168.4,1367225.98,512709.76,170903.23,"2019-03-01","2020-12-31"]
[null,null,null,null,null,null,null,"MAR-05.03.01-FEAMP-0092","100MISTÉRIOS, Lda","100MISTÉRIOS, Lda - José Gourmet-Indústria","DRAP Norte",9321096,743529.9,630966.9,236612.59,78870.86,"2019-09-01","2021-08-31"]
[null,null,null,null,null,null,null,"MAR-05.03.01-FEAMP-0093","Coelho & Dias, S,A,","Projeto de modernização das Unidades de Coimbrões e Guimarães","DRAP Centro",7084522,3550104.04,2666666.66,1000000,333333.34000000003,"2019-03-01","2021-04-30"]
[null,null,null,null,null,null,null,"MAR-05.03.01-FEAMP-0096","Virgilio C, Moreira, Lda","CAPACITAÇÃO E DIVERSIFICAÇÃO NA INTERNACIONALIZAÇÃO","DRAP Centro",7758761,1823327.91,1335784.17,500919.07,166973.01999999999,"2014-01-01","2021-06-02"]
[null,null,null,null,null,null,null,"MAR-05.03.01-FEAMP-0097","Nigel-Congeladora José Nicolau, Lda","Melhorar competitividade industrial e diferenciação no mercado","DRAP Lisboa e Vale do Tejo - Oeste",7103096,1930197.1,1895889.01,710958.39,236986.12,"2018-01-01","2021-08-31"]
[null,null,null,null,null,null,null,"MAR-05.03.01-FEAMP-0098","ESBAL-Empresa de Secagem de Bacalhau, SA","MODERNIZAÇÃO E AMPLIAÇÃO DO CIRCUITO PRODUTIVO - ESBAL","DRAP Centro",9323497,444740.08,403627.13,151360.19,50453.38,"2019-05-01","2021-04-30"]
[null,null,null,null,null,null,null,"MAR-05.03.01-FEAMP-0102","FASTER - Produtos Alimentares, Lda","AUMENTO DA CAPACIDADE PRODUTIVA, MELHORAIS DA EFICEÊNCIA ENERGÉTICA E REF, EXP,","DRAP Centro",7312124,480964.5,314485.34000000003,117932.03,39310.65,"2018-11-01","2021-05-31"]
[null,null,null,null,null,null,null,"MAR-05.03.01-FEAMP-0104","Maredeus Portugal Unipessoal, Lda","Modernização de estabelecimento industrial de processamento de bacalhau","DRAP Alentejo",9305004,2359383.31,2342153.4700000002,878307.57,292769.17,"2017-07-31","2020-12-31"]
[null,null,null,null,null,null,null,"MAR-05.03.01-FEAMP-0105","OCEANIC, LDA,","Ampliação de estabelecimento industrial e reforço da capacidade fis,-financeira","DRAP Alentejo",8172746,2100966.87,2087466.87,782800.09,260933.35,"2019-03-01","2020-12-31"]
[null,null,null,null,null,null,null,"MAR-05.03.01-FEAMP-0106","Marolhão-Conservas de Peixe, Lda","MAROLHÃO - PRODUTOS DA PESCA, LDA","DRAP Algarve",4914296,846858.05,799243.05,299716.15999999997,99905.38,"2015-06-27","2019-12-31"]
[null,null,null,null,null,null,null,"MAR-05.06.01-FEAMP-0001","PROPEIXE O,P, - COOPERATIVA DE PRODUTORES DE PEIXE DO NORTE, CRL","Apoio à armazenagem da PROPEIXE","DGRM - Direção Geral de Recursos Naturais Segurança e Serviços Marítimos",4907002,1115049.3600000001,1115049.3600000001,1115049.3600000001,null,"2014-01-01","2019-10-31"]
[null,null,null,null,null,null,null,"MAR-05.06.01-FEAMP-0002","APROPESCA - ORGANIZAÇÃO DE PRODUTORES DE PESCA ARTESANAL, CRL","Apoio à armazenagem da APROPESCA","DGRM - Direção Geral de Recursos Naturais Segurança e Serviços Marítimos",5169841,20100.37,20100.37,20100.37,null,"2014-01-01","2019-10-31"]
[null,null,null,null,null,null,null,"MAR-05.06.01-FEAMP-0003","COOPERATIVA DE PRODUTORES DE PEIXE DO CENTRO LITORAL, C,R,L,","Mecanismo de armazenagem da cavala, sardinha e sarda","DGRM - Direção Geral de Recursos Naturais Segurança e Serviços Marítimos",5628165,33914.720000000001,33914.720000000001,33914.720000000001,null,"2015-01-01","2019-10-31"]
[null,null,null,null,null,null,null,"MAR-05.06.01-FEAMP-0004","VIANAPESCA, OP - COOPERATIVA DE PRODUTORES DE PEIXE DE VIANA DO CASTELO, CRL","VIANAPESCA - Armazenagem de sardinha, cavala e sarda","DGRM - Direção Geral de Recursos Naturais Segurança e Serviços Marítimos",5168957,29015.79,29015.79,29015.79,null,"2014-01-01","2019-10-31"]
[null,null,null,null,null,null,null,"MAR-06.01.01-FEAMP-0002","TEKEVER II AUTONOMOUS SYSTEM, LDA,","TRITÃO - Tecnologias de Rastreio Aéreo e Inspeção Territorial em Àguas Açorianas","DGPM - DG Políticas do Mar",8877086,228247.74,228247.74,171185.8,57061.94,"2017-09-01","2019-08-01"]
[null,null,null,null,null,null,null,"MAR-06.01.01-FEAMP-0003","Direção-Geral de Política do Mar","SEAMIND PLATFORM - Indicadores Socioeconómicos e Ambientais","Secretariado Técnico da AG do Mar2020",8013252,240000,80000,60000,20000,"2018-02-01","2019-01-05"]
[null,null,null,null,null,null,null,"MAR-06.01.01-FEAMP-0004","INSTITUTO HIDROGRÁFICO","SAGA - SISTEMA DE APOIO À GESTÃO PORTUÁRIA","DGPM - DG Políticas do Mar",8991296,219000,103620,77715,25905,"2018-01-01","2020-12-31"]
[null,null,null,null,null,null,null,"MAR-06.01.01-FEAMP-0005","DEIMOS - ENGENHARIA S,A,","SAGA- SISTEMA DE APOIO À GESTÃO PORTUÁRIA","DGPM - DG Políticas do Mar",9262776,97380,97380,73035,24345,"2018-01-01","2020-12-31"]
[null,null,null,null,null,null,null,"MAR-06.01.01-FEAMP-0006","Ministério da Defesa Nacional - Marinha","SAGA-SISTEMA DE APOIO À GESTÃO PORTUÁRIA","DGPM - DG Políticas do Mar",5650563,18000,18000,13500,4500,"2018-01-01","2020-12-31"]
[null,null,null,null,null,null,null,"MAR-06.01.01-FEAMP-0007","BLUEGROWTH, LDA,","GROUND ONE","DGPM - DG Políticas do Mar",9249257,315107,314302.31,235726.74,78575.570000000007,"2018-03-01","2020-03-31"]
[null,null,null,null,null,null,null,"MAR-06.01.01-FEAMP-0008","Direção-Geral de Recursos Naturais, Segurança e Serviços Marítimos","Definição das capacidades funcionais e tec, para alargamento do VTS às RAM e RAA","DGPM - DG Políticas do Mar",8171291,174263.2,165927,124445.25,41481.75,"2017-01-01","2020-07-30"]
[null,null,null,null,null,null,null,"MAR-06.01.01-FEAMP-0009","Direção-Geral de Recursos Naturais, Segurança e Serviços Marítimos","CRIAÇÃO DO CENTRO DE COMANDO E CONTROLO INTEGRADO DO MAR-C3MAR","DGPM - DG Políticas do Mar",8171291,2689860.8,2689860.8,2017395.6,672465.2,"2017-01-02","2020-02-05"]
[null,null,null,null,null,null,null,"MAR-06.01.01-FEAMP-0010","Direção-Geral de Política do Mar","SEAMIND PLATFORM - Fases 2 e 3","Secretariado Técnico da AG do Mar2020",8013252,652838,652838,489628.5,163209.5,"2019-07-01","2021-12-31"]
[null,null,null,null,null,null,null,"MAR-06.01.01-FEAMP-0011","Direção-Geral de Recursos Naturais, Segurança e Serviços Marítimos","NIPIM@R Shipping Intelligence NetworkPortal de Informação Estratégica para o Mar","DGPM - DG Políticas do Mar",8171291,369000,369000,276750,92250,"2019-06-03","2020-06-03"]
[null,null,null,null,null,null,null,"MAR-06.01.01-FEAMP-0012","CEIIA - Centro de Engenharia e Desenvolvimento - Associação","NIPIM@R Shipping Intelligence NetworkPortal de Informação Estratégica para o Mar","DGPM - DG Políticas do Mar",9249683,337497.63,301696.53000000003,226272.4,75424.13,"2019-06-03","2020-06-03"]
[null,null,null,null,null,null,null,"MAR-06.01.01-FEAMP-0013","INOVAWORKS II, COMMAND AND CONTROL, S,A,","NIPIM@R Shipping Intelligence NetworkPortal de Informação Estratégica para o Mar","DGPM - DG Políticas do Mar",9368685,316658.11,311814.86,233861.15,77953.710000000006,"2019-06-03","2020-06-03"]
[null,null,null,null,null,null,null,"MAR-06.02.01-FEAMP-0001","Direção-Geral de Recursos Naturais, Segurança e Serviços Marítimos","FISH&SHIPS","DGPM - DG Políticas do Mar",8171291,123250,123250,92437.5,30812.5,"2018-06-01","2020-12-31"]
[null,null,null,null,null,null,null,"MAR-06.02.01-FEAMP-0002","INSTITUTO PORTUGUÊS DO MAR E DA ATMOSFERA, I,P,","GIDLAM - Gestão Inf, e Dados de Lixo em Ambiente Marinho","DGPM - DG Políticas do Mar",7956586,238249.04,238249.04,178686.78,59562.26,"2018-01-02","2019-12-31"]
[null,null,null,null,null,null,null,"MAR-06.02.01-FEAMP-0003","CEIIA - Centro de Engenharia e Desenvolvimento - Associação","GIDLAM - Gestão Inf, e Dados de Lixo em Ambiente Marinho","DGPM - DG Políticas do Mar",9249683,313380,313380,235035,78345,"2018-01-02","2019-12-31"]
[null,null,null,null,null,null,null,"MAR-06.02.01-FEAMP-0004","SECRETARIA REGIONAL DO AMBIENTE E DOS RECURSOS NATURAIS DA ILHA DA MADEIRA","DEEP-ML - Promoção do conhecimento do lixo-marinho no Sul da Ilha da Madeira","DGPM - DG Políticas do Mar",5777104,309800,309800,232350,77450,"2019-06-15","2020-12-31"]
[null,null,null,null,null,null,null,"MAR-06.02.01-FEAMP-0005","CEIIA - Centro de Engenharia e Desenvolvimento - Associação","EASER - Desenv,de um Veículo Autónomo de Superfície","DGPM - DG Políticas do Mar",9249683,643141.43999999994,613679.89,460259.92,153419.97,"2018-01-02","2020-03-31"]
[null,null,null,null,null,null,null,"MAR-07.01.01-FEAMP-000001","AUTORIDADE DE GESTÃO MAR2020","Assistência Técnica da Autoridade de Gestão do Mar2020 - 2016","Secretariado Técnico da AG do Mar2020",8771282,1133239,1133239,849929,283310,"2015-08-01","2017-01-30"]
[null,null,null,null,null,null,null,"MAR-07.01.01-FEAMP-00002","Direcção Regional de Agricultura e Pescas do Algarve","Assistência Técnica DRAP Algarve - OI - 2016","Secretariado Técnico da AG do Mar2020",198306,96674,96674,72505,24169,"2016-01-01","2017-01-31"]
[null,null,null,null,null,null,null,"MAR-07.01.01-FEAMP-00004","DIREÇÃO REGIONAL DE AGRICULTURA E PESCAS DO CENTRO","Assistência Técnica DRAP Centro - OI - 2016","Secretariado Técnico da AG do Mar2020",7089724,74114,74114,55585,18529,"2015-11-01","2017-01-31"]
[null,null,null,null,null,null,null,"MAR-07.01.01-FEAMP-00005","Direção Regional de Agricultura e Pescas de Lisboa e Vale do Tejo","Assistência Técnica DRAP LVT - OI - 2016","Secretariado Técnico da AG do Mar2020",314235,65000,65000,48750,16250,"2016-01-01","2016-12-31"]
[null,null,null,null,null,null,null,"MAR-07.01.01-FEAMP-00006","Direcção Regional de Agricultura e Pescas do Norte","Assistência Técnica DRAP Norte - OI - 2016","Secretariado Técnico da AG do Mar2020",561463,79183,79183,59387,19796,"2015-11-01","2017-02-28"]
[null,null,null,null,null,null,null,"MAR-07.01.01-FEAMP-0008","AUTORIDADE DE GESTÃO MAR2020","Assistência Técnica da Autoridade de Gestão do MAR - 2017","Secretariado Técnico da AG do Mar2020",8771282,1792000,1792000,1344000,448000,"2016-12-01","2018-01-31"]
[null,null,null,null,null,null,null,"MAR-07.01.01-FEAMP-0009","Direção Regional de Agricultura e Pescas de Lisboa e Vale do Tejo","Assistência Técnica DRAP LVT - OI - 2017","Secretariado Técnico da AG do Mar2020",314235,296116,296116,222087,74029,"2017-01-01","2017-12-31"]
[null,null,null,null,null,null,null,"MAR-07.01.01-FEAMP-0010","DIREÇÃO REGIONAL DE AGRICULTURA E PESCAS DO CENTRO","Assistência Técnica DRAP Centro - OI - 2017","Secretariado Técnico da AG do Mar2020",7089724,86940,86940,65205,21735,"2016-11-01","2018-01-31"]
[null,null,null,null,null,null,null,"MAR-07.01.01-FEAMP-0012","Direção-Geral de Política do Mar","Assistência Técnica DGPM - OI - 2017","Secretariado Técnico da AG do Mar2020",8013252,211413,211413,158559.75,52853.25,"2017-01-01","2017-12-31"]
[null,null,null,null,null,null,null,"MAR-07.01.01-FEAMP-0013","Direcção Regional de Agricultura e Pescas do Norte","Assistência Técnica DRAP Norte - OI - 2017","Secretariado Técnico da AG do Mar2020",561463,150495,150495,112871.25,37623.75,"2016-11-01","2018-03-31"]
[null,null,null,null,null,null,null,"MAR-07.01.01-FEAMP-0015","Direcção Regional de Agricultura e Pescas do Algarve","Assistência Técnica DRAP Algarve - OI - 2017","Secretariado Técnico da AG do Mar2020",198306,108966,108966,81724,27242,"2017-01-01","2018-02-28"]
[null,null,null,null,null,null,null,"MAR-07.01.01-FEAMP-0016","Direção-Geral de Recursos Naturais, Segurança e Serviços Marítimos","Assistência Técnica DGRM - OI - 2017/2019","Secretariado Técnico da AG do Mar2020",8171291,600000,431676.5,323757.38,107919.12,"2017-01-01","2019-12-31"]
[null,null,null,null,null,null,null,"MAR-07.01.01-FEAMP-0017","AUTORIDADE DE GESTÃO MAR2020","Assistência Técnica AG MAR 2020- 2018","Secretariado Técnico da AG do Mar2020",8771282,1792000,1792000,1344000,448000,"2017-01-01","2019-02-28"]
[null,null,null,null,null,null,null,"MAR-07.01.01-FEAMP-0018","DIREÇÃO REGIONAL DE AGRICULTURA E PESCAS DO CENTRO","Assistência Técnica DRAP Centro - OI - 2018","Secretariado Técnico da AG do Mar2020",7089724,219000,86948,65211,21737,"2017-11-01","2019-01-31"]
[null,null,null,null,null,null,null,"MAR-07.01.01-FEAMP-0019","Direção Regional de Agricultura e Pescas de Lisboa e Vale do Tejo","Assistência Técnica DRAP LVT - OI - 2018","Secretariado Técnico da AG do Mar2020",314235,296142,296142,222106,74036,"2018-01-01","2018-12-31"]
[null,null,null,null,null,null,null,"MAR-07.01.01-FEAMP-0021","Direcção Regional de Agricultura e Pescas do Algarve","Assistência Técnica da DRAP Algarve OI - 2018","Secretariado Técnico da AG do Mar2020",198306,108966,108966,81725,27241,"2018-01-01","2019-06-28"]
[null,null,null,null,null,null,null,"MAR-07.01.01-FEAMP-0022","Instituto de Financiamento da Agricultura e Pescas, IP","Assistência Técnica - IFAP-OI - 2018","Secretariado Técnico da AG do Mar2020",7047941,433316.6,429878.6,322408.95,107469.65,"2018-09-01","2019-08-31"]
[null,null,null,null,null,null,null,"MAR-07.01.01-FEAMP-0023","Direção-Geral de Política do Mar","Assistência Técnica da DGPM - OI - 2018","Secretariado Técnico da AG do Mar2020",8013252,1722515.12,1722515.12,1291886.3400000001,430628.78,"2018-01-01","2023-12-31"]
[null,null,null,null,null,null,null,"MAR-07.01.01-FEAMP-0024","Direcção Regional de Agricultura e Pescas do Norte","Assistência Técnica DRAP Norte - OI - 2018","Secretariado Técnico da AG do Mar2020",561463,446908,408620.43,306465.32,102155.11,"2017-11-01","2019-03-31"]
[null,null,null,null,null,null,null,"MAR-07.01.01-FEAMP-0025","SECRETARIA REGIONAL DE AGRICULTURA E PESCAS","ASSISTÊNCIA TÉCNICA RAM - 2016-2018","DRP Madeira",8590586,89415.64,89415.64,67061.73,22353.91,"2016-01-01","2019-03-31"]
[null,null,null,null,null,null,null,"MAR-07.01.01-FEAMP-0026","AUTORIDADE DE GESTÃO MAR2020","Assistência Técnica AG MAR2020-2019","DRAP Lisboa e Vale do Tejo - Oeste",8771282,1792000,1792000,1344000,448000,"2018-12-01","2020-01-31"]
[null,null,null,null,null,null,null,"MAR-07.01.01-FEAMP-0027","DIREÇÃO REGIONAL DAS PESCAS","Assistência Técnica OI-DSPEP RAA","DRP Açores",7991621,482831.81,482831.81,410407.04,72424.77,"2014-09-01","2018-12-31"]
[null,null,null,null,null,null,null,"MAR-07.01.01-FEAMP-0028","Direção Regional de Agricultura e Pescas de Lisboa e Vale do Tejo","Assistência Técnica DRAP LVT-2019","Secretariado Técnico da AG do Mar2020",314235,400862.36,400862.36,300646.77,100215.59,"2019-01-01","2019-12-31"]
[null,null,null,null,null,null,null,"MAR-07.01.01-FEAMP-0029","Direcção Regional de Agricultura e Pescas do Algarve","Assistência Técnica DRAP Algarve_2019","Secretariado Técnico da AG do Mar2020",198306,135043.07,135043.07,101282.3,33760.769999999997,"2019-01-01","2020-02-29"]
[null,null,null,null,null,null,null,"MAR-07.01.01-FEAMP-0030","DIREÇÃO REGIONAL DE AGRICULTURA E PESCAS DO CENTRO","Assistência Técnica DRAP Centro_2019","Secretariado Técnico da AG do Mar2020",7089724,92565.99,92565.99,69424.490000000005,23141.5,"2019-01-01","2020-01-31"]
[null,null,null,null,null,null,null,"MAR-07.01.01-FEAMP-0032","Direção-Geral de Recursos Naturais, Segurança e Serviços Marítimos","Assistência Técnica DGRM_2019_2022","Secretariado Técnico da AG do Mar2020",8171291,876586.65,861400.25,646050.18999999994,215350.06,"2019-01-01","2023-06-30"]
[null,null,null,null,null,null,null,"MAR-07.01.01-FEAMP-0033","Direcção Regional de Agricultura e Pescas do Norte","Assistência Técnica da DRAP Norte - 2019","Secretariado Técnico da AG do Mar2020",561463,376358.03,364199.36,273149.52,91049.84,"2019-01-01","2020-06-18"]
[null,null,null,null,null,null,null,"MAR-07.01.01-FEAMP-0035","SECRETARIA REGIONAL DO MAR CIÊNCIA E TECNOLOGIA/INSPEÇÃO REGIONAL PESCAS AÇORES","Assistência técnica ao Mar 2020 (2014-2019) - OI-GPSRMCT","DRP Açores",8578875,26864.799999999999,26864.799999999999,22835.08,4029.72,"2014-01-01","2019-12-31"]
[null,null,null,null,null,null,null,"MAR-07.01.01-FEAMP-0036","SECRETARIA REGIONAL DE AGRICULTURA E PESCAS","ASSISTÊNCIA TÉCNICA RAM - 2019","DRP Madeira",8590586,86312.28,86312.28,64734.21,21578.07,"2019-01-01","2019-12-31"]
[null,null,null,null,null,null,null,"MAR-07.01.01-FEAMP-0037","DIREÇÃO REGIONAL DE AGRICULTURA E PESCAS DO ALENTEJO","Assistência Técnica DRAP  Alentejo 2020-2022","Secretariado Técnico da AG do Mar2020",454887,131789.78,131789.78,98842.34,32947.440000000002,"2020-01-01","2022-12-31"]
[null,null,null,null,null,null,null,"MAR-07.01.01-FEAMP-0038","AUTORIDADE DE GESTÃO MAR2020","Assistência Técnica AG Mar2020 - 2020/2023","DRAP Lisboa e Vale do Tejo - Oeste",8771282,7168000,7168000,5376000,1792000,"2019-11-01","2023-12-31"]
[null,null,null,null,null,null,null,"MAR-07.01.01-FEAMP-0040","Direcção Regional de Agricultura e Pescas do Algarve","Assistencia Tecnica DRAP Algarve - 2020-2022","Secretariado Técnico da AG do Mar2020",198306,466389,466389,349791.75,116597.25,"2020-01-01","2022-12-31"]
[null,null,null,null,null,null,null,"MAR-01.01.01-FEAMP-0529","ATLANTIS - SOCIEDADE DE PESCAS LDA","Aquisição de materiais,equipamentos e serviços com vista à mitigação do contágio do Covid-19","DRAPC",7080702,15844.08,15844.08,5941.53,1980.51,"2020-03-18","2020-12-31"]
[null,null,null,null,null,null,null,"MAR-02.01.03-FEAMP-0208","OCEANO FRESCO, S. A.","Apoio Específico Inerente ao Surto de COVID-19","DRAPLVT",9016416,16066.68,16066.68,6025.01,2008.33,"2020-04-01","2020-12-31"]
[null,null,null,null,null,null,null,"MAR-02.05.01-FEAMP-0053","GUALTER MARISCOS, LDA","Apoio Mortalidade Amêijoa Boa - Fortaleza - 2019","DRAPALG",8900137,195021.37,195021.37,146266.03,48755.34,"2019-03-10","2022-03-10"]
[null,null,null,null,null,null,null,"MAR-05.02.01-FEAMP-0044","ALIF - ASSOCIAÇÃO DA INDÚSTRIA ALIMENTAR PELO FRIO"," FEIRAS INTERNACIONAIS SEAFOOD BRUXELAS, SIAL PARIS E CONXEMAR VIGO 2020","DRAPLVT",7270516,691424.33,687167.08,309225.26,103075,"2020-02-01","2021-03-31"]
[null,null,null,null,null,null,null,"MAR-02.05.01-FEAMP-0054","JOSE MANUEL PRATA","Apoio Mortalidade Amêijoa Boa - Fortaleza - 2019","DRAPALG",7081021,43595.009999999995,43595.009999999995,32696.26,10898.75,"2019-05-20","2021-05-20"]